{"text_format":"1","workbook":"xlsx","n_sheets":4,"sheets":["Formulaire","Tableau de suivi de paiement","Débiteurs","Paramètres"],"not_rendered":{"charts":0,"images":0,"macros":1,"external_links":0,"defined_names":4,"comments":0,"pivot_tables":0},"unopened":[],"bounds":{"document_bytes":16777216,"sheet_cells":100000,"rows_first":2000,"rows_last":500,"rows_between":2000,"halvings":0,"cell_chars":16384,"cell_head_chars":4096},"cells_cut":0,"cells_raw":0,"read":"whole","date_system":"1900"}

{"sheet":"Formulaire","index":0,"n_rows":19,"n_cols":5,"rows_kept":19,"cut":false,"hidden":false,"merged":[[2,1,3,5]]}
[]
[]
[null,"FORMULAIRE SUIVI DES DEBITEURS"]
[]
[]
[null,null,"N° du client",null,"Type pièce"]
[]
[]
[null,null,"Nom du client",null,"Date de pièce"]
[null,null,{"$f":"IF(C7<>\"\",VLOOKUP(C7,Débiteurs_1[],2,0),\"\")","v":""}]
[]
[null,null,"Adresse1",null,"N° pièce"]
[null,null,{"$f":"IF(C7<>\"\",VLOOKUP(C7,Débiteurs_1[],3,0),\"\")","v":""}]
[]
[null,null,"NPA",null,"Montant TTC"]
[null,null,{"$f":"IF(C7<>\"\",VLOOKUP(C7,Débiteurs_1[],4,0),\"\")","v":""}]
[]
[null,null,"Ville",null,"Délai de paiement"]
[null,null,{"$f":"IF(C7<>\"\",VLOOKUP(C7,Débiteurs_1[],5,0),\"\")","v":""}]

{"sheet":"Tableau de suivi de paiement","index":1,"n_rows":14,"n_cols":22,"rows_kept":14,"cut":false,"hidden":false,"merged":[]}
["Aujourd'hui : ",{"$f":"TODAY()","v":"2021-02-20"}]
[]
["N° du client","Délai de paiement (en jours)","Nom du client","Adresse1","Adresse2","NPA","Ville","N° pièce","Type pièce","Date de pièce","Débit","Crédit","Solde","Action à effectuer ","Date d'échéance","Date de paiement total de la facture ","J+","Date relance 1","Date relance 2","Date relance 3",null,"Poursuite"]
["204011",15,"Mir Capital SA","Avenue Henry Golay 3",null,"1203","Genève",90001234,"Facture","2021-02-01",100,null,{"$f":"IF(ISERROR(Tableau2[[#This Row],[Débit]]-#REF!),\"\",Tableau2[[#This Row],[Débit]]-#REF!)","v":""},{"$f":"IF(Q4<0,\"OK\",IF(Q4=0,\"Ne rien faire\",IF(AND(Q4>0,Q4<=10),\"Relance 1\",IF(AND(Q4>=11,Q4<=30),\"Relance 2\",IF(AND(Q4>31,Q4<=60),\"Relance 3\",IF(AND(Q4>61,Q4<=90),\"Menace de poursuite\",IF(Q4>91,\"Introduction poursuite\")))))))","v":"Relance 1"},{"$f":"IF(Tableau2[[#This Row],[Date de pièce]]=\"\",\"\",Tableau2[[#This Row],[Date de pièce]]+Tableau2[[#This Row],[Délai de paiement (en jours)]])","v":"2021-02-16"},null,{"$f":"IF(ISBLANK(Tableau2[[#This Row],[Date de pièce]]),0,IF(ISBLANK(Tableau2[[#This Row],[Date de paiement total de la facture ]]),$B$1-(Tableau2[[#This Row],[Date de pièce]]+Tableau2[[#This Row],[Délai de paiement (en jours)]]),\"\"))","v":4}]
[null,null,null,null,null,null,null,null,null,null,null,null,{"$f":"IF(ISERROR(Tableau2[[#This Row],[Débit]]-#REF!),\"\",Tableau2[[#This Row],[Débit]]-#REF!)","v":""},{"$f":"IF(Tableau2[[#This Row],[Solde]]>0,IF(Tableau2[[#This Row],[J+]]>0,\"Relancer\",\"\"),\"\")","v":""},{"$f":"IF(Tableau2[[#This Row],[Date de pièce]]=\"\",\"\",Tableau2[[#This Row],[Date de pièce]]+Tableau2[[#This Row],[Délai de paiement (en jours)]])","v":""},null,{"$f":"IF(ISBLANK(Tableau2[[#This Row],[Date de pièce]]),0,IF(ISBLANK(Tableau2[[#This Row],[Date de paiement total de la facture ]]),$B$1-(Tableau2[[#This Row],[Date de pièce]]+Tableau2[[#This Row],[Délai de paiement (en jours)]]),\"\"))","v":0}]
["204013",60,"Foyer Clair Bois Minoteries","Rue des Minoteries 11",null,"1205","Genève",90001750,"Facture","2021-02-12",1500,null,{"$f":"IF(ISERROR(Tableau2[[#This Row],[Débit]]-#REF!),\"\",Tableau2[[#This Row],[Débit]]-#REF!)","v":""},{"$f":"IF(Q6<0,\"OK\",IF(Q6=0,\"Ne rien faire\",IF(AND(Q6>0,Q6<=10),\"Relance 1\",IF(AND(Q6>=11,Q6<=30),\"Relance 2\",IF(AND(Q6>31,Q6<=60),\"Relance 3\",IF(AND(Q6>61,Q6<=90),\"Menace de poursuite\",IF(Q6>91,\"Introduction poursuite\")))))))","v":"OK"},{"$f":"IF(Tableau2[[#This Row],[Date de pièce]]=\"\",\"\",Tableau2[[#This Row],[Date de pièce]]+Tableau2[[#This Row],[Délai de paiement (en jours)]])","v":"2021-04-13"},null,{"$f":"IF(ISBLANK(Tableau2[[#This Row],[Date de pièce]]),0,IF(ISBLANK(Tableau2[[#This Row],[Date de paiement total de la facture ]]),$B$1-(Tableau2[[#This Row],[Date de pièce]]+Tableau2[[#This Row],[Délai de paiement (en jours)]]),\"\"))","v":-52}]
["204011",30,"Mir Capital SA","Avenue Henry Golay 3",null,"1203","Genève",1,"Slt client","2021-01-21",790,null,{"$f":"IF(ISERROR(Tableau2[[#This Row],[Débit]]-#REF!),\"\",Tableau2[[#This Row],[Débit]]-#REF!)","v":""},"Ne rien faire",{"$f":"IF(Tableau2[[#This Row],[Date de pièce]]=\"\",\"\",Tableau2[[#This Row],[Date de pièce]]+Tableau2[[#This Row],[Délai de paiement (en jours)]])","v":"2021-02-20"},null,{"$f":"IF(ISBLANK(Tableau2[[#This Row],[Date de pièce]]),0,IF(ISBLANK(Tableau2[[#This Row],[Date de paiement total de la facture ]]),$B$1-(Tableau2[[#This Row],[Date de pièce]]+Tableau2[[#This Row],[Délai de paiement (en jours)]]),\"\"))","v":0}]
["204011",30,"Mir Capital SA","Avenue Henry Golay 3",null,"1203","Genève",90001234,"Facture","2021-01-01",1000,null,{"$f":"$K$8","v":1000},"Relance 2",{"$f":"IF(Tableau2[[#This Row],[Date de pièce]]=\"\",\"\",Tableau2[[#This Row],[Date de pièce]]+Tableau2[[#This Row],[Délai de paiement (en jours)]])","v":"2021-01-31"},null,{"$f":"IF(ISBLANK(Tableau2[[#This Row],[Date de pièce]]),0,IF(ISBLANK(Tableau2[[#This Row],[Date de paiement total de la facture ]]),$B$1-(Tableau2[[#This Row],[Date de pièce]]+Tableau2[[#This Row],[Délai de paiement (en jours)]]),\"\"))","v":20},"2021-03-21","2021-04-22","2021-05-23"]
["204011",30,"Mir Capital SA","Avenue Henry Golay 3",null,"1203","Genève",10,"Versement","2020-12-15",null,-350,{"$f":"M8+Tableau2[[#This Row],[Crédit]]-Tableau2[[#This Row],[Débit]]","v":650},"Relance 3",{"$f":"IF(Tableau2[[#This Row],[Date de pièce]]=\"\",\"\",Tableau2[[#This Row],[Date de pièce]]+Tableau2[[#This Row],[Délai de paiement (en jours)]])","v":"2021-01-14"},null,{"$f":"IF(ISBLANK(Tableau2[[#This Row],[Date de pièce]]),0,IF(ISBLANK(Tableau2[[#This Row],[Date de paiement total de la facture ]]),$B$1-(Tableau2[[#This Row],[Date de pièce]]+Tableau2[[#This Row],[Délai de paiement (en jours)]]),\"\"))","v":37}]
["204011",30,"Mir Capital SA","Avenue Henry Golay 3",null,"1203","Genève",1,"Note de crédit","2020-02-12",null,-450,{"$f":"M9+Tableau2[[#This Row],[Crédit]]-Tableau2[[#This Row],[Débit]]","v":200},"Introduction poursuite",{"$f":"IF(Tableau2[[#This Row],[Date de pièce]]=\"\",\"\",Tableau2[[#This Row],[Date de pièce]]+Tableau2[[#This Row],[Délai de paiement (en jours)]])","v":"2020-03-13"},null,{"$f":"IF(ISBLANK(Tableau2[[#This Row],[Date de pièce]]),0,IF(ISBLANK(Tableau2[[#This Row],[Date de paiement total de la facture ]]),$B$1-(Tableau2[[#This Row],[Date de pièce]]+Tableau2[[#This Row],[Délai de paiement (en jours)]]),\"\"))","v":344}]
["204011",30,"Mir Capital SA","Avenue Henry Golay 3",null,"1203","Genève",1234,"Facture","2020-11-15",1000,null,{"$f":"M10+Tableau2[[#This Row],[Crédit]]+Tableau2[[#This Row],[Débit]]","v":1200},{"$f":"IF(Q11<0,\"OK\",IF(Q11=0,\"Ne rien faire\",IF(AND(Q11>0,Q11<=10),\"Relance 1\",IF(AND(Q11>=11,Q11<=30),\"Relance 2\",IF(AND(Q11>31,Q11<=60),\"Relance 3\",IF(AND(Q11>61,Q11<=90),\"Menace de poursuite\",IF(Q11>91,\"Introduction poursuite\")))))))","v":"Menace de poursuite"},{"$f":"IF(Tableau2[[#This Row],[Date de pièce]]=\"\",\"\",Tableau2[[#This Row],[Date de pièce]]+Tableau2[[#This Row],[Délai de paiement (en jours)]])","v":"2020-12-15"},null,{"$f":"IF(ISBLANK(Tableau2[[#This Row],[Date de pièce]]),0,IF(ISBLANK(Tableau2[[#This Row],[Date de paiement total de la facture ]]),$B$1-(Tableau2[[#This Row],[Date de pièce]]+Tableau2[[#This Row],[Délai de paiement (en jours)]]),\"\"))","v":67}]
["204031",30,"Chez Clément","Grand-Rue 33",null,"1618","Châtel-Saint-Denis",12,"Facture","2020-01-21",1000,null,{"$f":"IF(ISERROR(Tableau2[[#This Row],[Débit]]-#REF!),\"\",Tableau2[[#This Row],[Débit]]-#REF!)","v":""},{"$f":"IF(Tableau2[[#This Row],[Solde]]>0,IF(Tableau2[[#This Row],[J+]]>0,\"Relancer\",\"\"),\"\")","v":"Relancer"},{"$f":"IF(Tableau2[[#This Row],[Date de pièce]]=\"\",\"\",Tableau2[[#This Row],[Date de pièce]]+Tableau2[[#This Row],[Délai de paiement (en jours)]])","v":"2020-02-20"},null,{"$f":"IF(ISBLANK(Tableau2[[#This Row],[Date de pièce]]),0,IF(ISBLANK(Tableau2[[#This Row],[Date de paiement total de la facture ]]),$B$1-(Tableau2[[#This Row],[Date de pièce]]+Tableau2[[#This Row],[Délai de paiement (en jours)]]),\"\"))","v":366}]
["322767",30,"ANKAVA Sàrl","Chemin du Risoux 11",null,"1110","Morges",90144657,"Facture","2020-10-31",397.22,null,{"$f":"IF(ISERROR(Tableau2[[#This Row],[Débit]]-#REF!),\"\",Tableau2[[#This Row],[Débit]]-#REF!)","v":""},{"$f":"IF(Tableau2[[#This Row],[Solde]]>0,IF(Tableau2[[#This Row],[J+]]>0,\"Relancer\",\"\"),\"\")","v":"Relancer"},{"$f":"IF(Tableau2[[#This Row],[Date de pièce]]=\"\",\"\",Tableau2[[#This Row],[Date de pièce]]+Tableau2[[#This Row],[Délai de paiement (en jours)]])","v":"2020-11-30"},null,{"$f":"IF(ISBLANK(Tableau2[[#This Row],[Date de pièce]]),0,IF(ISBLANK(Tableau2[[#This Row],[Date de paiement total de la facture ]]),$B$1-(Tableau2[[#This Row],[Date de pièce]]+Tableau2[[#This Row],[Délai de paiement (en jours)]]),\"\"))","v":82}]
[null,null,null,null,null,null,null,null,null,null,{"$f":"SUBTOTAL(109,Tableau2[Débit])","v":4390},{"$f":"SUBTOTAL(109,Tableau2[Crédit])","v":-800},{"$f":"M13+Tableau2[[#This Row],[Crédit]]-Tableau2[[#This Row],[Débit]]","v":{"$error":"#VALUE!"}}]

{"sheet":"Débiteurs","index":2,"n_rows":2154,"n_cols":5,"rows_kept":2154,"cut":false,"hidden":false,"merged":[]}
["N° client","Nom du client","Adresse1","NPA","Ville"]
["106062","Migros Online SA","Chemin du Dévent 11","1024","Ecublens VD"]
["106079","Pitoeuf SA","Route d'Ecône 116","1907","Saxon"]
["106734","Bolay SA","Route des Avouillons 13","1196","Gland"]
["107325","Hôtel Cailler","Gros Plan 28","1637","Charmey (Gruyère)"]
["107374","Ambro Food SA","Via Cantonale","6802","Rivera"]
["108557","Hôtel de Ville Bussigny","Rue de Lausanne 1","1030","Bussigny-Lausanne"]
["108581","CINERIVE SA-Exploitation de cinémas","Rue J.J. Rousseau 6","1800","Vevey"]
["108595","Chef Gourmet Distribution SA","Chemin de Mochettaz 18","1030","Bussigny-Lausanne"]
["108603","Emil Frey SA","Chemin de Closalet 19","1023","Crissier"]
["108605","Fredy's AG","Neuenhoferstrasse 113","5400","Baden"]
["108612","Institution de Laviny","Rte du Vignoble 60","1175","Lavigny"]
["193490","IKEA AG","Grüssenhölzliweg 5","4133","Pratteln"]
["202515","E.M.S Le Châtelet","Rte de Granges 5","1616","Attalens"]
["202518","Fondation Bois-Gentil","Ch. du Petit-Flon 49","1018","Lausanne"]
["202521","Fondation La Venoge","Route de la Vuy 1","1305","Penthalaz"]
["202529","Cuisine RPA","Ch. du Levant 6","1860","Aigle"]
["202532","Fondation Pré-Pariset","Place Neuve 3","1009","Pully"]
["202534","Eldora SA","CP 2443","1211","Genève"]
["202538","Eldora SA","Ch. de la Prairie 11","1007","Lausanne"]
["202541","Eldora SA","Rue Roger de Guimps 41","1400","Yverdon-les-Bains"]
["202543","Eldora SA","Case postale 2443","1211","Genève 2"]
["202547","Eldora SA","Av. de Cour 33","1007","Lausanne"]
["202549","Cuisine RPA","Av. du Midi 2","1890","St-Maurice"]
["202554","Eldora SA","Ch. du Verger 5","1338","Ballaigues"]
["202557","Eldora SA","Av. de Rhodanie 50","1007","Lausanne"]
["202559","Hôtel Aulac","Pl. de la Navigation 4","1007","Lausanne"]
["202562","Cofop","Av. de Valmont 24","1010","Lausanne"]
["202567","Cuisine RPA","Avenue de la vallombreuse 34","1004","Lausanne"]
["202570","Rest. de Dorigny","Case postale 109","1015","Lausanne"]
["202576","Home de l'Intyamon","Route de l'Intyamon 117","1666","Villars-sous-Mont"]
["202579","Clinique La Source","Av. Vinet 30","1004","Lausanne"]
["202581","La Rose des Vents","Rue Nestlé 5","1636","Broc"]
["202584","Prison de Champ-Dollon","Ch. Champ-Dollon 22","1241","Puplinge"]
["202587","Fondation Louis Boissonnet","Ch. de Boissonnet 51","1010","Lausanne"]
["202590","Fondation Eben-Hézer","Ch. du Genévrier 2","1806","St-Légier-La Chiésaz"]
["202596","Le Boccalino","Pl. du Rondeau 4","1227","Carouge GE"]
["202604","EHNV Chamblon","Rue de Plaisance 2","1401","Yverdon-les-Bains"]
["202608","Hôpital de Nyon GHOL","Ch. Monastier 10","1260","Nyon"]
["202611","Fondation de Nant","Route de Nant 15","1804","Corsier-sur-Vevey"]
["202614","EHNV Hôpital Orbe","Rue de Plaisance 2","1401","Yverdon-les-Bains"]
["202620","CHUV","Rue du Bugnon 21","1011","Lausanne"]
["202626","Hôpital du Pays d'Enhaut","Route de l'Hôpital 17","1660","Château-d'Oex"]
["202632","Hôpital \"Riviera\"","Bd Paderewski 3","1820","Montreux"]
["202638","Hôpital de Rolle GHOL","Route de l'Hôpital 26","1180","Rolle"]
["202641","EHNV Saint-Loup","Rue de Plaisance 2","1401","Yverdon-les-Bains"]
["202647","EHNV Yverdon","Rue de Plaisance 2 / CP 554","1401","Yverdon-les-Bains"]
["202653","Fondation Miremont","Avenue Rollier 21","1854","Leysin"]
["202655","Fond.Pôle Santé du Pays-d'Enhaut","Route de l'Hôpital 36","1660","Château-d'Oex"]
["202658","Everness Hôtel & Resort","Chemin des Champs-Blancs 70B","1279","Chavannes-de-Bogis"]
["202663","Cuisine RPA","Rte de St. Saphorin 23","1112","Echichens"]
["202667","Eldora SA","Rue du Collège","1196","Gland"]
["202669","Eldora SA","Rte du Stand 11","1260","Nyon"]
["202672","Cuisine RPA","Rue Nucé 7","1896","Vouvry"]
["202675","Home \"Les Tilleuls\"","Avenue Europe 93","1870","Monthey"]
["202678","Eldora SA","Ch. de Boissonnet 43","1010","Lausanne"]
["202680","Eldora SA","Ch. du Closel 15","1020","Renens VD"]
["202684","Café d'Avusy","Rte d'Avusy 16 B","1285","Athenaz (Avusy)"]
["202687","Perusset SA","Ch.des Ducats 2","1350","Orbe"]
["202690","Hesspo Sàrl","Rue de Favilly 17","1316","Chevilly"]
["202698","Cuisine RPA","Av. d'Aïre 89","1203","Genève"]
["202700","Live Catering Sàrl","Rte de Vessy 31","1234","Vessy"]
["202703","La Molardière Sàrl","Place du Molard 9","1204","Genève"]
["202705","Cuisine RPA","Rue Louis Curval 5","1206","Genève"]
["202709","Bonfrais Bongel Frigemo SA","Rte de Reculan","1024","Ecublens VD"]
["202711","Hôpitaux Universitaire Genève","Ch. Petit Bel-Air 2","1225","Chêne-Bourg"]
["202716","Taverne Les Brasseurs SA","Place Cornavin 20","1201","Genève"]
["202718","Maison Retraite Pt-Saconnex","Av. Trembley 12","1209","Genève"]
["202723","Foyer Clair Bois Pinchat","Chemin Henri Baumgartner 5","1234","Vessy"]
["202726","Cuisine RPA","Rue Jacques-Dalphin 34","1227","Carouge GE"]
["202728","Etablissements publics","Service des finances","1208","Genève"]
["202732","Cuisine RPA","Ch. Pré-du-Couvent 1bis","1224","Chêne-Bougeries"]
["202735","La Tour Hôpital Privé SA","Avenue Jacob Daniel Maillard 3","1217","Meyrin"]
["202737","Hôpitaux Universitaires de Genève","Chemin Petit Bel-Air 2","1225","Chêne-Bourg"]
["202741","Cuisine Scolaire Eaux-Vives","Rue des Eaux-Vives 84-86","1207","Genève"]
["202743","Résidence la Louvière SA","Rte de la Louvière 18","1243","Presinge"]
["202745","Maison Retraite Pt-Saconnex","Av. Trembley 12","1209","Genève"]
["202748","Cuisine RPA","Rue Fort-Barreau 19","1201","Genève"]
["202750","Eldora SA","Ch. Parfumerie 5","1214","Vernier"]
["202752","Caran d'Ache Eldora","Ch. du Foron 19  BP 169","1226","Thônex"]
["202755","Eldora SA","Rte de Pré-Bois 17","1215","Meyrin"]
["202760","Collège & Ecole E.Gourd","Rue Le Corbusier 15","1208","Genève"]
["202763","Auberge de Savièse","Rue des Pâquis 20","1201","Genève"]
["202765","Etablissements publics","Service des finances","1208","Genève"]
["202769","Piscine de Carouge Buvette","Route de Chancy 76","1213","Onex"]
["202776","Cuisine RPA","Ch. Frank Thomas 104","1223","Cologny"]
["202778","Cuisine RPA","Rue Moillebeau 1","1209","Genève"]
["202780","Cuisine RPA","Chemin de la Vendée 1","1213","Lancy"]
["202782","Eldora SA","Rue de Livron 2","1217","Meyrin"]
["202784","Cuisine RPA","Rue de la Terrassière 7","1207","Genève"]
["202786","Restaurant Le Nant d'Avril","Rte  Nant d'Avril 107","1217","Meyrin"]
["202792","Road-Runner SA","Route du Chêne 63","1208","Genève"]
["202794","Buffet de la Gare","Route de la gare 8","1660","Château-d'Oex"]
["202796","Restaurant La Pêcherie","Rte de la Plage 35","1165","Allaman"]
["202799","Spaghetti's Factory","Rue de la Fontaine 13","1204","Genève"]
["202801","Restaurant Scolaire de L'Europe","Avenue d'Aïre 42","1203","Genève"]
["202804","M. Pierre Loepthien","Rte du Léman 14","1906","Charrat"]
["202807","Distrigel","Rte de Lavigny 18","1163","Etoy"]
["202816","Restaurant des Lacustres Sàrl","Rte des Lacustres 22","1470","Estavayer-le-Lac"]
["202819","Le Château de Paudex Sàrl","Rte du Simplon 7","1094","Paudex"]
["202821","Garderie Montelly","Ch. de Montelly 13","1007","Lausanne"]
["202823","Hôtel du Port","Place du Port 5","1006","Lausanne"]
["202825","Le Chemin de Fer","Place St-Etienne 4","1510","Moudon"]
["202827","Chinatown","Rue grand Saint Jean 1","1003","Lausanne"]
["202829","Café du Jura","Rue Famenan 1","1446","Baulmes"]
["202831","La Grosse Pierre","Ch. Grosse-Pierre 3","1110","Morges"]
["202834","La Croix-Blanche","Grand-Rue 22","1315","La Sarraz"]
["202837","Auberge de la Fleur de Lys SA","Rte de Neuchâtel 73","1008","Prilly"]
["202839","Restaurant La Croix d'Or","Route de Gruyère 41","1660","Les Moulins"]
["202842","Restaurant Le Pécos VD 24","Rue Pécos 2","1422","Grandson"]
["202845","Buvette de l'Arsat","Chemin de Praz Cornet","1862","Ormont-Dessous"]
["202848","L'Arlequin","ZI Vallaire Ouest C","1024","Ecublens VD"]
["202851","GRAAP","Rue de la Borde 25","1002","Lausanne"]
["202859","Boucherie des Uttins Sàrl","Rue des Uttins 22","1400","Yverdon-les-Bains"]
["202861","M. Daniel Luthi","Grand-Rue 39","1315","La Sarraz"]
["202863","Café du Raisin Begnins SA","Grand-Rue 26","1268","Begnins"]
["202865","M. Reynald Bétrisey","Avenue de la Gare 9","1964","Conthey"]
["202868","M. Philippe Grange","","1268","Begnins"]
["202873","M. Walter Roth","Grand-Rue 33","1095","Lutry"]
["202875","La Fontanelle","Bvd. St-Martin 12","1800","Vevey"]
["202880","M. Luc Balet","Route d'Ayent","1971","Grimisuat"]
["202883","Restel Montreux SA","Grand-Rue 58","1820","Montreux"]
["202888","M. Prélaz Norbert","Sous l'Eglise","1272","Genolier"]
["202891","M. Grégoire Dubuis","Rue de Plandodin 67","1965","Savièse"]
["202894","M. Christian Meylan","Rue du Centre 56","1025","St-Sulpice VD"]
["202896","M. Denis Vuissoz","Ch. de Sau","1038","Bercher"]
["202899","Institut le Rosey","Château du Rosey","1180","Rolle"]
["202904","Estevez Ramon","Bd Helvetique 29","1207","Genève"]
["202907","Macrysta SA","Rue Delafléchère 2","1260","Nyon 1"]
["202913","M. Bühlmann Olivier","Grand-Rue 7","1350","Orbe"]
["202916","Boucherie Erard","Av. centrale 45","1885","Chesières"]
["202921","M. Plancherel Daniel","Grand-Pont 2 A","1350","Orbe"]
["202924","EHNV Hôpital La Vallée","Rue de Plaisance 2","1401","Yverdon-les-Bains"]
["202927","Pôle Santé de la Vallée de Joux","Rue de l'Hôpital 3","1347","Le Sentier"]
["202930","Boucherie Favre et S. Sierro","Rue de l'Eglise 28","1987","Hérémence"]
["202933","M. Pascal Ruchet","Rue Louis Favez","1854","Leysin"]
["202935","M. Stève Crettaz","Rte de Botyre 32","1966","Ayent"]
["202938","Boucherie Chez Fabrice Vouillamoz","Rte de Fully 7","1913","Saillon"]
["202943","M. Daniel Brunisso","Grand-Rue 51","1347","Le Sentier"]
["202948","Bruno Clerc Sàrl","Rue de l'Eglise 88","1680","Romont FR"]
["202951","Deillon Maîtres-Artisans Bouchers S","Grand-Rue 29","1680","Romont FR"]
["202954","SEGHOR SA","Grand'Rue 81","1820","Montreux"]
["202956","Boucherie Traiteur","Rte du Village 5","1807","Blonay"]
["202958","Rendez-Vous","Grand-Rue 30","1268","Begnins"]
["202959","Divers Clients Comptants","","1024","Ecublens VD"]
["202963","Soreta Sàrl","Grand-Rue 22","1009","Pully"]
["202965","Eldora SA","Route des Aviateurs","1950","Sion"]
["202968","Afiro (Ass.)","Av. de Provence 22","1007","Lausanne"]
["202970","Seven-Café JMA Sàrl","Rue du Lac 35","1400","Yverdon-les-Bains"]
["202972","M. Serge Girardin","Av. du Marché 2","3960","Sierre"]
["202974","Rest. La Croix Blanche","Rte Cantonale 19","1077","Servion"]
["202980","M. Gaston Huber","Rue du Midi 18","1860","Aigle"]
["202982","Pizzeria","Av. du Mont-Blanc 33","1196","Gland"]
["202984","Eldora SA","Ave de Béthusy 7","1005","Lausanne"]
["202989","Cuisine RPA","Rte d'Aire-la-Ville 219","1242","Satigny"]
["202992","Eldora SA","Av. du Technicum 38","2400","Le Locle"]
["202994","Gestion Hôtelière Ming SA","Place de la Gare 4","1800","Vevey"]
["202996","Pizzeria Le Capri Sarl","RUE DU PONT 2","1870","Monthey"]
["202999","Fondation Crêt-Bérard","Chemin de la chapelle 27","1070","Puidoux"]
["203005","A & B Resto Sàrl","Place de la Gare","1884","Villars-sur-Ollon"]
["203007","Eldora SA","Chemin des Colombettes 34","1202","Genève"]
["203012","Boucherie de la Gare Sàrl","Rue de la Gare 15","1030","Bussigny-Lausanne"]
["203014","Restaurant la Poste","Rue du Village 3","1055","Froideville"]
["203017","Hôtel Les Négociants Sàrl","Rue du Conseil 27","1800","Vevey"]
["203020","Pôle Santé du Pays-d'Enhaut","Route de l'Hopital 17","1660","Château-d'Oex"]
["203023","Hôpital Riviera-Chablais","Bvd de Paderewski 3","1800","Vevey"]
["203029","Fondation La Ruche","Chemin du Lavasson 37","1196","Gland"]
["203032","Hôpital de Prangins-CHUV","Chemin Oscar Forel 3","1197","Prangins"]
["203037","EHL Hospitality Service SA","Rte de Cojonnex 18","1000","Lausanne 25"]
["203042","La Croix Blanche Sàrl","Place de la croix blanche 9","1066","Epalinges"]
["203047","Fondation Les Châteaux","Rue du Château 5","1376","Goumoens-la-Ville"]
["203050","Les Brasseurs SA Lausanne","Rue Centrale 4","1003","Lausanne"]
["203053","Cafétéria du Centre Patronal","Rue du Lac 2","1094","Paudex"]
["203056","Eldora SA","Rue Centrale","1884","Villars-sur-Ollon"]
["203059","Maison de Vessy - EMS","Ch. des Beaux-Champs 7","1234","Vessy"]
["203062","Eldora SA","Ch. de Rovéréaz 20  CP 161","1012","Lausanne"]
["203068","Cuisine RPA","Rte de Vallon 16","1224","Chêne-Bougeries"]
["203073","Hôtel Les Sources","Ch. du Vernex 9","1865","Les Diablerets"]
["203075","AccorInvest Switzerland SA","Rte de Condémine 35","1030","Bussigny-Lausanne"]
["203078","Guetan Hôtels SA","Rue de Zurich 19","1201","Genève"]
["203081","Tennis-club SIG","Ch. de la Montagne 160","1224","Chêne-Bougeries"]
["203083","Rest. de TESA SA","Rue du Bugnon 38","1020","Renens VD"]
["203088","Restaurant du Lac Lioson","Chemin du Lioson 1","1862","Ormont-Dessous"]
["203091","Rest. Universitaires","Case postale 109","1015","Lausanne"]
["203097","CBM Boucherie-Charcuterie","Rte de Satigny 56-Quai n°1","1242","Satigny"]
["203104","Boucherie de la Venoge Sàrl","Route de Morges 23","1304","Cossonay-Ville"]
["203107","Auberge de l'Etoile","Chemin du Four","1266","Duillier"]
["203110","Restaurant Les Brasseurs","Rue de la Gare 18","1260","Nyon"]
["203116","Hôtel & Gastro Formation VAUD","Av. Général-Guisan 42A","1009","Pully"]
["203118","La Brasserie des Sauges","C.C. du Pont des Sauges","1018","Lausanne"]
["203122","La Croix-Blanche","Route du Turlet 2","1041","Poliez-Pittet"]
["203125","Cuisine RPA","Rue du Couchant 15","1248","Hermance"]
["203126","Télé-Rest. Management SA","Rte de Chancy 76","1213","Onex"]
["203129","Autos Carrefour Dorigny","Route Cantonale 1","1022","Chavannes-Renens"]
["203131","Eldora SA","Ch. de Rovéréaz 25","1000","Lausanne 12"]
["203136","La Lagune","Route de la plage 122","1897","Port-Valais"]
["203139","Eldora SA","Ch. De Champittet","1009","Pully"]
["203145","Sàrl Lavaux Clubhouse","Chemin du tolovaux 12","1070","Puidoux"]
["203147","Madame Madeira Rosa","Rte de Thonon 275","1246","Corsier GE"]
["203149","Mairie de Corsier","Rte du Lac 70","1246","Corsier GE"]
["203154","Samvaz SA","Rte de Pra de Plan 25","1618","Châtel-St-Denis"]
["203156","Cuendet Shop","Avenue Haldimand 81","1400","Yverdon-les-Bains"]
["203161","Ecole Catholique du Valentin","Av. du Valentin 7","1004","Lausanne"]
["203164","FC Cheseaux","Case postale 16","1033","Cheseaux-Lausanne"]
["203170","Au Fumoir Paysan","Rue du Levant 173","1920","Martigny"]
["203173","Marché Jaymes","Place Barboleuse 7","1882","Gryon"]
["203175","Les 5 Portes","Rue de Zürich 8","1201","Genève"]
["203180","Boucherie du Gymnase","Case postale 27","1009","Pully"]
["203182","Laiterie des Bossons","Grand-Rue 117","1660","Château-d'Oex"]
["203185","Picholine","Ch. du Levant 159 A","1005","Lausanne"]
["203191","Chalet Savigny","Ch. de la Montagne 51-53","1224","Chêne-Bougeries"]
["203194","La Plage","Ch. de la Falaise 3","1196","Gland"]
["203196","Foyer Haut de Cry","Rue du Moulin 16","1963","Vétroz"]
["203198","Association le Cerf-volant","Case postale 16","1162","St-Prex"]
["203202","Fondation Home St-Sylve","Route de Sion 11","1981","Vex"]
["203204","Saveurs et Couleurs","Rue des Grottes 24","1211","Genève 2"]
["203209","Novae Restauration SA","Ch. Gérard-de-Ternier 18","1213","Petit-Lancy"]
["203211","Novae Restauration SA","Ch. de la Montagne 81","1224","Chêne-Bougeries"]
["203214","Novae Restauration SA","Rue Général-Dufour 24","1204","Genève"]
["203217","Novae Restauration SA","Boulevard du pont de l'arve 40","1205","Genève"]
["203220","Novae Cern 1","Route de Meyrin","1217","Meyrin"]
["203225","Novae Restauration SA","Rte de Jussy 15","1225","Chêne-Bourg"]
["203227","Novae Restauration SA","R. Moïse-Marcinhes 7","1217","Meyrin"]
["203229","Espace Carpe Diem","Avenue de Montoie 41","1007","Lausanne"]
["203231","Garage Elite, J-P.Kehrli Sàrl","Route d'Allaman 106","1170","Aubonne"]
["203234","Fondation Echaud","Chemin des Esserts 16","1053","Cugy VD"]
["203237","Novae Restauration SA","Rue des bergeres 7","1217","Meyrin"]
["203243","Fondation Castel Notre-Dame","Rue des Artifices 14","1920","Martigny"]
["203246","Séminaire St-Pie X","Chemin du Séminaire 5","1908","Riddes"]
["203254","Pathé Romandie","Rue du Petit-Chêne 27","1003","Lausanne"]
["203257","Camping Le Bivouac","Rte des Paccots 21","1618","Châtel-Saint-Denis"]
["203260","Pathé Rex","Rue de Genève 17","1003","Lausanne"]
["203266","Cinéma Pathé Flon","Rue du Petit-Chêne 27","1003","Lausanne"]
["203271","Auberge du Lion d'Or","Grand-Rue 38","1680","Romont FR"]
["203274","Le Rivage Chez Monmon","Quai Isaac de Rivaz","1898","St-Gingolph"]
["203276","Cuisine Scolaire de Vernier","Rue François Durafour 17","1220","Les Avanchets"]
["203278","Novae Restauration SA","Av. du Petit-Lancy 37","1213","Petit-Lancy"]
["203280","Novae Restauration SA","Bvd. des Promenades 18","1227","Carouge GE"]
["203282","Novae Restauration SA","Rte de Chêne 62","1208","Genève"]
["203285","Boucherie Tâche-Monnard","Rue de Lausanne 7","1800","Vevey"]
["203287","Tabac Epicerie 28 Ahamdi","Rte de Lausanne 28 bis","1201","Genève"]
["203292","Eldora SA","de Vacheron Constantin","1228","Plan-les-Ouates"]
["203298","Secteur petite enfance Dumas","Av. Dumas 24","1206","Genève"]
["203304","Pizzeria Napoli","En Bovery D","1868","Collombey-Muraz"]
["203310","Fondation Beau-Site","Ch. de Crépon 32","1815","Clarens"]
["203315","Le Pré aux Moines Sàrl","Pré aux Moines 8","1304","Cossonay-Ville"]
["203317","Auberge communale","Place du Pont 3","1337","Vallorbe"]
["203319","Les Glycines Nyon SA","Ch. des Plantaz 56","1260","Nyon"]
["203321","Restaurant du Chasseur","Route Suisse","1165","Allaman"]
["203324","Hôtel \"Portes du Soleil\" SA","Ch. du Tunnel 2","1873","Les Crosets"]
["203326","Restaurant \"Le Motty\"","Place du Motty 6","1024","Ecublens VD"]
["203329","Sultan-Kebab","Rue Caroline 6","1005","Lausanne"]
["203332","Fond. les Eglantines","Av. de la Prairie 26","1800","Vevey"]
["203337","La Poularde","Rte de Fribourg 28","1680","Romont FR"]
["203339","Auberge de Dardagny","Route du mandement 502","1283","Dardagny"]
["203342","Foyer Saint-Germain","Rue du Château 3","1663","Gruyères"]
["203344","Terrasse St-Georges","Rte de St-Georges 73","1213","Petit-Lancy"]
["203347","Fondation l'Oriel","Rue du Simplon 8","1020","Renens VD"]
["203349","Carole Marmier Sàrl","Route de Châtonnaye","1691","Villarimboud"]
["203353","Café-Restaurant Le Boisy","Ch. du Boisy 41","1004","Lausanne"]
["203357","Fondation de l'Orme","Plaines-du-Loup 4A","1018","Lausanne"]
["203359","La Bourdonnette","Rte de Chavannes 201","1007","Lausanne"]
["203362","FOVAHM","Rue de la Gare","1868","Collombey"]
["203364","La Farandole","Rue Louis Favez 13","1854","Leysin"]
["203367","Café Restaurant","Rte de France 35","1875","Morgins"]
["203369","Résidence La Colline","Ch. de Baulet 20","1071","Chexbres"]
["203372","Auberge des Jurats","Route des Jurats 39","1337","Vallorbe"]
["203374","Restaurant La Croix d'Or","Rue de la Croix d'Or","1084","Carrouge VD"]
["203377","Fondation Prerisa","Allée Prérisa 1","1522","Lucens"]
["203380","Novae Restauration SA","Ch. Pont du Centenaire 113","1228","Plan-les-Ouates"]
["203382","EMS Joli-Bois","Rte de Joli-Bois 10","1832","Montreux"]
["203387","Restaurant Churrasco","Rue de Bourg 51","1003","Lausanne"]
["203389","EMS Home Méd. Les Lilas","Rue des Vuarines 17","1564","Domdidier"]
["203391","Hôtel de Ville","Pl. de l'Hôtel de Ville","1867","Ollon VD"]
["203393","Café Rest. Zur Hochmatt","Hauptstrasse 108","1656","Jaun"]
["203396","Mojon SA","Rue du Flon","1145","Bière"]
["203398","Restaurant du Lac","Sur-les-Quais 47","1342","Le Pont"]
["203400","Hôpital de la Riviera","Av. de la Prairie 3","1800","Vevey"]
["203402","Cuisine Scolaire de Plainpalais","Rue Rodo 3","1205","Genève"]
["203404","Zoo de Servion SA","Chemin du Zoo 1","1077","Servion"]
["203406","Zoo de Servion SA","Chemin du zoo 1","1077","Servion"]
["203409","Fondation Primeroche","Rue des Métiers 3","1008","Prilly"]
["204222","Rest. de l'Aigle Noir","Ch. des Cerisiers 2","1740","Neyruz FR"]
["204228","Home Atelier","Ch. en Vily 9","1670","Ursy"]
["204231","Switel SA","Place du Molard 5","1204","Genève"]
["204234","Starpel Sàrl","Rte de la Gruyère 93","1648","Hauteville"]
["204236","La Clairière","Rte de St-Cergue 11","1295","Mies-Tannay"]
["204238","CSS SA Leysin","Av. des Alpes 27","1820","Montreux"]
["204243","Les Chalets des Mosses SA","Le Relais Alpin","1862","Les Mosses"]
["204249","Club Nautique","Place de la navigation 1","1110","Morges"]
["204252","DDAJ Sàrl","Av. de Billens 2","1510","Moudon"]
["204254","Novae Restauration SA","Chemin de Bellerive 23","1007","Lausanne"]
["204259","Novae Restauration SA","Rue François-Dussaud 3","1227","Genève 26"]
["204264","Centre sportif du Varembé","Av. Giuseppe-Motta 46","1202","Genève"]
["204266","Kiosque du Carrefour","Ch. des Pépinières 1","1020","Renens VD"]
["204268","M. Schneider Claude-Alain","Ch. Du Pérou 11","1436","Treycovagnes"]
["204272","BP Service Bussigny","Rte de Crissier 6","1030","Bussigny-Lausanne"]
["204274","BP Service Renens","Rte de Renens 6","1030","Bussigny-Lausanne"]
["204276","BP Service Moudon","Rte Cantonale 601","1510","Moudon"]
["204279","Tabacs des Augustins","Pl. des Augustins 1","1205","Genève"]
["204282","Colonia libera italiana","Avenue de la Gare 15","1870","Monthey"]
["204284","Fondation Institution","Route du Vignoble 60","1175","Lavigny"]
["204286","Boucherie Champel Sàrl","Av. Alfred-Bertrand 6","1206","Genève"]
["204289","Boréal Coffee Company Sàrl","Rue du Stand 60","1204","Genève"]
["204295","Promoviande","Rue des Hirondelles 2","1374","Corcelles-Chavorn"]
["204297","O BOM GOSTO","Rue de Chêne-Bougeries 39","1224","Chêne-Bougeries"]
["204303","FC Stade Lausanne-Ouchy","Case postale 1358","1001","Lausanne"]
["204309","Restaurant Vieux Bois SA","Av. de la Paix 12","1202","Genève"]
["204311","Résidence Les Tilleuls","Rue de Moillebeau 1","1209","Genève"]
["204313","Restaurant Novae","La Tuilière 6","1163","Etoy"]
["204316","Walter Meier (Klima Schweiz) AG","Bahnstr. 24","8603","Schwerzenbach"]
["204321","Eldora SA","Ch. des Perrières 2","1296","Coppet"]
["204326","Boucherie chez Robert","Avenue de la gare 38A","1906","Charrat"]
["204329","Food4Pleasure Sàrl","Cours de Rive 11","1204","Genève"]
["204332","Marché du Vignoble","Route d'Avenches 22","1585","Salavaux"]
["204338","Camping du Lac de Joux","Ch. Le Rocheray 37","1347","Le Sentier"]
["204341","Greenrest","Chemin du Marais 1","1032","Romanel-s-Lausanne"]
["204343","Novae Restauration SA","Rte de la Capite 91-93","1223","Cologny"]
["204345","Restaurant Le Signal","Rue de Bernex 335","1233","Bernex"]
["204348","Brasserie de Chailly","Ch. de Rovéréaz 5","1012","Lausanne"]
["204350","Zahmatte SA","Cours de Rive 4","1204","Genève"]
["204352","SHELL VALMONT","Rte d'Oron 37","1010","Lausanne"]
["204354","Epicerie du Coin","Ch. des Allinges 2","1006","Lausanne"]
["204357","Wolfisberg Boulangerie","Pl. du Temple 5","1227","Carouge GE"]
["204359","Restostep SA","Case postale 98","1000","Lausanne 16"]
["204364","CSS SA","Av. des Alpes 27","1820","Montreux"]
["204369","Station Tamoil FKPAR Sàrl","Rte des Jeunes 8","1227","Carouge GE"]
["204371","ORIF Intégration et","Ch. du Chêne 5","1020","Renens VD"]
["204374","Eldora SA","Rte des Laminoirs 15","3960","Sierre"]
["204377","Restaurant de l'Alchimiste Sàrl","Rue Centrale 110","1884","Villars-sur-Ollon"]
["204388","Hôpital de Morges","Chemin du Crêt 2","1110","Morges"]
["204390","Café, Restaurant","Rue Prévost-Martin 31","1205","Genève"]
["204392","Mülhaupt & Cie SA","Route de la Charbonnière 1","1032","Romanel-s-Lausanne"]
["204394","Lotos d'Etoy","Rte du Clos-de-Bière 10","1163","Etoy"]
["204398","Rest. La Chope d'Or","En Felezin","1032","Romanel-sur-Lausanne"]
["204401","JURAPARC SA","Route de la Vallée 3","1337","Vallorbe"]
["203411","Station Shell Migrolino","Rte de St. Julien 295","1258","Perly"]
["203413","Vapo-Premium Sàrl","Rue de Livron 17","1217","Meyrin"]
["203415","BP Service Grd-Saconnex","Rte de Ferney 187 & 204","1218","Le Grand-Saconnex"]
["203417","Jumbo-Markt AG, Dietlikon","Chemin Industriel","1279","Chavannes-de-Bogis"]
["203419","Buvette Amis Bouliste","Parc des Sports","1110","Morges"]
["203424","Cafétéria de L'Orme","Plaines du Loup 4 A","1018","Lausanne"]
["203427","Force 5 Ecole de voile","Ch. de Chambésy 31","1292","Chambésy"]
["203432","Piscine le Smash","Ch. de la Berne 5","1217","Meyrin"]
["203434","Home de Zambotte","Granois","1965","Savièse"]
["203437","La Chenille","Av. de Cour 16","1007","Lausanne"]
["203440","Station Shell","Rue des Fléchères 9","1274","Signy"]
["203443","Musée Romain de Vallon","Carignan 6","1565","Vallon"]
["203446","Eurotel Victoria SA","Ch. du Vernex 3","1865","Les Diablerets"]
["203453","Foyer Saint-Joseph","Route de Fribourg 54","1634","La Roche FR"]
["203459","Rest. Pizzeria L'Expo","En Chamard","1442","Montagny-Yverdon"]
["203461","Novae Restauration SA","Route de Châtaigneriaz 3","1297","Founex"]
["203463","Restaurant E-Wok","Route des Jeunes 10","1212","Grand-Lancy"]
["203466","Café du Centre","Rue du Centre 16","1009","Pully"]
["203469","Eldora SA","Avenue du Petit-Chasseur 41","1950","Sion"]
["203471","Eldora SA","Rte d'Aïre la ville 219","1242","Satigny"]
["203476","Novae Restauration SA","Rte des Morillons 11","1218","Le Grand-Saconnex"]
["203478","BP-Service Pully","Av. de Lavaux 38","1009","Pully"]
["203481","M. Barrière Martial","Rue Neuve 3","1450","Ste-Croix"]
["203483","Gonul Mehmet","Rue des Pitons 15","1205","Genève"]
["203486","Restaurant aux 3 Sapins","Chemin du Collège 12","1040","Echallens"]
["203489","Demaurex & Cie S.A.","Avenue de la Concorde 6","1022","Chavanne-près-Renens"]
["203494","Rest. La Canette","Centre Commercial MMM","1023","Crissier"]
["203497","Manor AG Ray. 71","Rue de la Gare 35","1260","Nyon 1"]
["203502","Cuisine RPA","Chantre aux Daims","1143","Apples"]
["203504","Station Shell","Rue Michel Servet 17","1206","Genève"]
["203506","Epicerie Alimentation - Mendes &","Chemin de Pont-Céard 12","1290","Versoix"]
["203508","La Fourmi Provençale","Rue des Laurelles 5","1304","Cossonay-Ville"]
["203510","Pam Partner 911","Grand-Rue 35 A","1680","Romont FR"]
["203513","Boulangerie-Pâtisserie","Rue de l'Ancienne Forge 9","1304","Senarclens"]
["203518","Station Shell Migrolino","Rue Montbrillant 67","1202","Genève"]
["203520","Rest. Le Thai Jing","Grand Rue 5","1530","Payerne"]
["203523","Eldora Traiteur SA","Chemin du Presbytère 2","1004","Lausanne"]
["203529","Casino de Montreux SA Cuisine","Rue du Théâtre 7B","1820","Montreux"]
["203532","Giuseppe Milone Sàrl","Rte de Divonne 2","1279","Chavannes-de-Bogis"]
["203534","Rest. de la Tour-de-Gourze","Route de la Tour de Gourze 26","1097","Riex"]
["203536","Rest. La Fontaine","Ch. des Grands-Buissons 5","1233","Bernex"]
["203540","Tabacs Journaux Epicerie","Pl. du Petit-Saconnex 7","1209","Genève"]
["203543","M. Zaugg Claude","Rue du Village 8","1882","Gryon"]
["203545","M. Hashemi Lima","Route de la Maladière 10","1022","Chavannes-Renens"]
["203548","Migrol Shop Vionnaz","Route du Simplon","1895","Vionnaz"]
["203551","Mme Nicole Dubuis","Grand Rue 81 - CP 183","1660","Château-d'Oex"]
["203556","Marché de l'Etraz","Rte de l'Etraz 52","1260","Nyon"]
["203558","Kiosque Parc Valency","Av. d'Echallens 91","1004","Lausanne"]
["203561","Restaurant de la SNG","Quai de Cologny 3","1223","Cologny"]
["203563","Trattoria Antica","Rue Marterey 11","1005","Lausanne"]
["203568","Le Réfectoire","Rue Rotschild 22","1202","Genève"]
["203570","Restaurant Le Cygne","Route des Grèves 16","1544","Gletterens"]
["203573","Kiosque de la Corniche","Pl. du Nord 6","1071","Chexbres"]
["203575","Marché Gaillard","Route de La Gruyère 10","1723","Marly"]
["203578","PTA Kermesse","Rte de Chêne 62","1208","Genève"]
["203583","Pause Café SA","Rte de Fribourg 15","1723","Marly"]
["203585","Pause Café SA","Chemin du Croset 1-3","1024","Ecublens VD"]
["203587","Pause Café SA","Route de Cossonay 28","1008","Prilly"]
["203590","Pause Café SA","Rue de la Gare 19","1110","Morges"]
["203592","Pause Café SA","Rue de Carouge 64","1205","Genève"]
["203595","EMS Foyer de Bouleyres","Case Postale 428","1630","Bulle"]
["203603","Andorinhas Sàrl","Av. de Morges 47","1027","Lonay"]
["203606","Eldora SA","Ch. du Stade 7","1007","Lausanne"]
["203608","PAM Le Marché","Av. des Alpes 29","1820","Montreux"]
["203610","GRAAP Administration","Chemin de la Borde 25","1002","Lausanne"]
["203615","Cuisine Scol. Plantaporrêts","R. des Plantaporrêts 1Bis","1205","Genève"]
["203621","Belmarenda SA","Route de Foliaz 97","1257","Bardonnex"]
["203626","Shell Acacias","Route des Acacias 41","1227","Carouge GE"]
["203628","Shell Les Libellules","Avenue de l'Ain 5","1219","Vernier"]
["203631","Restaurant Zhong Tong","Rue du Cendrier 10","1201","Genève"]
["203633","Station Avia","Route Blanche 1","1274","Signy"]
["203636","Auberge Communale","Rte du Village 3","1082","Corcelles-le-Jorat"]
["203644","Boschung SA","Rte de l'Intyamon 328","1663","Epagny"]
["203650","L'ORANGERAIE","Rte de Cheseaux 1","1400","Yverdon-les-Bains"]
["203655","Buvette des Obasseires","Ch. du Champ de l'Eglise 66","1611","Le Crêt-p-Semsales"]
["203658","Fondation St-Georges","Campagne St-Georges","1400","Yverdon-les-Bains"]
["203664","Auberge La Charrue","Place du Village","1261","Le Vaud"]
["203666","Novae Restauration SA","Rte des Acacias 60","1211","Genève 73"]
["203671","Restaurant La Versoix","Rue du Grand Pré 26","1299","Crans-près-Céligny"]
["203673","Américan Market","Rue de Neuchâtel 13","1201","Genève"]
["203675","Shell Malley","Ch. du Viaduc 1","1008","Prilly"]
["203676","M. Pous Nicolas","en reculan","1024","Ecublens VD"]
["203681","Skorcom SA","Rue du Temple 10","1530","Payerne"]
["203686","Fondation Horizon Sud","Route de la Rotonde 25","1633","Marsens"]
["203691","Novag SA","Case postale 6471","1211","Genève"]
["203695","Au panier du Diablerain","Rte d'Outre-Rhône 24","1905","Dorénaz"]
["203698","Restaurant du Tennis Club","Chemin des Frênes 2","1260","Nyon"]
["203701","Epicerie le Dépanneur","Rue Voltaire 4 Bis","1201","Genève"]
["203704","Au Château Pizzeria-Restaurant","Rue des Granges 2","1470","Estavayer-le-Lac"]
["203710","Cuisine RPA","Place de l'eglise 5","1625","Sâles (Gruyère)"]
["203715","Kiosque du Tunnel","Rue centrale 26","1003","Lausanne"]
["203720","Rest. du Casino","Rue du Port 15","1180","Rolle"]
["203722","Cuisine RPA","Rue Centrale 57","1776","Montagny-la-Ville"]
["203724","Novae Restauration SA","R. des Caroubiers 7","1227","Carouge GE"]
["203726","Camping du Bois-de-Bay","Rte du Bois-de-Bay 19","1242","Satigny"]
["203729","Novae Restauration SA","Rte de Chèvres 29","1233","Bernex"]
["203731","Café de la Poste","Route de Bottens 2","1053","Cugy VD"]
["203733","Restaurant La Cambuse","Route de Moratel 8","1096","Bourg-en-Lavaux"]
["203737","M. Jean-Daniel Gallay","Chemin des rochettes 2","1185","Mont-sur-Rolle"]
["203740","Mono Tabacs Journaux","Av. Bois-de-la-Chapelle 106","1213","Onex"]
["203742","Epicerie des Layeux","Route des Layeux","1885","Chesières"]
["203745","Alimentation Générale","Rue d'Yverdon 7","1023","Crissier"]
["203748","Buvette Camping des Iris 2","Av. Général Guisan 50","1400","Yverdon-les-Bains"]
["203754","Curry Haus GmbH","Place Notre Dame 4","1700","Fribourg"]
["203757","Epicerie Tea Room","Route de l'Étraz 1","1184","Luins"]
["203759","Novae Restaurant Sécuritas","Chemin de Bérée 52","1010","Lausanne"]
["203762","Ch'Etoy","Rue de l'Industrie 10","1163","Etoy"]
["203767","Marché des Moulins Sàrl","Case postale 16","1400","Yverdon-les-Bains"]
["203771","Ski Club Rolle","Case postale 1035","1180","Rolle"]
["203775","BP-Service Blécherette","Avenue du Grey 119","1018","Lausanne"]
["203777","BISA Boul. Industrielle SA","Route de Thonon 154","1222","Vésenaz"]
["203782","Tricycles à glaces Tonio","Chemin du Chenaillon 4","1343","Les Charbonnières"]
["203788","Ateps-Os Amigos Portugal Sarl","Chemin des Gardes de Nuit 62","1950","Sion"]
["203791","Mme Jacquet Marie-France","Rte de Combremont 5","1536","Combremont-Petit"]
["203797","HUG Les Bains de Cressy","Rte de Loëx 99","1232","Confignon"]
["203800","DSG SA","Rue de Lausanne 43","1030","Bussigny-Lausanne"]
["203806","Café Délice Centre Conforama","Route de Genève 5","1030","Bussigny-Lausanne"]
["203809","Rebellions Motors SA","Chemin des Mésanges 2","1032","Romanel-Sur-Lausanne"]
["203811","Gangi Anne-Marie","ch. de Chantemerle 19","1010","Lausanne"]
["203816","Restaurant des Cluds","Les Cluds 19","1453","Bullet"]
["203817","Assoc. Suisse pers. boucherie","Rue du Village 3","1121","Bremblens"]
["203819","Alimentation Diogo","Rue de Palud 7","1630","Bulle"]
["203822","Arena Cinémas Fribourg","Avenue de la Gare 22","1700","Fribourg"]
["203827","Restaurant Chalet Binii","Route du Mayen de la Zour","1965","Savièse"]
["203829","Restaurant Le Perron","Rue du Perron 5","1204","Genève"]
["203832","Magasin Alimentation Laura","Rue Reichlen-Scioberet 64","1630","Bulle"]
["203835","Tabacs Boissons Ariana","Rue de Montchoisy 18","1207","Genève"]
["203841","La Plage SA","Grèves de Clendy 20","1400","Yverdon-les-Bains"]
["203843","Eldora SA","Av. Charles-Secrétan 14","1005","Lausanne"]
["203846","Les Brasseurs SA Neuchâtel","Faubourg du Lac 1","2000","Neuchâtel"]
["203851","KLAS SA","Route de Versmont","1854","Leysin"]
["203856","M. Peguiron Eric","Rte de Vuarrens","1044","Fey"]
["203861","Marché du Grand-Mont","Rte du Grand-Mont 16","1052","Mont-sur-Lausanne"]
["203867","Consommation SA","Grand Rue 57","1660","Château-d'Oex"]
["203873","Le P'tit Mag","Rte de Romont 11","1553","Châtonnaye"]
["203879","Consommation SA","Au Village","1659","Rougemont"]
["203885","Association Epicerie","Rte de la Chérard 1","1027","Lonay"]
["203888","La Terrasse","Route d'Ouchy 5","1095","Lutry"]
["203890","BP-Service Bellevue","Rte de Lausanne 321","1293","Bellevue"]
["203892","Compte gratuités","Industriering 28","9491","Ruggell"]
["203895","Kiosque du Pierrier","Av. Mayor-Vautier 22","1815","Clarens"]
["203900","Résidence des Châtaigniers","Ch. des Marais 162 CP 159","1255","Veyrier"]
["203904","Aldig Sàrl","Rte de Cugy 96","1052","Mont-sur-Lausanne"]
["203907","Pam partenaire","15, Prom.des Champs-Frechets","1217","Meyrin"]
["203913","EVAM","Route de Chavannes 33","1007","Lausanne"]
["203916","Bricar Sàrl","Rte des Iles Vieilles 30","1902","Evionnaz"]
["203919","Restaurant L'Oasis","Rue du Quai 6","1844","Villeneuve VD"]
["203921","Kiosque Manhattan","Rue Plantamour 37","1201","Genève"]
["203923","Foyer St-Joseph","Ch. du Foyer 10","1642","Sorens"]
["203928","Boucherie de la Lienne","Place du Village 1","1978","Lens"]
["203934","Buvette du Grand","Av.de la Paix 11","1211","Genève"]
["203939","Kiosque Pirvali","Rue de Carouge 95","1205","Genève"]
["203942","Beau-Rivage Palace","Pl. du Port 17-19","1006","Lausanne"]
["203945","Food City Epicerie","Bvd Pont-d'Arve 28","1205","Genève"]
["203948","Restaurant de Beausobre","Av. de Vertou 2","1110","Morges"]
["203951","Etat d'Esprit SA","Rue Ste-Clotilde 13","1205","Genève"]
["203956","M. & Mme Koese Fakir","","1633","Marsens"]
["203961","M. Debbi Belaïd","Av. de-Warens 8","1203","Genève"]
["203964","Cinéma Balexert","Avenue Louis-Casaï 27","1209","Vernier"]
["203967","Eldora SA","Chemin de la Tuilerie 1","1890","St-Maurice"]
["203973","Eldora SA","Place de l'Europe 5","3960","Sierre"]
["203975","Epicerie Alimentation","Ch. Des Recards 18","1669","Montbovon"]
["203982","Neelab SA","Rte de Malagnou 27","1208","Genève"]
["203985","Etablissements publics","Service des finances","1208","Genève"]
["203990","Auberge communale de Thônex","Av. Tronchet 14","1226","Thônex"]
["203992","Eldora SA","Case postale 2443","1211","Genève 2"]
["203996","Novae Restauration SA","Pl. des Alpes 1","1211","Genève 1"]
["204000","Novae Restauration SA","Avenue Forel","1015","Ecublens"]
["204003","Station-Shop le Colorado Sàrl","Rte de Vuisternens 34","1684","Mézières FR"]
["204006","Hôtel Richemond","Rue Adhémar-Fabri 8","1201","Genève"]
["204008","Rest. Speedy Gonzalez","Rte de Denges 28 A","1027","Lonay"]
["204011","Mir Capital SA","Avenue Henry Golay 3","1203","Genève"]
["204013","Foyer Clair Bois Minoteries","Rue des Minoteries 11","1205","Genève"]
["204016","Réseau Santé de la Glâne","Route de l'Eglise 29","1681","Billens"]
["204022","Station Shell","Rte de Chancy","1284","Chancy"]
["204025","Mokafé SA","Av. Blanc 51","1202","Genève"]
["204028","Kiosque de Blonay","Rte du Village 43","1807","Blonay"]
["204031","Chez Clément","Grand-Rue 33","1618","Châtel-Saint-Denis"]
["204033","M. Hunziker Vivian","Ch. en Mérénaz 4","1041","Poliez-le-Grand"]
["204036","Boulangerie de Salavaux Sàrl","Rte de Vallamand 3","1585","Salavaux"]
["204042","Nauticloisirs Villeneuve Sàrl","Case postale 70","1844","Villeneuve VD"]
["204048","Des Roziers Sàrl","Quai Ernest-Ansermet 10","1800","Vevey"]
["204054","Epicerie du Bout de Champel","Av. Louis-Aubert 6","1206","Genève"]
["204057","Dumont & Dupraz SA","","1205","Genève"]
["204062","Novae Restauration","Place des Nations","1202","Genève"]
["204065","Kiosque Athénée","Rue Caroline 11","1003","Lausanne"]
["204068","Pizza-Kebab chez Gani","Grand-Rue 22","1530","Payerne"]
["204071","Hôpitaux Universitaires Genève","Chemin Petit Bel-Air 2","1225","Chêne-Bourg"]
["204077","Ass. des Amis de la Piscine","Grand-Rue 26","1337","Vallorbe"]
["204083","Hôpitaux Universitaire Genève","Chemin Petit Bel-Air 2","1225","Chêne-Bourg"]
["204089","Hôpital Universitaire Genève","Chemin Petit Bel-Air 2","1225","Chêne-Bourg"]
["204094","Café-Bar Sao Torpès","Ch. des Semailles 43","1212","Grand-Lancy"]
["204097","BP Corseaux","Rte de Châtel-St-Denis 18","1802","Corseaux"]
["204105","BP Service Chêne-Bourg","Route de Jussy 4","1225","Chêne-Bourg"]
["204108","Restaurant Bagatelle","Bvd James-Fazy 20","1201","Genève"]
["204113","Afzali","Rue de Berne 29","1201","Genève"]
["204116","Café Restaurant","Route du milieu du Monde 11","1318","Pompaples"]
["204119","Mme Rouiller Béatrice","Av. de l'Industrie 43","1870","Monthey"]
["204122","Maria Paonessa Sàrl","Rte de Berne 200","1066","Epalinges"]
["204125","Kiosque GNM SA","Rue du Môle 24","1201","Genève"]
["204127","Boulangerie Duvoisin Sàrl","Ch. Du Centre 4","1077","Servion"]
["204131","Alimentation-Boucherie","Les Colombes 5","1868","Collombey"]
["204137","Sandwicherie Croqu'Minute","Rue du Théâtre 1","1870","Monthey"]
["204139","Paolo et Gina Micheli Sàrl","Bvd de la Forêt 1","1009","Pully"]
["204141","Novae Restauration SA","Av. du Grey 55  CP 347","1000","Lausanne"]
["204146","EMS La Paix du Soir","Ch. Longeraie 9","1052","Mont-sur-Lausanne"]
["204148","Prikinou-Traiteur Thaïlandais","Ch. du Levant 18","1870","Monthey"]
["204150","Julcamaro Ronday","Avenue Vibert 10","1227","Carouge GE"]
["204152","Marché Quatre Saisons Sàrl","Rue Montsalvens 3","1630","Bulle"]
["204155","Cooking Live Sàrl","Rte de Presinge 150","1254","Jussy"]
["204158","Fondation Résidence La Faverge","Rte de Bulle 10","1610","Oron-la-Ville"]
["204160","Fondation Donatella Mauri","Ch. du Brit 2","1032","Romanel-s-Lausanne"]
["204163","Shell (Migrolino) Onex","Rte de Chancy 142","1213","Onex"]
["204166","OLM Distribution SA","Rue de Bernex 250","1233","Bernex"]
["204169","Migrolino (Shell)","Rte de Meyrin 248","1217","Meyrin"]
["204172","Migrolino (Shell) Ambilly","Rte d'Ambilly 3","1226","Thônex"]
["204175","Migrolino (Shell) La Buna","Route Suisse 3","1295","Mies-Tannay"]
["204178","MJ Alimentation","Rte de la Forge 1","1116","Cottens VD"]
["204180","Mme Castor Seoane M.-Ch.","Rte d'Aïre la Ville 215","1242","Satigny"]
["204183","TDL W Sàrl","Rue Rousseau 30","1201","Genève"]
["204189","Ogiz SA","Rue des Uttins 36","1400","Yverdon-les-Bains"]
["204191","Restaurant Lusitanos","Rte du Petit-Moncor 1C","1752","Villars-sur-Glâne"]
["204196","BP Service","Rte de St-Julien 70","1212","Grand-Lancy"]
["204198","Farzad Tabacs 7/7","Rue des Vieux-Grenadiers 1","1205","Genève"]
["204201","Verein Polybau","Lindenstrasse 4","9240","Uzwil"]
["204206","Restaurant l'Ecluse","Rte de la Vuy 1","1305","Penthalaz"]
["204211","Rest. le Cercle de la Voile","Rue Pécos 5","1422","Grandson 1"]
["204216","DGAV","Av. de Marcelin 29","1110","Morges"]
["204404","Shell St-Gingolph","Route Cantonale","1898","St-Gingolph"]
["204407","Shell Villeneuve","Route du Simplon 4","1845","Noville"]
["204409","Gurnanak Sàrl","Rue de Montsalvens 1","1636","Broc"]
["204414","Marché Gryonnais","Rue du Village 8","1882","Gryon"]
["204417","Fondation Silo","Route du Village 4","1112","Echichens"]
["204422","Carnotzet Gourmand","Ch. des Troncs 5","1063","Chapelle-s-Moudon"]
["204427","Merck Serono","Route de Fenil 25","1809","Fenil-sur-Corsier"]
["204430","Fondation Bois-Gentil","Route du Pavement 20","1018","Lausanne"]
["204433","Association scolaire","Rue Baulacre 8","1202","Genève"]
["204436","Commerce Fromages","Rte du Casino 1","1063","Chapelle-s-Moudon"]
["204439","Le Magaz de Peney","Place du Village 1","1059","Peney-le-Jorat"]
["204442","Auberge de l'Union","Au Village 2","1692","Massonnens"]
["204445","Centre John Knox","Ch. Crêts de Pregny 27","1218","Le Grand-Saconnex"]
["204447","Association le Signal","Route du Signal","1080","Les Cullayes"]
["204450","DIKOMAS Sàrl","Ch. Pré-Cosson 9","1256","Troinex"]
["204453","Hôpital Cantonal de la Broye","Route de La Rochette","1470","Estavayer-le-Lac"]
["204459","Riasgo Sàrl","Route de Veyrier 33","1227","Carouge GE"]
["204462","La Pointe à la Bise","Ch. de la Réserve 8","1222","Vésenaz"]
["204465","Eldora SA","Ch. de l'Avanchet 28 A","1216","Cointrin"]
["204468","Fondation Belle Saison","Rte du Signal 6","1185","Mont-sur-Rolle"]
["204474","ISV Foyer Féminin","Av. Ruchonnet 49","1003","Lausanne"]
["204477","EMS Le Phare Elim","Av. de la Paix 11","1814","La Tour-de-Peilz"]
["204480","Fondation de l'Hôpital de l'Enfance","Chemin de Montétan 14","1004","Lausanne"]
["204485","Centre Italien","Rue du Stade 5","1630","Bulle"]
["204488","Restaurant La Treille","Chemin de la Douche 9","1303","Penthaz"]
["204493","Pareja Sàrl","Ch. du Ruisseau 9","1267","Vich-Coinsins"]
["204498","Restaurant du Swin Golf","Route du Vignoble 60","1175","Lavigny"]
["204501","Gastro Express","Croix de Péage 1","1029","Villars-Ste-Croix"]
["205260","Hôpital du Valais","Av. du Grand-Champsec 86","1951","Sion"]
["205267","Migrol Service Gland","Av. Mt-Blanc 34","1196","Gland"]
["205270","Priota","Av. de la Gare des Eaux-Vives 14","1207","Genève"]
["205273","Eldora Traiteur SA","Route Louis-Favre 8","1024","Ecublens VD"]
["205275","Boulangerie Le P'tit Prince","Chemin de la Grand-Cour 6","1256","Troinex"]
["205278","Top Marché Chauderon","Place Chauderon 30","1003","Lausanne"]
["205280","Boulangerie-Tea-Room","Av. des Alpes 16","1009","Pully"]
["205283","Café Restaurant","Grand-Rue 10","1162","St-Prex"]
["205287","Novae Restauration SA","Avenue de Marcelin 31","1110","Morges"]
["205290","La Shopperie","Rte de Malagnou 27","1208","Genève"]
["205292","Golf Club de Genève","Route de la Capite 70","1253","Vandoeuvres"]
["205294","La Balance'l Sàrl","Place des Balances 13bis","1040","Echallens"]
["205303","La Barge du Léman","Quai Bussien","1897","Port-Valais"]
["205305","Boissons De Siebenthal SA","Route de Lausanne 25","1401","Yverdon-les-Bains"]
["205310","Pizzeria de la Rive Sahin & associé","Rives de la Morges 6","1110","Morges"]
["205313","Café restaurant la Véranda Sàrl","Prom. du Petit-Bois 19","1110","Morges"]
["205315","Restaurant Délices du Parc","Rue des Délices 4B","1203","Genève"]
["205318","Idéal Marché 3","Rue de Zurich 32","1201","Genève"]
["205321","JL Restauration & Management Sàrl","Route du Stand 7B","1163","Etoy"]
["205326","Tea-Room Les Aviateurs","Place des Aviateurs 2","1228","Plan-les-Ouates"]
["205329","Restaurant Bulcentre","Rue de la Sionge 37","1630","Bulle"]
["205332","Armando KF SA","Ch. de la Florence 9","1208","Genève"]
["205334","Kiosque Kamal Shop","Rue du Mont-Blanc 30","1201","Genève"]
["205336","Restaurant Guillaume Tell","Route de Troistorrents 17","1872","Troistorrents"]
["205339","Gel-Rhône","Rue Blavignac 5","1227","Carouge GE"]
["205341","Merulla Station Service Sàrl","Av. des Desertes 3","1009","Pully"]
["205343","Boucherie Pierrefleur","Ch. de Pierrefleur 38","1004","Lausanne"]
["205345","Ateliers de la Glâne","Route de l'Industrie 3","1680","Romont FR"]
["205347","Transfusion Interrégionale","Route de la Corniche 2","1066","Epalinges"]
["205349","Tabac Journaux","Rue du Prieuré 25","1202","Genève"]
["205351","Kiosque de la Gare d'Aubonne","Place de l'Ancienne Gare 3","1170","Aubonne"]
["204507","Entertainment Sàrl","Place Longemalle 6-8","1204","Genève"]
["204512","Fondation Petit Maître","Avenue des Trois Lacs 3","1401","Yverdon-les-Bains"]
["204517","Novae Restauration SA","Rue de la Prairie 4","1202","Genève"]
["204519","Novae Restauration SA","Chemin de Grange-Canal 16","1224","Chêne-Bougeries"]
["204521","Novae Restauration SA","Zone Industrielle B","1170","Aubonne"]
["204523","Novae Restauration SA","Rue de l'Ouriette 150","1170","Aubonne"]
["204525","Restaurant Le Pokémon","Route de Mon-Repos 5","1700","Fribourg"]
["204527","Fondation Bois-Gentil","Place du Vallon 1A","1005","Lausanne"]
["204529","Fondation Delafontaine","Rue de Genève 76","1004","Lausanne"]
["204532","Papeterie du Léman","Grand-Rue 46","1844","Villeneuve VD"]
["204536","Tennis des Fraisiers","Av. du Curé Baud 84","1212","Grand-Lancy"]
["204539","Clinic Cars Yverdon Sàrl","Avenue de Grandson 43","1400","Yverdon-les-Bains"]
["204541","Etablissements publics","Route du Chêne 48","1208","Genève"]
["204546","M. Roger Currat","Rte d'Oron 7","1670","Ursy"]
["204549","Home Clos Fleuri","Rue Saint-Denis 45","1630","Bulle"]
["204554","Tea-Room","Chemin des colombettes 2","1202","Genève"]
["204556","Commune de Coppet","Grande-Rue 65","1296","Coppet"]
["204561","Novae Cern numéro 2","Case postale 3","1211","Genève 23"]
["204566","Novae Restaurant SA","Route de la Verrerie 1","1267","Coinsins"]
["204568","Bar Restaurant L'Oranger SA","Rue de Rive 6","1204","Genève"]
["204570","Le Canard Bleu Sàrl","Route de Penesson 6","1170","Aubonne"]
["204574","Hôtel Restaurant","Case postale 33","1188","St-George"]
["204578","Swiss4ever SA","Ch. de la Montagne 136","1224","Chêne-Bougeries"]
["204581","M. Jaspal Singh","Avenue du Delay 4","1110","Morges"]
["204587","Maison du Quartier","Rue Gourgas 19","1205","Genève"]
["204589","Tabacs Journaux","Rue François-Bonivard 4","1201","Genève"]
["204591","Aligro Demaurex & Cie SA","Ch. de Cornache 1","1753","Matran"]
["204594","Novae Restauration SA","Rte de Morat 135","1763","Granges-Paccot"]
["204599","Auberge communale","Place de la Dîme 2","1124","Gollion"]
["204602","Café de la Banque","Rue Centrale 44","1580","Avenches"]
["204604","Cafétéria","Rue Louis Curval 5","1206","Genève"]
["204607","EMS La Vernie","Route de Marcolet 39","1023","Crissier"]
["204610","Eldora SA","Ch. des Colombettes 34","1202","Genève"]
["204613","Auberge Communale","Grand-Rue 13","1607","Palézieux-Village"]
["204616","MCV Services Sàrl","Route de Massongex","1880","Bex"]
["204619","Bistrot des Uttins","Rue des Uttins 22","1400","Yverdon-les-Bains"]
["204622","Kiosque 2000","Avenue Georgette 6","1003","Lausanne"]
["204624","Shkufe Sàrl","Rue Pictet-de-Bock 9","1205","Genève"]
["204626","A Tout Point Sàrl","Route de Berne 1","1088","Ropraz"]
["204628","Kaboul","Rue Voltaire 29","1201","Genève"]
["204631","Epicerie de Vermont","Rue de Vermont 16","1202","Genève"]
["204633","Le Marché Des Corbeaux SàRL","Rue du Grand Pré 23","1299","Crans-près-Céligny"]
["204635","Résidence Bourgeoisial","Route des Bonnesfontaines 24","1700","Fribourg"]
["204640","Café Restaurant du Tennis","Rue des Pêcheurs 17","1400","Yverdon-les-Bains"]
["204643","Les 3 Tables Sàrl","Grand Rue 18","1890","St-Maurice"]
["204646","Flams","Place du Molard 9","1204","Genève"]
["204649","Le Bistrot de Fernand","Av. de Lavaux 63","1009","Pully"]
["204651","Pause Gourmande","Av. des Grandes-Communes","1213","Onex"]
["204656","Tabacs Epicerie","Rue de Lausanne 53","1202","Genève"]
["204659","Novae Restauration SA","Case postale 105","1015","Lausanne"]
["204664","Clinique Rom. Réadaptation","Avenue du Grand-Champsec 90","1950","Sion"]
["204667","Epicerie de Marchissy","Ch. Pré-Baron","1261","Marchissy"]
["204669","Maîtres Fromagers","Case postale 48","1663","Gruyères"]
["204674","Mingard","Rue des Vergers 1","1462","Yvonand"]
["204677","Shell La Maladière","Av. des Figuiers 22","1007","Lausanne"]
["204696","Crèche La Cigogne","Route de Veyrier 83","1234","Vessy"]
["204699","Rest. Ecole Inter. \"La Garenne\"","Route des Layeux 28","1885","Chesières"]
["204701","Technomag SA","Sinserstrasse 65","6330","Cham"]
["204706","Le C Café-Bar","Rue de la Mairie 17","1207","Genève"]
["204708","OLM Distributions SA","Rue de l'Arquebuse 27","1204","Genève"]
["204710","AccorInvest Switzerland SA","Ch. de l'Esparcette 4","1023","Crissier"]
["204713","Carnaland Sàrl","Ch. des Artisans 6","1263","Crassier"]
["204716","OLM Distributions SA","Rue de Genève 46","1225","Chêne-Bourg"]
["204719","Restaurant La Place Sàrl","Route de Meyrin 286","1217","Meyrin"]
["204722","Marché Mini Prix","Rue Louis-Fabre 17","1201","Genève"]
["204725","Hôtel Restaurant","Route de France 78","1264","St-Cergue"]
["204728","AAB Sàrl","Rue des Pêcheries 15","1205","Genève"]
["204730","Forcookbar Sàrl","Route des Grands-Bois 10","1164","Buchillon"]
["204735","Association des EMS de Lancy","Ch. des Mouilles 3","1213","Petit-Lancy"]
["204741","Maeva Sol Sàrl","Ch. des Etangs 40","1470","Estavayer-le-Lac"]
["204746","Buy and Go","Rue de Lausanne 145","1202","Genève"]
["204748","Buffet de la Gare","Place de la Gare 9","1040","Echallens"]
["204750","Novae Restauration SA","Zone industrielle du vivier 22","1690","Villaz-St-Pierre"]
["204752","Tabac de Chêne","Rte de Chêne 67","1224","Chêne-Bougeries"]
["204754","Epicerie du Grand Bureau","Rue du Grand-Bureau 39","1227","Carouge GE"]
["204756","Nouveau Lido Sàrl","Route des Acacias 20","1227","Les Acacias"]
["204758","Restaurant La Clef","Planche-Supérieure 2","1700","Fribourg"]
["204760","Milone Sàrl","Restoroute de Bavois A1","1372","Bavois"]
["204762","Milone Sàrl","Restoroute de Bavois A1","1372","Bavois"]
["204764","Restaurant le Débarcadère","Ch. du Crêt 7","1025","St-Sulpice VD"]
["204766","Librairie Papeterie Brierre","Av. de la Gare 4","1814","La Tour-de-Peilz"]
["204768","Café du Poids","Grand-Rue 6","1522","Lucens"]
["204770","Tamoil Service Station","Route d'Agy 124","1763","Granges-Paccot"]
["204773","RESTAURANT WTCL","Av. Gratta-Paille 2","1018","Lausanne"]
["204776","Le Gallion","Rue Louis-de-Savoie 32","1110","Morges"]
["204781","M. Jean-Paul Lavorel","Crêt-Meylan 15","1348","Le Brassus"]
["204784","Shell Gruyère","Le Restoroute 182","1644","Avry-devant-Pont"]
["204787","Piscine de Chexbres","Rte du Bourg de Crousaz","1071","Chexbres"]
["204789","Les Trémières","Ch. Pré-Fleuri 8","1006","Lausanne"]
["204795","Café de la Gare","Av. de la Gare 33","1896","Vouvry"]
["204797","Novae Planzer","Rte des Moulières 5","1217","Meyrin"]
["204800","Hôtel de la Paix","Avenue Benjamin-Constant 5","1003","Lausanne"]
["204803","Nice Alimentation SNC","Av. Théodore Weber 36","1208","Genève"]
["204806","Eldora SA","Rue Montbrillant 94","1202","Genève"]
["204808","Pizza Fratel","Rue de la Tour 10","1004","Lausanne"]
["204812","Novae Restauration SA","Lengnaustrasse 10","2501","Biel/Bienne"]
["204816","Consommation SA","Route de Gruyère 23","1660","Les Moulins"]
["204818","Kiosque Bel-Air","Rue de Neuchatel 2","1400","Yverdon-les-Bains"]
["204821","Palexpo SA","Route François Peyrot 30","1218","Le Grand-Saconnex"]
["204824","Restaurant de l'Etoile","Chemin du Battoir 1","1845","Noville"]
["204827","Boucherie Maillard","Route Principale 122","1642","Sorens"]
["204830","ENI (Suisse) SA","Av. Riond-Bosson 2","1110","Morges"]
["204833","Tabacs Mirmont","Avenue de Miremont 8A","1206","Genève"]
["204836","Domino's Pizza Switzerland AG","Av. Pictet-de-Rochemont","1207","Genève"]
["204839","Domino's Pizza Switzerland AG","Av. Tivoli 70","1007","Lausanne"]
["204842","Kuklos","La Berneuse","1854","Leysin"]
["204845","Rando Burger","Route d'Arzier 12","1264","St-Cergue"]
["204848","Mme Alexandra Jaquet","Rue de la Poya 28","1665","Estavannens"]
["204853","René Piccand et Fils","Rte de Drize 73","1234","Vessy"]
["204856","L'Epicerie Migros Partenaire","Avenue Centrale 99","1884","Villars-sur-Ollon"]
["204859","Hôtel Angleterre&Résidence","Place du Port 11","1006","Lausanne"]
["204862","Shell Parc-de-Budé","Chemin du Petit-Saconnex 5","1209","Genève"]
["204865","ORIF Intégration&Formation prof.","Via Monnet 4","1214","Vernier"]
["204870","Kossur SA","Rue de Berne 34","1201","Genève"]
["204872","Restaurant L'Academia","Rue des Délices 18","1203","Genève"]
["204875","Azimor SA","Bd Helvétique 36","1207","Genève"]
["204881","La Clairière","Route de Satigny 27","1214","Vernier"]
["204883","L'Accent du Sud","Chemin de Burdon D1","1052","Mont-sur-Lausanne"]
["204886","Restaurant l'Eléphant Blanc","Rue du Quai 12","1844","Villeneuve VD"]
["204888","Auberge de Founex Sàrl","Grand'Rue 31","1297","Founex"]
["204893","Restaurant Chinois","Route du Perisset 9","1660","Château-d'Oex"]
["204895","Casa Loureiro","Rue de Lausanne 54","1530","Payerne"]
["204897","Rich Shop","Avenue de la jonction 7","1205","Genève"]
["204900","La Maison d'Asie","Rue Louis-Favre 12","1201","Genève"]
["204906","Fondation Rive-Neuve","Ch. des Cuarroz 57","1807","Blonay"]
["204909","Société coopérative","La Maison du Gruyère","1663","Pringy"]
["204915","Hôpital de Lavaux","Chemin des Colombaires 31","1096","Cully"]
["204920","Restaurant Longe et Perto","Ch. de Poussy 3","1214","Vernier"]
["204922","BISA, Le Snack","Rte de Thonon 154","1222","Vésenaz"]
["204927","Boulangerie Tea-Room","Place Petit St-Jean 21","1700","Fribourg"]
["204930","Hôtel Restaurant des Alpes","Rte d'Oron 1","1073","Savigny"]
["204932","Alimentation KIBS","Rue de Carouge 89","1205","Genève"]
["204934","Taverne de la Vieille Tour","Grand-Rue 43","1814","La Tour-de-Peilz"]
["204936","Tabacs 2AaZ Sàrl","Rue Vautier 27","1227","Carouge GE"]
["204939","Maison du Pèlerin","Ch. du Pèlerin 18","1801","Le Mont-Pèlerin"]
["204942","Tea Room La Cigogne","Route de la Chapelle 2","1643","Gumefens"]
["204947","Restaurant Le Tilleul","Route de Repentance 86","1252","Meinier"]
["204950","Tabacs Darab","Rte de Chancy 28","1213","Petit-Lancy"]
["204953","Boucherie Epicerie du Sanetsch","Vae Plan NA 2/Granois","1965","Savièse"]
["204956","Restaurant Chez Marino","Rue Muzy 22","1207","Genève"]
["204958","EMS Nouveau Kermont","Ch. des Châtaigniers 24","1292","Chambésy"]
["204961","Epicerie du Tunnel","Rue du Tunnel 17","1005","Lausanne"]
["204964","La Goutte d'Eau Café Restaurant","Avenue des Glariers 3","1860","Aigle"]
["204969","Clinique de Bois Bougy","Avenue de Bois-Bougy 8","1260","Nyon"]
["204972","Break Point Sàrl","Ch.des Petites-Fontaines 11","1228","Plan-les-Ouates"]
["204981","Sté coop. Agricole","Rte de Lausanne 39","1610","Oron-la-Ville"]
["204985","LANDI Moulin Courtepin","Rte de Morat 15 B","1784","Courtepin"]
["204987","Fun Planet Jeux Bulle SA","Route de la Pâla 126","1630","Bulle"]
["204989","Ristorante Pizzeria Va Bene","Ch. De-Normandie 14","1206","Genève"]
["204994","Tropical Juice Sàrl","Av. Louis-Casaï 27","1209","Genève"]
["204996","Télésiège Gastlosen Express","Dorfstrasse 5","1656","Jaun"]
["204999","Socar Paudex","Rte du Simplon 20","1094","Paudex"]
["205002","Cercle des Agriculteurs","Ch. des Cornaches 1","1233","Bernex"]
["205011","Socar Prilly","Route de Renens 8","1008","Prilly"]
["205014","Tabacs Presse Shopping","Av. Henri-Dunant 5","1205","Genève"]
["205017","Restaurant Le Phare","Rue du Vieux-Port 1 A","1897","Port-Valais"]
["205020","Novae Restauration SA","Rue Kazem Radjavi 8","1202","Genève"]
["205026","Socar Nyon","Impasse Champ-Colin 12","1260","Nyon"]
["205027","NOVAE RESTAURATION","Route Suisse 5","1295","Mies-Tannay"]
["205034","Station Service Tamoil","Route d'Ambilly 58","1226","Thônex"]
["205037","Val Fleuri, lieu de vie (EMS) SA","Route de Vessy 7","1206","Genève"]
["205042","Station Service Mondello","Route de Bellegarde 71","1284","Chancy"]
["205045","Socar Meyrin","Route de Meyrin 372","1217","Meyrin"]
["205048","Socar Cointrin","Av. Louis-Casaï 73","1216","Cointrin"]
["205051","Socar Bursins au Lac","Route de Mely 20","1183","Bursins"]
["205054","Grimper.ch SA","Route de la Venoge 3 G","1026","Echandens-Denges"]
["205057","Coccinelle Café-W9 Sàrl","Rue Pichard 18","1003","Lausanne"]
["205060","Le Petit Marché","Chemin du Repos 6","1213","Petit-Lancy"]
["205063","Socar Onex","Route de Chancy 113","1213","Onex"]
["205065","EMS de Drize","Route de Drize 61","1234","Vessy"]
["205068","BP Ollon","Route Cantonale","1867","Ollon VD"]
["205070","Rando Burger","Rte d'Arzier 12","1264","St-Cergue"]
["205074","Boulangerie-Alimentation Blaser","Rue du Village 1","1124","Gollion"]
["205077","Laksam Sàrl","Case postale 146","1907","Saxon"]
["205083","La Place F.Fikay Sàrl","Pl. Pestalozzi 9","1400","Yverdon-les-Bains"]
["205086","Etoile Markt","Route de Mon-Repos 5 C","1700","Fribourg"]
["205089","Restaurant La Crèmerie","Pl. d'Armes 21","1618","Châtel-St-Denis"]
["205091","Café Passion","Rue Paul Bondallaz 9","1680","Romont FR"]
["205094","Café du Commerce","Rue de la Morâche 6","1260","Nyon"]
["205096","He Jia Huan Sàrl","Rue Mauborget 17","1510","Moudon"]
["205101","Fondation Mérine","Rue du Château 47","1510","Moudon"]
["205104","Restaurant Chez Moi","Bd Georges-Favon 15","1204","Genève"]
["205107","Socar Fribourg","Route du Jura 73","1700","Fribourg"]
["205110","Novae Restauration Cern2","Route de Meyrin","1217","Meyrin"]
["205113","Restaurant Tennis Club","Route de Vessy 41","1234","Vessy"]
["205115","Ma-Jong SA","Escaliers du Grand-Pont 3","1003","Lausanne"]
["205119","Tabac-Presse Onex-Village","Route de Chancy 130","1213","Onex"]
["205121","Restaurant Le Coin","Route du Noyer-Girod 3","1163","Etoy"]
["205127","Epicerie des Fougères","Route du Col des Mosses 106","1862","Ormont-Dessous"]
["205130","Café Restaurant Le Raisin","Route des Cullayes 2","1083","Jorat-Mézières"]
["205133","La Croix Fédérale","Route de Moudon 1","1078","Essertes"]
["205135","Restaurant Satavento","Rue de Gruyères 60","1630","Bulle"]
["205137","Cercle des Agriculteurs de Satigny","Rue des Sablières 15","1242","Satigny"]
["205141","My Shop","Boulevard St-Georges 13","1205","Genève"]
["205143","Amicale pompiers de Meinier","Route de Compois 12","1252","Meinier"]
["205147","Le Petit Délice","Ch. Riant-Bosson 7","1217","Meyrin"]
["205152","Shaba Tabac Boisson","Rue du 31 Décembre 31","1207","Genève"]
["205155","Restaurant La Désalpe","Rue des Deux-Ponts 3","1205","Genève"]
["205157","Centre d'intervention","Les Ponts d'Amont 9","1627","Vaulruz"]
["205159","Prodega SA","Rue de-Turrettin","1242","Satigny"]
["205162","Shell Migrolino Cheseaux","Route de Genève 9A","1033","Cheseaux-Lausanne"]
["205164","Association Cinéma Eden","Case postale 112","1660","Château-d'Oex"]
["205169","Restaurant de la piscine","Av. Bois-de-la-Chapelle 83","1213","Onex"]
["205171","Eldora SA","Av. Jacques-Martin 16","1224","Chêne-Bougeries"]
["205174","Eldora SA","Ch. des Magnolias 6","1005","Lausanne"]
["205177","Eldora SA","Ch. des Abeilles 17","1010","Lausanne"]
["205180","Shell Migrolino Fribourg-Nord","Rue de Morat 130","1763","Granges-Paccot"]
["205182","Le Relais Saint-Jacques","Route de Bulle 21","1687","Vuisternens-Romont"]
["205185","Novae Restauration SA","Chemin Eugène-Rigot 2","1202","Genève"]
["205188","Novae Restauration","Chemin de la Papeterie 1","1290","Versoix"]
["205190","Carrel SA","Route de Lausanne 2","1400","Yverdon-les-Bains"]
["205193","Supermarket Tam-Tat Sàrl","Av. François-Besson 22","1217","Meyrin"]
["205196","Ledr Sàrl","Esserts-de-Rive Dessus 7","1345","Le Lieu"]
["205202","Le Kalaya Lounge","Rue de la Plaine 1","1400","Yverdon-les-Bains"]
["205205","La Croix de Culet Sàrl","Case postale 55","1874","Champéry"]
["205210","Boucherie La Chablaisienne","Ruelle du Marché 9","1880","Bex"]
["205213","Sebotel SA","Route de Meinier 1","1253","Vandoeuvres"]
["205215","Epicerie St-Jean","Rue de St-Jean 50","1203","Genève"]
["205221","Groundfloor Sàrl","Chemin de la Farette 7","1232","Confignon"]
["205227","Food Management Sàrl","Pré-neuf 14","1170","Aubonne"]
["205233","Auberge du Midi","Route de Romont 5","1554","Sédeilles"]
["205236","Socar Lausanne","Av. des Figuiers 32","1007","Lausanne"]
["205239","Restaurant Café du Stade","Route de Veyrier 40","1227","Carouge GE"]
["205242","M. Kurt Lüthi","C.P. 136","1462","Yvonand"]
["205248","Relais de Vuargny","Route des Ormonts","1863","Le Sépey"]
["205251","Le Cyclo","Boulevard de Pérolles 91","1700","Fribourg"]
["205254","Hôtel de la Cascade","Hauptstrasse 411","1656","Jaun"]
["205257","Restaurant Chez Moi Sàrl","Rue de la Terrassière 14","1207","Genève"]
["205354","Buvette du Mont-Chesau","Ch. du Mont-Chesau 9","1070","Puidoux"]
["205356","Auberge Communale","Rue du Village 1","1312","Eclépens"]
["205359","Arena Cinemas AG","Route des Jeunes 10","1227","Carouge GE"]
["205361","Boulangerie, Pâtisserie","Rue Baulacre 13","1202","Genève"]
["205367","Flon Bowling Sàrl","Rue des Côtes-de-Montbenon 22","1003","Lausanne"]
["205370","Le Bistro Chinois","Rte de Florissant 19","1206","Genève"]
["205372","Auberge du Port-Gitana","Route de Lausanne 314","1293","Bellevue"]
["205376","O Bom Gosto","Rue du Grand-Pré 66","1202","Genève"]
["205378","Adam's Café","Rue Igor-Stravinsky 4","1820","Montreux"]
["205381","Epicerie du Soleil","Ch. de la Brume 2","1110","Morges"]
["205384","Fondation de Serix","Ch. de Serix 6","1607","Palézieux-Village"]
["205386","Commune d'Ecublens","Ch. de la Colline 5","1024","Ecublens VD"]
["205389","Eldora SA","Av. de France 27","1950","Sion"]
["205392","Tea Room La Diabletine","Rue des Ormonts 9","1865","Les Diablerets"]
["205394","Station Tamoil","Rue Dancet 10","1205","Genève"]
["205397","Auberge Communale du Grand Donzel","Route Antoine-Martin 21","1234","Vessy"]
["205399","Buffet Le Quai 10","Rue de la Gare 22","1820","Montreux"]
["205401","Eldora SA","Fondation Asile des aveugles","1024","Ecublens VD"]
["205403","For You","Rue Gambetta 5","1815","Clarens"]
["205406","Restauration Novae","Route de Pierre-à-Bot 87","2000","Neuchâtel"]
["205409","Nash Airport Hotel","Ch. de la Violette 11","1216","Cointrin"]
["205411","Remacruz Sàrl","Chemin Frisco 3-5","1208","Genève"]
["205413","Restaurant Les Tulipiers","Ch. Frisco 13","1208","Genève"]
["205416","Kiosque Guy D","Av. de la Praille 38","1227","Carouge GE"]
["205419","ELDORA TRAITEUR","Route Louis-Favre 8 C","1024","Ecublens VD"]
["205421","Auberge de Compesières","Rte de Cugny 75","1257","La Croix-de-Rozon"]
["205423","Brasserie du Relais","Place de la Gare 2","1663","Pringy"]
["205425","LFB - Le Futur Bio SA","Chemin de Budron Est","1052","Le Mont-sur-Lausanne"]
["205427","Diabolo Resto","Chemin au Grand Bois 6","1846","Chessel"]
["205429","Café Restaurant Savignoise","Route Mollie-Margot 1","1073","Savigny"]
["205431","Taco's Bar SA","Rue de Genève 17","1003","Lausanne"]
["205433","Novag SA","Case postale 6471","1211","Genève 6"]
["205438","Kiosque Omaid Samett","Bd Carl-Vogt 9","1205","Genève"]
["205441","Silver Spoon","Rue des Alpes 2","1196","Gland"]
["205443","Novae Restauration SA","L'Arcadie","1015","Ecublens"]
["205447","Auberge Communale","Grand Rue 14","1416","Pailly"]
["205453","Hospices cantonaux","Rue du Bugnon 21","1005","Lausanne"]
["205459","Nova Vita","Rue du Quai 2B","1820","Montreux"]
["205461","Rest. du Stand de Tir","Rte de la Blécherette 2","1032","Romanel-s-Lausanne"]
["205464","Auberge Communale Le St-Sulpice","Rue du Centre 59","1025","St-Sulpice VD"]
["205474","Inglewood Eaux-Vives","Case Postale 1584","1211","Genève 1"]
["205479","Café Tivoli Sàrl","Place d'Armes 18","1618","Châtel-St-Denis"]
["205482","L'Epicure","Case postale 116","1015","Ecublens"]
["205487","Novae Restauration SA","Route de Lausanne 2","1680","Romont FR"]
["205490","Tea-Room de Cressy","Rue Edouard-Vallet 61","1232","Confignon"]
["205492","Baruthio Chef","Rue du Village 116","1874","Champéry"]
["205495","Blues Bar Cafgest SA","Rue de Genève 123A","1226","Thônex"]
["205497","Elabor Sàrl","Rte d'Englisberg 1","1763","Granges-Paccot"]
["205500","Boucherie Délitroz Sàrl","Route du Simplon 12","1957","Ardon"]
["205502","Restaurant La Ferme Sàrl","Route de Chancy 132","1213","Onex"]
["205505","Clinique la Métairie","Avenue de Bois-Bougy 8","1260","Nyon"]
["205508","Restaurant La Croisée des Sports","Route du Vernay 34","1870","Monthey 2"]
["205511","Fondation EMS Le Marronnier","Route de Lavaux 20","1095","Lutry"]
["205514","Tea-Room Escale","Grand-Rue 20","1470","Estavayer-le-Lac"]
["205517","Buvette d'Ouchy","Place de la Navigation 1A","1006","Lausanne"]
["205520","Arc-en-Ciel","Rue de Carouge 35","1205","Genève"]
["205525","New Navy Bar","Place Bourg-de-Fourg 31","1204","Genève"]
["205527","Restaurant Le Centre","Rue du Village 58","1874","Champéry"]
["205530","Restaurant Trigal","Rue Lamartine 27","1203","Genève"]
["205533","Châtelaine Distribution Sàrl","Ch. J-P De-Sauvage 42","1219","Châtelaine"]
["205538","Auberge des Grands Bois","Rte des Grand Bois 10","1164","Buchillon"]
["205543","Résidence La Charmaie","Place sous l'Eglise 3","1893","Collombey-Muraz"]
["205546","Restaurant de la Marionnette","Derrière-les-Jardins 2","1700","Fribourg"]
["205548","Epicerie du Chêne","Rue du Pont 12bis","1820","Montreux"]
["205553","Boucherie de Campagne","Route de Cremières 2","1070","Puidoux"]
["205556","Kiosque Aria","Rue Chantepoulet 25","1201","Genève"]
["205562","Boulangerie-Patisserie Bessa Sàrl","Route de la Pâla 137","1630","Bulle"]
["205564","Epicerie le Petit Caddie","Rue de Graman 89","1241","Puplinge"]
["205566","Kiosque de Tavel","Rue sacre du Printemps 18","1815","Clarens"]
["205568","Buvette du Mini-Golf de Chénens","En Moleyre 50","1744","Chénens"]
["205571","Production Traiteur-Frédéric Priou","Rue du Bourquin 19","1306","Daillens"]
["205573","Perrin Gisèle","ch. de la Poste 12","1297","Founex"]
["205577","Première Moisson Sàrl","Route des Rupettes 3","1287","Laconnex"]
["205580","ARIVEL Sàrl","Rue de Carouge 38","1205","Genève"]
["205583","Novae Restauration SA","Rte de Genève 46","1260","Nyon"]
["205585","Kiosque de la Promenade Sàrl","Rue de la Promenade 33","1630","Bulle"]
["205587","Pause Café SA","Rue des Terreaux 23","1003","Lausanne"]
["205589","Delela Sàrl","Ch. des Mésanges 2bis","1212","Grand-Lancy"]
["205594","Restaurant La Nautica","Ch. des Pêcheurs 7","1007","Lausanne"]
["205597","Swiss A. Brothers Global Sàrl","Ch. Frisco 8","1208","Genève"]
["205600","Tabac & Presse Anwar","Rue des Eaux-Vives 14","1207","Genève"]
["205602","Epicerie Tabac de Thônex","Rue de Genève 101","1226","Thônex"]
["205604","Epicerie Tabac de Thônex","Rue de Genève 121","1226","Thônex"]
["205606","BP Service Onex","Route de Chancy 102","1213","Onex"]
["205609","Boulangerie Millioud Sàrl","Place du Marché 5","1040","Echallens"]
["205614","Pause-Café SA","Av. Général-Guisan 17","1800","Vevey"]
["205616","Auberge de la Couronne Blanco Sàrl","Place Emile Gardaz 4","1040","Echallens"]
["205619","Peppiland pourcelot & Cie","Le cerisier 42","2300","La Chaux-de-Fonds"]
["205625","Tabac Président","Rue des Pâquis 55","1201","Genève"]
["205627","Mme Evelyne Affolter","Rte Suisse 45","1196","Gland"]
["205630","Kiosque ONU","Palais des Nations / Porte 6","1211","Genève 10"]
["205635","Elmi Services Sàrl (TAMOIL)","Chemin du petit-Saconnex 2","1209","Genève"]
["205638","SESC","Av. Louis-Casaï 18","1209","Genève"]
["205644","Le Bouchon Lyonnais Sàrl","Av. Général-Guiguer 3","1197","Prangins"]
["205647","Epicerie Villarvolard","Route de Villarvolard 1","1647","Corbières"]
["205650","Boulangerie du Parc","Village d'En-Haut 19","1637","Charmey (Gruyère)"]
["205653","Boulangerie Pâtisserie","Ch. Charles Georg 2","1209","Genève"]
["205659","Club Nautique de Versoix","Ch. des Graviers 35","1290","Versoix"]
["205661","Tabac Journaux des Grottes","Rue des Grottes 22","1201","Genève"]
["205663","Gastro Toque","Ch. Fleuri 2","1585","Salavaux"]
["205667","Association Cerf-Volant","Case postale 16","1162","St-Prex"]
["205671","Transports MVR","Rue de la Gare 22","1820","Montreux"]
["205675","Laurent Papaux Sàrl","Route de la Gruyère 9","1723","Marly"]
["205677","Hirslanden","Av. de Beau-Séjour 6","1206","Genève"]
["205680","Globulle SA","Rue de l'Etang 21","1630","Bulle"]
["205682","JessRo-RA Sàrl","Av. d'Aïre 48","1203","Genève"]
["205687","Chez Joe, Leroux","Rue du Village 85","1874","Champéry"]
["205690","Steve Rougemont","Rue St-Jean 24","1260","Nyon"]
["205692","Swissdutch Union Sàrl","Rue de la Plage 4","1180","Rolle"]
["205694","Restaurant Costa Smeralda","Parc du Château-Banquet 2","1202","Genève"]
["205696","Société Neelab SA","Av. Wendt 39","1203","Genève"]
["205698","L'Atelier Geneva","Rue Boissonnas 16","1227","Carouge GE"]
["205701","Inglewood Saint-Laurent","Rue St-Laurent 14","1003","Lausanne"]
["205703","La Tabatière","Rue de la Poste 24","1009","Pully"]
["205706","Restaurant La Ferme de Borex","Route de Crassier 8","1277","Borex"]
["205709","Relais de l'Aérodrome","Rte de l'Aérodrome 75","1197","Prangins"]
["205711","Institut La Salésienne","Rte de Veyrier 243","1255","Veyrier"]
["205714","Ecole de Comm. Nicolas Bouvier","Rue de Saint Jean 60","1203","Genève"]
["205716","Relais Thaï du Vuillonnex","Rue de Bernex 253","1233","Bernex"]
["205718","Eldora SA","Avenue du Moléson 17","1700","Fribourg"]
["205721","Tea Room Le Duque","Rue de Genève 70","1225","Chêne-Bourg"]
["205723","Healthy Juice Sàrl","Rue de la Morache 6","1260","Nyon"]
["205724","Domino's Pizza GmbH","Avenue Wendt 1-3","1202","Genève"]
["205725","Domino's Pizza","Rue Caroline 49","1227","Carouge GE"]
["205728","Rest. Centre Sportif Founex","Route de Châtaigneriaz 17","1297","Founex"]
["205731","BP Service Yverdon","Rue des Champs-Lovats 1","1400","Yverdon-les-Bains"]
["205732","B. Braun Medical AG","Rte de la Sorge 9","1023","Crissier"]
["205740","Fondation Aigues-Vertes","Route de Chèvres 29","1233","Bernex"]
["205744","Tabac 21","Rue de la Servette 21","1201","Genève"]
["205749","Restaurant Hafez","Rue Adrien-Lachenal 22","1207","Genève"]
["205752","Le Milieu Sàrl","Grand-Rue 8","1268","Begnins"]
["205755","HC Vallorbe","des Trois Vallons","1337","Vallorbe"]
["205761","Martigny Boutique Hôtel","Rue des Vorziers 7","1920","Martigny"]
["205764","Boréal Coffee Compagny Sàrl","Rue du Stand 60","1204","Genève"]
["205770","Alimentation Damavand","Av. de Lavaux 65","1009","Pully"]
["205772","Fondation Sainte-Thérèse","Rue des Artisans 9","1908","Riddes"]
["205774","M. Bruley","Grand-Rue 39","1204","Genève"]
["205777","Bistrot 23 / Elnes Sàrl","Rue de la Coulouvrenière 23","1204","Genève"]
["205780","Restaurant les Brasseurs SA","Rue de Lausanne 27","1950","Sion"]
["205783","Eco-Line Diffusion-Traiteur","Rte de la Brinaz 11","1422","Grandson"]
["205789","Le Beefore Sarl","Place centrale 1","1920","Martigny"]
["205791","Eldora SA","Rue de la Tambourine 17","1227","Carouge GE"]
["205794","CHUV-EMS Soerensen-La Rosière","Av. de la Rosière 20","1188","Gimel"]
["205797","Restaurant du Port SA","Route du port 3","1470","Estavayer-le-Lac"]
["205802","Boucherie Charcuterie Savoy SA","Grand Rue 35","1616","Attalens"]
["205804","Le Scandale","Rue de Lausanne 24","1201","Genève"]
["205807","Centre Sportif, Café-Restaurant","Grand-Rue 3","1441","Valeyres-Montagny"]
["205809","Eldora Traiteur SA","Chemin des pontets","1213","Lancy"]
["205812","Eldora SA","Route des biches 10","1752","Villars-sur-Glâne"]
["205817","Kiosque Bazar","Grand rue 7","1095","Lutry"]
["205819","Tea Room-Boulangerie D'Onex","Route de Chancy 130","1213","Onex"]
["205822","Mir Capital SA - Tabac Journeaux","8 Place d'Arme","1227","Carouge GE"]
["205825","Restaurant Moulin du Choc","Z.I  Du Moulin du Choc B","1122","Romanel-sur-Morges"]
["205827","Rest. Babel","Place de Brunes 17","1257","Bardonnex"]
["205830","Marché Menoud","Rue Gruyères 51","1630","Bulle"]
["205832","Camping d'Hermance","Rue du Nord 44","1248","Hermance"]
["205835","La Grosse Pierre","Ch. de la Grosse Pierre","1110","Morges"]
["205837","Epicerie de Contamines","Rue des Contamines 25","1206","Genève"]
["205840","Brasserie des Halles de l'Isle Sàrl","Place de l'isle 1","1204","Genève"]
["205843","Rest. de l'Aérodrome de la Gruyère","Rte de l'Aérodrome 40","1663","Epagny"]
["205846","Boulangerie Salafa Sàrl","Place du Petit Saint Jean 21","1700","Fribourg"]
["205851","Rest. Le Pont de la Venoge","Ch. du Tennis 4","1026","Echandens-Denges"]
["205853","Rest. de la Gymnastique","Boulevard des Promenades 2","1227","Carouge GE"]
["205856","Rest. l'Aurore Sàrl","Rue du Lac 3","1342","Le Pont"]
["205858","Eldora UNICEF","Av. de la Paix 5-7","1202","Genève"]
["205861","Pause Gourmande","Ch. de Compostelle 1","1212","Grand-Lancy"]
["205867","BEKTESHI Dino","Ch. du Tennis 4","1026","Echandens-Denges"]
["205875","Intermarche MOJ","Rue Lamartine 27","1203","Genève"]
["205877","MM d'Oro Sarl","Rue Cardinal-Journet 43","1217","Meyrin"]
["205882","Piscine de Villeneuve","Rte Cantonale","1844","Villeneuve VD"]
["205884","Sandra Joliquin","Impasse du Chêne 4","1740","Neyruz FR"]
["205888","Cavalino Rosso Sàrl","Quartier pré-fontaine 58","1023","Crissier"]
["205890","EVAM","Rte de Chavannes 33","1007","Lausanne"]
["205892","Commune Val-de-Charmey","Rue du Centre 24","1637","Charmey (Gruyère)"]
["205897","Patisserie La Merveille","Rte d'Hermance 544","1248","Hermance"]
["205899","Mme Joelle Moser","Rue des Motels","1468","Cheyres"]
["205903","Asia Market","Rue de Rive 54","1260","Nyon"]
["205905","Geneva Shoping Groupe Sàrl","Rue de Montoux 52","1201","Genève"]
["205907","Boulangerie Tea-Room LHERITIER","Route de Lausanne 3","1032","Romanel-s-Lausanne"]
["205909","Point Shop Sàrl","Avenue de Morges 163","1004","Lausanne"]
["205912","Dardanelles Sàrl","Rue d'Yverdon 5","1530","Payerne"]
["205918","Parabi Sàrl","Rue d'Yverdon 5","1530","Payerne"]
["205930","Alimentation de la Gare","Rue de la Gare 23","1030","Bussigny-Lausanne"]
["205932","Kiosque Shop 1020","Rue de Crissier 7","1020","Renens VD"]
["205934","Goodkart Indoor Sàrl","Chemin du Bochet 2","1445","Vuiteboeuf"]
["205937","La Boulangerie de Salavaux Sàrl","Route de Vallamand 5","1585","Vully-les-lacs"]
["205940","Kebab d'Onex","Av. Bois de la Chapelle 106","1213","Petit-Lancy"]
["205943","Rest. du Camping","Camping Haute Gruyère","1667","Bas-Intyamon"]
["205945","Kiosque MIKAJO","Avenue de la Gottaz 28","1110","Morges"]
["205948","Kiosque Chez Rosy","Rue Centrale 23A","1880","Bex"]
["205950","Chez Tukta, Boulangerie-Epicerie","Rte de Villars 12","1566","St-Aubin FR"]
["205953","Sheraz Tamo - Tabac, Journaux","Av. des Grd Communes 27","1213","Onex"]
["205956","Fondation de Verdeil","Av. du Grey 38A","1000","Lausanne 22"]
["205962","Boutique Seguin Traiteur","Avenue d'Ouchy 29","1006","Lausanne"]
["205964","Café-Rest. Les Faverges","Ch. des Faverges 17","1006","Lausanne"]
["205966","Epicerie de l'Etoile","Av. des Alpes 2","1450","Ste-Croix"]
["205969","Hyalin Sàrl - Cabane Bastions","Promenade des Bastions 1","1204","Genève"]
["205972","Café Populaire Sàrl","Rue St-Michel 9","1700","Fribourg"]
["205974","Boulangerie Aigues-Vertes","Route de Chèvres 29","1233","Bernex"]
["205977","Apero Sol","Rue du Jura 4","1800","Vevey"]
["205980","Bain Bleu SA","Quai de Collogny 5","1223","Cologny"]
["205982","Chez Tony  Restaurant","Rue Jean Lecomte 6","1422","Grandson"]
["205985","Marché Riviera","Av. General Guisan 58","1800","Vevey"]
["205988","Fabrizio Café - Bak-Up Sàrl","Place des Aviateurs 2","1228","Plan-les-Ouates"]
["205993","Tea Room au Fil du Temps","Rte de Gy 30","1252","Meinier"]
["205996","Live Catering Exterieur","Rte de Vessy 31","1234","Vessy"]
["205999","M-Capital","Grand Rue 55-57","1820","Montreux"]
["206001","Kiosque Choudhary","Av. de Morges 141","1004","Lausanne"]
["206003","Station Tamoil - Plaine du Loup","Plaine du Loup 26","1018","Lausanne"]
["206006","Green Nature","Av. du Mail 11","1205","Genève"]
["206009","Himalaya Sàrl","Rue de Carouge 29","1205","Genève"]
["206011","Rest. Pizzeria de la Gare","Rue de la Gare 20","1165","Allaman"]
["206013","Eldora SA","Route du camping 29","1854","Leysin"]
["206016","Jet Pizza","Rte de Chêne 19","1207","Genève"]
["206019","Pro, Entreprise Sociale Privée","Ch. Louis-Hubert 4","1213","Petit-Lancy"]
["206022","Pro Restauration","Ch. Louis-Hubert 4","1213","Petit-Lancy"]
["206028","Café-Rest. du Stade, Mady Ms Sàrl","Rue des Pêcheurs 16","1400","Yverdon-les-Bains"]
["206031","Shell Meyrin Parc","Av. de Mategnin 45","1217","Meyrin"]
["206037","Boulangerie-Patisserie Bessa Sàrl","Rue de coutance 14","1201","Genève"]
["206040","Restaurant Alta Food Sàrl","Rue du Village 106","1874","Champéry"]
["206046","Confidence Bar-Café","Avenue DE-Budé 15","1202","Genève"]
["206049","Studio 9 SA - Sidewalk Café","Place du Tunnel 9","1005","Lausanne"]
["206052","Novae Restauration SA","Rte des Acacias 60","1211","Genève"]
["206058","Perch and Chips Sàrl","Ch. de Poussy 8","1214","Vernier"]
["206060","Etablissements publics","Route du Chêne 48","1208","Genève"]
["206065","Auberge de Marchissy","Place du Tilleuil 6","1261","Marchissy"]
["206068","Alimentation Le paquis","Rue de Monthoux 27","1201","Genève"]
["206070","Kiosque du Lac","Rue du Lac 43","1400","Yverdon-les-Bains"]
["206072","Boucherie Cap Soleil Mendes","Rue l'Ancien Compte 60","1635","La Tour-de-Trême"]
["206074","Zadran 99","Rue de Carouge 99","1205","Genève"]
["206076","Restaurant Che Ze","Rte Suisse 97","1290","Versoix"]
["206078","Auberge Communale de Féchy","Place du Saugey 3","1173","Féchy"]
["206080","Kiosque chez Liza","Quai Perdonnet 10","1800","Vevey"]
["206083","Kiosque Rizzello (Venneta)","Quai Roussy","1814","La Tour-de-Peilz"]
["206085","Union Hôtel Rest. - Lumil","Ch. des Croisettes 2","1066","Epalinges"]
["206087","Rest. Le Gruyerien","Rue de Chêne Bougeries 2","1224","Chêne-Bougeries"]
["206089","Rest. Le Gruyerien 2","Boulevard de Saint-Georges 65","1205","Genève"]
["206092","Novae Restauration SA","Rue du Zier 4","3963","Crans-Montana"]
["206095","Eldora SA","Route des Morillon 4","1202","Genève"]
["206097","Migrolino Plan-les-Ouates","Rte de Saint-Julien 18","1228","Plan-les-Ouates"]
["206100","Les Eglantines Tea-Room","Av. de la Prairie 26","1800","Vevey"]
["206102","Shop Le Virage","Rte de Frasses","1483","Montet (Broye)"]
["206105","Rest. Le Toupin","Lechereuse 98","1874","Champéry"]
["206108","TEMPESTINA SAGL","Les Corbes 2","1121","Bremblens"]
["206114","Brasserie-Pizzéria Montolieu","Ch. de Montolieu","1010","Lausanne"]
["206123","Prodega / Transgourmet","Route des deux Chênes 10","1847","Rennaz"]
["206125","Novae Restauration SA","Ch. Louis Hubert 1","1213","Petit-Lancy"]
["206129","Poco Loco - La Movida","Place Chauderon 4","1003","Lausanne"]
["206131","Migrolino Payerne","Rue de la Gare 12","1530","Payerne"]
["206133","Migrolino Montreux","Av. des Alpes 74","1820","Montreux"]
["206135","Rest. Les Peupliers","Av. de France 60","1950","Sion"]
["206137","Migrolino Versoix","Ch. Jean-Baptiste Vandelle 1","1290","Versoix"]
["206139","Store Service AG","Rte de Sous-la-Ville 2","1070","Puidoux"]
["206142","Eldora SA","Rue de la Golisse 8","1347","Le Sentier"]
["206143","Growa Cash+Carry","Route des deux chênes 10","1847","Rennaz"]
["206145","Café-Rest. de L'Etoile","Rue du Village 53","1214","Vernier"]
["206147","Miam Miam Sàrl","Pré aux Moines 8","1304","Cossonay-Ville"]
["206150","Masterfood Sàrl","Rue de Lausanne 60","1530","Payerne"]
["206153","Rest.-Pizzeria Le Boccalino","Avenue d'Ouchy 76","1006","Lausanne"]
["206156","Paddle Spirit Club","Rte des Grangettes 31","1845","Noville"]
["206158","Etablissements publics","Route du Chêne 48","1208","Genève"]
["206163","Novae Restaurant SA","Rte de Crassier 11","1262","Eysins"]
["206166","Le Bistrot de la terrasse Sàrl","Rue Ancienne 53,55","1227","Carouge GE"]
["206169","Café le 3","Rue de Vevey 36","1630","Bulle"]
["206170","AXA Winterthur","Paulstrasse 12","8400","Winterthur"]
["206173","Kiosque des Augustins","Rue de Carouge 65","1205","Genève"]
["206176","Hôtel de Ville","Rue de l'Hôtel de Ville 1","1522","Lucens"]
["206178","Di Terry Lupo Sàrl","Av. des Communes réunies 2","1212","Grand-Lancy"]
["206181","The Hamburger Foundation - FLF Sàrl","Rue Phillippe Plantamour 37","1201","Genève"]
["206189","Résidence du Marché","Rue du Marché 10","1630","Bulle"]
["206191","Derendiger AG","Fischermattelistrasse 6","3000","Bern"]
["206196","Fondation Saphir","Rte de Bellevue 53 / Case Postale","1401","Yverdon-les-Bains"]
["206202","Happyland Sàrl","Route du Foulon 24","3977","Sierre"]
["206205","Restaurant Les Grangettes","Rte des Grangettes 31","1845","Noville"]
["206207","Alimentation","Rte de la Scie 2","1667","Enney"]
["206213","Rest. du Camping Les Pins","Aux Viaules 23","1422","Grandson"]
["206215","Boréal Coffe Compagny Sàrl LAB","Rue du Stand 60","1204","Genève"]
["206219","Buvette Piscine Colovray","Rte du Village 26","1195","Dully-Bursinel"]
["206221","Buvette Piscine de Colovray","Ch. de la piscine 12","1260","Nyon"]
["206224","Andréfleurs Assens SA","Rte d'Yverdon 4","1042","Assens"]
["206226","Maison de Bourgogne","Ch. du midi 2","1260","Nyon"]
["206230","Fondation du Midi","Ch. du midi 2","1260","Nyon"]
["206233","Hôtel de ville de Bussigny","Rue de Lausanne 1","1030","Bussigny-Lausanne"]
["206235","As de Pique Sàrl","Ch. de la Léchère 7","1117","Grancy"]
["206238","Fabié Pâtisserie","Route des Pierres Blanches 1","192200","St-Julien aux Bois"]
["206242","Fondation des 4 Marronniers","Avenue des Quatre Marronniers 32F","1400","Yverdon-les-Bains"]
["206244","Sezai Market","Rue Aloys Fauquez 62","1018","Lausanne"]
["206246","Sezai Market 2","Av. d'Echallens 64","1004","Lausanne"]
["206248","Tabac des Aviateurs","Place des Aviateurs","1228","Plan-les-Ouates"]
["206250","Hôpitaux Universitaires de Genève","Ch. du Petit Bel-Air 2","1225","Chêne-Bourg"]
["206254","Hôpitaux Universitaires de Genève","Ch. du Petit Bel-Air 2","1225","Chêne-Bourg"]
["206259","Transports","Rue de la gare 22","1820","Montreux"]
["206265","Restostep SA","Case postale 98","1000","Lausanne 16"]
["206271","Bäckerei Les Arcades","Hauptstrasse 400","1656","Jaun"]
["206273","Restaurant La Fôret CSRC Sàrl","Rte Principale 273","1642","Sorens"]
["206275","Centre Réformé","Riau de La Maula 28","1637","Charmey (Gruyère)"]
["206277","Kookeat","Rue Eugene Marziano 21","1227","Geneve"]
["206278","Ahadi Sadaf Mini Shop","Rue de Lausanne 51","1201","Genève"]
["206279","Kiosque Eaux Vives Sàrl","Rte de Chêne 2","1207","Genève"]
["206281","Epicerie des Semailles","Ch. des Semailles 43","1212","Grand-Lancy"]
["206283","IF Burgers","Rte de Thonon 51","1222","Vésenaz"]
["206286","Kiosque de la Place","Place du Château","1422","Grandson"]
["206289","Café Coopérative","Rue du Châble 17","1957","Ardon"]
["206291","Xpert Kiosque","Place Centrale 1","1870","Monthey"]
["206293","Suprême Tacos","Av. Louis Casai 34","1216","Cointrin"]
["206295","Suprême Tacos","Rue Grand Pont 18","1003","Lausanne"]
["206297","Kiosque de la Venoge","Ch. de L'Islettaz","1305","Penthalaz"]
["206300","EMS Les Vergers","Rte de Riddes 263","1994","Aproz"]
["206302","Laksam Sàrl","Route du Bois-des-Frères 38","1219","Le Lignon"]
["206307","Restaurant Piscine et Patinoire","Allée de Winterthur 1","1400","Yverdon-les-Bains"]
["206309","Kiosque des Eaux Vives Sàrl","Rue du Chêne 2","1207","Genève"]
["206312","Yatouland/Laserland 22 Sté Optima","chemin de la gravillière 4","1227","Les Acacias"]
["206315","The Hamburger Foundation","Rue Plantamour 37","1201","Genève"]
["206320","AAT Top Marché Sàrl","Rue de Vevey 130","1630","Bulle"]
["206322","Relais Champagnard","Rte de Chancy 404","1236","Cartigny"]
["206325","Rest. plage d'ONU (SCD Sàrl)","Route de Lausanne 214/216","1292","Pregny-Chambésy"]
["206328","Kiosque Snack Bar","Rte des Tattes d'Oie 99","1260","Nyon"]
["206330","Rest. Les Granges Pronatura","Route de l'allondon 150","1283","Dardagny"]
["206332","Boulangerie-Patisserie Bessa Sàrl","Av. de Préville 1","1510","Moudon"]
["206335","Swiss Room Service Sàrl","Rte des Paccots 211","1619","Les Paccots"]
["206337","Sicofood","Chemin de l'Esparcette 5","1023","Crissier"]
["206339","Casa Benfica","Rte de Fribourg 28","1680","Romont FR"]
["206342","Ze Shop Ozcan & Associés","Av. de Bethusy 4","1005","Lausanne"]
["206345","Alimentation General Lina","Av. des Alpes 41","1820","Montreux"]
["206348","Station service Tamoil","Rte de St Julien 102","1228","Plan-les-Ouates"]
["206350","Le Débarcadère SNC","Rue de Rive 28","1260","Nyon"]
["206352","Tabac Journaux PMU Emini","Grand Rue 56","1180","Rolle"]
["206355","Outeirinho Marques & Cie","Rue du Beulet 5","1203","Genève"]
["206358","Tea Room aux bonnes choses","Rue des Terreaux 17","1003","Lausanne"]
["206360","Café et boucherie du Cerf","Rte de Bulle 2","1687","Vuisternens-Romont"]
["206362","L'Ecuyer des saveurs","Rte des Chaffeises 18","1092","Belmont-Lausanne"]
["206367","Nazari Tabac Journaux","Rue de la Fontenette 9","1227","Carouge GE"]
["206375","Zou Bar","Rte de Lausanne 222","1292","Chambésy"]
["206378","Fondation Morija","Rue des Philosophes 2","1400","Yverdon-les-Bains"]
["206380","Novae Restaurant SA","Rue Louis Chevrolet 6A","2300","La Chaux-de-Fonds"]
["206382","Tea Room Millioud","Place du Marché","1040","Echallens"]
["206385","Boucherie du Plateau Sàrl, Traiteur","Rue du Collège 4","1410","Thierrens"]
["206387","Kiosque de Morgins Frane Sàrl","Rte de France 2","1875","Morgins"]
["206390","Boulangerie Carrillat","Rue du Lievre 2","1227","Carouge GE"]
["206392","La Fée Shop Café Bar R.I.","Ch. de Cocagne 43","1030","Bussigny-Lausanne"]
["206395","Eldora SA","Rue Joseph Piller 13","1700","Fribourg"]
["206397","Landi","Rue de la Sablière 15","1242","Satigny"]
["206402","FC Amical St-Prex","CP 19","1162","St-Prex"]
["206405","Arena Cinema AG","Quai Gustave Ador 87","1207","Genève"]
["206406","Migrolino Bussigny","Place de la Gare 1","1030","Bussigny-Lausanne"]
["206408","Illyan-Shop","Avenue de la gare 55","1880","Bex"]
["206410","Gasser activité loisir","Rue Edouard-Verdan 4","1400","Yverdon-les-Bains"]
["206415","NonStop, Meet.p Sàrl","Rue Verdaine 3","1095","Lutry"]
["206421","Pub le Galion","Rte de Genève 1","1033","Cheseaux-Lausanne"]
["206423","Kiosque du Sentier","Grand-Rue 34","1347","Le Chenit"]
["206428","Foyer du Vallon","Rte du Vallon 16","1224","Chêne-Bougeries"]
["206431","Totem Sport & Access SA","Av. du Mont Blanc 38","1196","Gland"]
["206433","Boucherie de Chailly","Av. de Béthusy 88","1012","Lausanne"]
["206436","Boulangerie Millioud SA","Place du Marché 5","1040","Echallens"]
["206442","Caviar House Airport Premium","Rte de l'Aéroport 9 - CP 163","1215","Genève"]
["206448","Restaurant Le Relais","Av. de Morges 163","1004","Lausanne"]
["206450","Ecole de Voile Les Vikings","Chemin des Collons 16","1462","Yvonand"]
["206456","Caravane Plage de Mies","Plage de Mies","1295","Mies-Tannay"]
["206458","Rest. de la Gare","Place de la Gare A","1610","Châtillens"]
["206461","Café-Rest. de la Gare","Place de la Gare 2","1096","Cully"]
["206464","Epicerie du Livron","Rue de Livron 17","1217","Meyrin"]
["206466","Kiosque de Maillefer","Chemin de maillefer 143","1052","Le Mont-sur-Lausanne"]
["206468","Tea-Room Loichet","Rue de Lausanne 64","1202","Genève"]
["206471","Rest.Le Toucan","Avenue Louis Rendu 9","1217","Meyrin"]
["206474","Restaurant FC Bavois","Place de Pré Mousquetaire 3","1372","Bavois"]
["206476","Epicerie Sadiku","Ch. de la Coupe Gordon Benett 2","1219","Le Lignon"]
["206479","Rest. du Logis du Pont","Route du vergnolet 18A","1070","Puidoux"]
["206482","Tabac Stand","Rue des Rois 4","1204","Genève"]
["206485","Novae Restauration SA","Aérôpole 108","1530","Payerne"]
["206488","Auberge au Cavalier","Grand Rue 5","1188","St-George"]
["206491","BP-Service Monthey","Av. de France 57","1870","Monthey"]
["206494","Pizza Kings","Rte de Berne 228","1066","Epalinges"]
["206498","Novae Restaurant SA","Ch. des Dolines 9 / Les Saignoles","2400","Le Locle"]
["206501","Kiosque Isabelle","Avenue de la gare 14","1880","Bex"]
["206504","Restaurant de la Chavanne","Route de la Gruyère 14","1608","Oron"]
["206506","St.George's International School","Chemin de Saint-Goerges 19","1815","Montreux"]
["206507","Domino's Pizza","Boulevard Carl-Vogt 6","1201","Genève"]
["206508","Domino's Pizza","Rue Docteur Alfred Vincent 17","1201","Genève"]
["206510","Gymnase du Bugnon","Route d'Arnier 12","1092","Belmont-Lausanne"]
["206514","Café Restaurant Auberge de l'Union","Rue de la Gare 3","1607","Oron"]
["206516","Vivendo Télérestaurant","Rue Sautter 11","1205","Genève"]
["206518","Restaurant Le Rossignol","Avenue du Léman 36","1005","Lausanne"]
["206520","Aslan Party Décorations","Avenue Ernest Pictet 22","1203","Genève"]
["206522","Ideal Auto Sàrl,Shop du haut lac","Route cantonale 12","1897","Port-Valais"]
["206525","Auberge Communale de Bussy","Route de l'Arignon 19","1541","Bussy FR"]
["206528","Suprême Tacos","Rue Pré Jerome 21","1205","Genève"]
["206533","Auberge de la Croix Blanche","Rue de la Dîme 2","1307","Lussery"]
["206535","Cuisine RPA","Case postale 504","1110","Morges"]
["206540","Rest. Piscine de la Nautica","Chemin de Marcelly 10","1226","Thônex"]
["206543","Grand Hôtel des Bains","Route des Bains 42","1892","Lavey-Village"]
["206546","Rest. Le Caroll","Ch. de Caroline 18","1213","Petit-Lancy"]
["206548","El Latino Restaurant","Rue de l'Industrie 6","1450","Ste-Croix"]
["206550","Tea Room Chez Nous","Rue Grenade 19","1510","Moudon"]
["206553","BG Gastronomie Sàrl","Grande Rue 64","1618","Châtel-Saint-Denis"]
["206559","Vida Loca","Route industrielle 1","1880","Bex"]
["206561","Eldora SA","Avenue des Bains 1","1007","Lausanne"]
["206563","Swiss Medical Network","Clinique de Montchoisi","4500","Solothurn"]
["206568","La Carcailleuse.ch Sàrl","Rue de Lausanne 31","1337","Vallorbe"]
["206571","Tamana Market Bojmasnemil Sàrl","Route de Chêne 5","1207","Genève"]
["206574","Tamana Market ICSS SA","Rue des Paquis 27","1201","Genève"]
["206576","Tamana Market ICSS SA","Rue de la Servette 13","1201","Genève"]
["206579","Tamana Market ICSS SA","Avenue Henri Dunand 2","1205","Genève"]
["206580","Pause Café SA","Route de Pra Riond 2","1635","Bulle"]
["206582","Rest. Police Municipale Lausanne","Rue St-Martin 33","1005","Lausanne"]
["206584","Hôtel le petit Moulin","Route Blanche 5","1274","Grens"]
["206587","Novae Restauration SA","Ch. de la Vuapillière 33 CP 2464","1260","Nyon"]
["206589","Bowling de Meyrin, BOWLBI SA","Chemin de l'étang 67","1219","Vernier"]
["206591","Bowling de la Praille,TIMARILYN SA","Route des Jeunes 10","1227","Lancy"]
["206594","Bowling de Sévaz, PINBOWL SA","La Guérite 1","1541","Sévaz"]
["206597","PINBOWL SA","Z.I La Guérite 1","1541","Sévaz"]
["206603","Bowling de Muntelier, Lestbowl","Hauptstrasse 171","3286","Muntelier"]
["206608","Restaurant de Colovray,TIMARILYN SA","Route de Genève 37","1260","Nyon"]
["206611","KINGBUZZ SA, HDINER MORGES","Avenue Riond-Bosson 2","1110","Morges"]
["206612","Mohamed Aiche","18 rue des Prés","25400","Audincourt"]
["206615","Essentiel Petit Mag Sàrl","Route de Villarepos 2","1595","Faoug"]
["206620","Eldora SA","Chaussée de la Guingette 10","1800","Vevey"]
["206622","Boucherie service traiteur Esseiva","Rue de l'Ancien Comté 35","1635","Bulle"]
["206624","Store Service AG","Route de Morrens 4","1053","Cugy VD"]
["206627","Store Service AG","Route de Moudon 13","1072","Forel (Lavaux)"]
["206629","Store Service AG","Route de Villars-Vert 1","1752","Villars-sur-Glâne"]
["206632","Migros Partenaire","Chemin de Publoz 11","1070","Puidoux"]
["206634","SB Sport Service SA","Avenue de Mont-Blanc 37","1196","Gland"]
["206637","Auberge Communale de Sullens","Rue du Château 1","1036","Sullens"]
["206639","Pizzeria L'Orée des Bois","Route de Montheron 63","1053","Lausanne"]
["206642","Mission permanente des Etats Unis","Av. des Communes réunies","1212","Grand-Lancy"]
["206647","Hôpitaux Universitaire Genève","Ch. Petit Bel-Air 2","1225","Chêne-Bourg"]
["206651","Café de la Coulouvrenière","Rue de la Coulouvrenière 29","1204","Genève"]
["206653","Buvette du Duzillet","CP 205","1870","Monthey 1"]
["206657","Chark Geneva Group Sàrl","Rue Paul-Bouchet 3","1201","Genève"]
["206661","Hôpitaux Universitaire Genève","Ch. Petit Bel-Air 2","1225","Chêne-Bourg"]
["206665","Tabac Rothschild","Rue Rothschild 41","1202","Genève"]
["206667","SAB Traiteur SARL,Collex's café","Route de la Rosière 1a","1239","Collex"]
["206671","O Bom Gosto Vaud SA","Route Suisse 35","1196","Gland"]
["206674","Station Shop 35","Rue du Clos 2","1800","Vevey"]
["206677","Novae Restauration SA","Avenue de provence 14","1007","Lausanne"]
["206680","Cercle Cervantes","Rue de la Plaine 67","1400","Yverdon-les-Bains"]
["206683","Michel Sport Le Crosets Sàrl","Batterie de boîte 133","1873","Val-d'Illiez"]
["206688","Tabac épicerie de la Cluse","Boulevard de la Cluse 17","1205","Genève"]
["206690","Casino de Montreux SA Caféteria","Rue du Théâtre 7","1820","Montreux"]
["206693","Auberge de la Couronne RAFIKI Sàrl","Route de Jussy 316","1254","Jussy"]
["206695","Ekai Sushi Restaurant","Rue du Grand Pont 8","1003","Lausanne"]
["206699","Ekai Sushi Restaurant","Espace de l'Europe 3","2000","Neuchâtel"]
["206703","Ekai Sushi Restaurant","Place du Bourg-de.Four 18","1204","Genève"]
["206707","Ekai Sushi Restaurant","Rue Micheli-du-Crest 20","1205","Genève"]
["206712","Pizzeria des Terreaux","Rue des Terreaux 14C","1510","Moudon"]
["206716","Auberge des Trois Bonheurs","Rue Crespin 14","1206","Genève"]
["206719","Kiosque La Gauloise","Chemin Vert 11","1804","Corsier-sur-Vevey"]
["206721","Kiosque Gambetta","Rue Gambetta 19","1815","Clarens"]
["206723","M. Moetz Badr","Rue des Minoteries 7","1205","Genève"]
["206727","Cuisine RPA","Chemin de Merdisel 30","1242","Satigny"]
["206733","Buvette du FC Bas Gibloux","Avenue du Générale Guisan 32","1700","Fribourg"]
["206737","Market Ora","Rue de Genève 77 B","1004","Lausanne"]
["206740","Centre Tennis Moulin à Pigeons","Case Postale 408","1530","Payerne"]
["206745","Richoz Olivier","Appartement Av. Nestlé 11","1800","Vevey"]
["206749","Boucherie de Campagne","Le Dausaz 3","1607","Les Tavernes"]
["206752","Tabac Pre Jerome","Rue du Pré Jérôme 14","1205","Genève"]
["206754","Black Tap SA","CP 6428","1211","Genève"]
["206758","Restaurant La Nautique","Rue de Rive 28","1260","Nyon"]
["206760","Parnasse Sàrl","Avenue Eugène Pittard 22 TER","1206","Genève"]
["206765","Buvette Skater (terrain de foot)","Ch. du Milieu 4","1580","Avenches"]
["206769","Association Casa Do Benfica Genève","Rue de Bale 16","1201","Genève"]
["206772","Bulldog Pizza Sàrl","Place des perrieres 3","1296","Coppet"]
["206777","Antonieta Barbosa Ribeiro Hamdi","Rue du Pont 30","1820","Montreux"]
["206781","Resto Evasion Sàrl","Rue du Vidollet 7","1202","Genève"]
["206786","Plage de Promenthoux","Route de Promenthoux 93","1197","Prangins"]
["206788","Café Restaurant Favez Sàrl","Route Industrielle 9","1897","Bouveret"]
["206791","Kiosque Unil","Collège Propédeutique","1015","Lausanne"]
["206793","Kiosque AOMC","Avenue du Crochetan 2","1870","Monthey"]
["206795","M. Sangdel Mogjhan","Avenue du Crochetan 2","1870","Monthey"]
["206797","SADIKU  UPPS","Route de la Plaine 88","1283","Dardagny"]
["206800","Kiosque de Vinet","Avenue Alexandre Vinet 26B","1004","Lausanne"]
["206807","Prestiges Gourmands SA","Rue Joseph Girard 24","1227","Carouge GE"]
["206815","Prestiges Gourmands SA","Rue Joseph Girard 24","1227","Carouge GE"]
["206819","Rest.Tennis Club Collonge Bellerive","Chemin de Relion 22","1245","Collonge-Bellerive"]
["206825","Totem Sport & Access SA","Chemin de Verney 5A","1024","Ecublens"]
["206830","Kiosque des Noutes","Rue des Alpes 38","1023","Crissier"]
["206832","Tabac Epiverie du Stand 2","Rue du Tir 1BIS","1204","Genève"]
["206834","L'Oiseau Epicerie Import-Export","Rue de la Pontaise 34","1018","Lausanne"]
["206837","Restaurant Le Bivouac","Rue des Forges 2","1348","Le Brassus"]
["206839","Kiosque Porte des Acacias","Rue Caroline 10","1227","Carouge GE"]
["206842","Café Restaurant Gros Chêne","Avenue des grandes communes 27","1213","Onex"]
["206845","BDAC Sàrl","Route de Veyrier 86","1227","Carouge GE"]
["206847","Restaurant Euro Café","Rue de la Tour 7","1530","Payerne"]
["206850","Le P'tit coin Gourmand Sàrl","Avenue de Morges 45","1027","Lonay"]
["206853","Queen Victoria Bar-Rest.","Rue du Grand Bureau 16","1227","Carouge GE"]
["206856","Epicerie de La Borde","Rue de la Borde 1","1018","Lausanne"]
["206858","Le Belmont SA","Rue des Corbaz 1","1092","Belmont-Lausanne"]
["206860","Restaurant Belvedère","Avenue du Petit Senn 22","1225","Chêne-Bourg"]
["206862","FLF Sàrl","Rue Plantamour 37","1201","Genève"]
["206867","Foodium Sàrl,Restaurant la Pirogue","Chemin des Châtaigniers 28","1292","Chambésy"]
["206870","Kiosque le Mauv","Rue Mauverney 18A","1196","Gland"]
["206872","Clinique du Grand Salève","Avenue du Grand Salève 2","1255","Veyrier"]
["206874","Chez Baki Kiosque Emerllahu","Grand rue 100","1180","Rolle"]
["206876","Buvette de la Plannaz","Ch. du Stand 21 A","1024","Ecublens VD"]
["206878","Buvette de la Plannaz","Chemin de Montfens","1030","Bussigny"]
["206880","Lahore Food","Rond-point de la Jonction 8","1205","Genève"]
["206882","MAGNE TRAITEUR SARL","Rue de Lausanne 25","1201","Genève"]
["206885","Best Pizza & Kebab","Route Cantonale 104","1025","Saint-Sulpice"]
["206889","Camping","Route du Signal 9","1350","Orbe"]
["206891","Boréal Coffe Compagny Sàrl","Rue du Mont-Blanc 17","1201","Genève"]
["206896","Padsha Shop","Rue du Village 6","1032","Romanel-s-Lausanne"]
["206899","Tabac et Journaux","Rue de Montchoisy 66","1207","Genève"]
["206901","Happy Days Coffee","Chemin de Pont-Ceard 12","1290","Versoix"]
["206903","Cabane des Monts Chevreuil","Chemin de la Crétasse 14","1863","Le Sépey"]
["206905","Cabane des Monts Chevreuils","","1862","Les Mosses"]
["206907","Tantuni Food","Route du Canada 1","1147","Montricher"]
["206910","Café de l'étoile Vernier Sàrl","Rue du Village 53","1214","Vernier"]
["206915","Boulangerie les Douceurs","Rue de Bernex 291","1233","Bernex"]
["206917","Menamine Sàrl , IL Cappucino","Chemin du Champ d'Anier 15","1209","Genève"]
["206920","Y'Grec Epicerie","Grangette 7","1094","Paudex"]
["206925","Brasserie de Chavannes-Près-Renens","Av de Prefaully 15A","1022","Chavannes-Renens"]
["206927","Kiosque 27","Av de Prefaully 13","1022","Chavannes-Renens"]
["206929","Groupe Supreme Casai Sàrl","Route de Ferney 220","1218","Le Grand-Saconnex"]
["206933","Tabac Alimentation 19","Rue du Pré du Marché 19","1004","Lausanne"]
["206936","Restaurant de l'Arquebuse SA","Rue du Stand 36","1204","Genève"]
["206938","Miele SA articles Culiniara","Route Sous-Riette 23","1023","Crissier"]
["206940","El Chiringuito Sàrl","Route de Florissant 64","1206","Genève"]
["206944","Nomad Chef SA","Ch.de la Musardière 9","1131","Tolochenaz"]
["206948","Pause Café SA","Avenue Louis Casai 27","1209","Genève"]
["206950","Garage de Carignan SA","Carignan 2","1565","Vallon"]
["206953","Cafétéria Snack Bar","Route d'Englisberg 9","1763","Granges-Paccot"]
["206955","Nectra Food SA","Rue de la Mèbre 7","1033","Cheseaux-Lausanne"]
["206957","Kiosque Tabac Sucré","Grand-Rue 6","1680","Romont FR"]
["206959","Restaurant Les Mazots","Route du Col de la Croix 68","1865","Les Diablerets"]
["206962","Musée du Fer et du chemin de Fer","Grandes-Forges 11","1337","Vallorbe"]
["206965","Major Grill-Alves Vale Constantino","Avenue d'Aïre 45A","1203","Genève"]
["206967","Kiosque de Morgins","Route de France 2","1875","Morgins"]
["206969","Kiosque,Boulangerie des Croisettes","Chemin des Croisettes 21","1066","Epalinges"]
["206972","Restaurant du Tennis","Av. de Rhodanie 51","1007","Lausanne"]
["206975","FOZ Sàrl","Rue de l'avenir 38","1020","Renens VD"]
["206980","Epicerie le 4 chez Amine","Av. Jules Crosnier 4","1206","Genève"]
["206982","BP Service Lully","Restoroute Rose de la Broye 3","1470","Lully FR"]
["206985","Refuge de Darwyn","Chemin du clos 15","1233","Bernex"]
["206988","Saintsat 17 Sàrl","Route de Planachaux 160","1874","Champéry"]
["206991","Café du Marché","Place du Marché 1","1020","Renens VD"]
["206993","OTTO's AG Radikal","Impasse du Nouveau Marché 7","1723","Marly"]
["206995","OTTO's AG Radikal","La Coche 7","1852","Roche VD"]
["207000","Kiosque des Uttins SNC","Rue de Lausanne 17","1028","Préverenges"]
["207003","Adlibit'home SA","Route de Coinsin 1","1167","Lussy-sur-Morges"]
["207009","Adlibit'home SA -EMS Les Driades","Quai de la Thièle 12","1400","Yverdon-les-Bains"]
["207011","Kiosque Euro Asia","Rue d'Orbe 10","1400","Yverdon-les-Bains"]
["207017","Restaurant Alentejo","Rue de l'industrie 66","1030","Bussigny-Lausanne"]
["207019","Si & Li Sàrl","Allée de l'Innovation 2","1217","Meyrin"]
["207024","Novae Restaurant SA","Ch. du Pommier 15","1218","Le Grand-Saconnex"]
["207030","Rest. de l'aéroport de Lausanne","Av. du Grey 117","1018","Lausanne"]
["207036","French 75 Ceylon Sàrl","Rte du Relais 5","1510","Moudon"]
["207039","Résidence La Plaine","Rte de Challex 17","1283","La Plaine"]
["207042","Corner Services Sàrl","Rue de la Servette 100","1202","Genève"]
["207045","Au Petit Marché de Cour","Avenue de Cour 75","1007","Lausanne"]
["207048","Secret Gourmand, Alexandre Golay","Saut-Pernet 3","1348","Le Brassus"]
["207051","Oh Martine Sàrl","Route de Chêne 6","1207","Genève"]
["207054","Les gourmandises de Sophie","Chemin des grands vignes 9","1275","Chéserex"]
["207056","Mojon SA","Rue du Flon 3","1145","Bière"]
["207058","SF Cash & Carry SA","Rte de Belfaux 11","1762","Givisiez"]
["207061","Hôtel des Mosaïques, BMEL Sàrl","Chemin du Suchet 14","1350","Orbe"]
["207064","Les Cuisines de Satigny","Route des Moulière 5","1217","Meyrin"]
["207067","Restaurant Bellevue","Rue des Fontaines 20","1425","Onnens VD"]
["207070","Totem Escalade SA","Route de Vallaire 92","1024","Ecublens VD"]
["207073","Les 3 Sens SA","En Châtagnis 21","1143","Apples"]
["207079","Valwood Sàrl","Case postale 1584","1211","Genève 1"]
["207084","VOI Cirque","Place du Cirque 2","1204","Genève"]
["207086","VOI Les Vergers","Chemin de la Planche","1217","Meyrin"]
["207088","Asmar Multi Service Sàrl","Avenue Henri Dunnand 6","1205","Genève"]
["207091","Novae Restaurant SA","Place St-François 14","1001","Lausanne"]
["207096","Fast Food","Boulevard du pont d'Arve 28","1205","Genève"]
["207099","La Grande Boucherie du Molard SA","Rue du Marché 20","1204","Genève"]
["207101","Café Restaurant la Tuilère","Route de Romanel 20","1018","Lausanne"]
["207107","Adlibit'home SA","Chemins des Novalles 1","1020","Renens VD"]
["207110","Doppio Gusto Sàrl","Route de Chancy 135","1213","Onex"]
["207113","Restaurant le Repère","Route de l'Etraz 201","1290","Versoix"]
["207116","Restaurant Le Ruby","Grand-Rue 62","1660","Château-d'Oex"]
["207118","Restaurant la Pyramide","Route des Chavannes 35","1007","Lausanne"]
["207120","MGR De La Rose SA","Route de Grandcour 37","1530","Payerne"]
["207122","Mini-Golf d'Estavayer le lac","Route de la Plage 50","1470","Estavayer-le-Lac"]
["207125","Mandarin Oriental Hôtel","Quai Turrettini 3","1201","Genève"]
["207128","Burger Brothers, G&B SA","Rue de Carouge 63","1205","Genève"]
["207131","Aqua Parc","Route de la Plage 122","1897","Bouveret"]
["207134","A la Plage Sàrl","Chemin des Grèves 20","1468","Cheyres"]
["207140","Restaurant Le Maraîcher","Route de Pré-Bois 20","1215","Genève"]
["207143","LA PLAGE","Chemin de La Grande Gouille 1","1470","Estavayer-le-Lac"]
["207145","Hôtel-Restaurant de la Poste","Rue Paul Golay","1341","Orient"]
["207148","Auberge Communale Rest. Toscane","Grand'Rue 18","1176","St-Livres"]
["207150","Fondation de la Villa Beausite","Route St-Nicolas de Füe 30","1700","Fribourg"]
["207153","La Cigale Rouge","Route de Massonnens 3","1680","Romont FR"]
["207156","Chez Nono","Route de Crassier 17","1275","Chéserex"]
["207158","Concordance SA","Route du Verney 18","1070","Puidoux"]
["207161","Concordance SA","Route de Marcolet 39","1023","Crissier"]
["207163","Concordance SA","Chemin du Lacuez 4","1807","Blonay"]
["207165","Concordance SA","Rue Gambetta 3","1815","Clarens"]
["207168","Concordance SA","Rue du Village 26","1854","Leysin"]
["207173","Harry Shop","Rue du pont neuf 6","1227","Carouge GE"]
["207174","Restaurant la Plage","Impasse Plage 4","3963","Crans-Montana"]
["207176","Restaurant Chinois Coco Sun","Rue de l'Industrie 50","1030","Bussigny-Lausanne"]
["207179","Chalet n°2 Crêpes et gaufres","Rue du Vieux Billard 6","1205","Genève"]
["207185","Secteur petite enfance Dumas","Av. Dumas 24","1206","Genève"]
["207190","Secteur petite enfance Dumas","Av. Dumas 24","1206","Genève"]
["207195","EMS Le christ-Roi","Chemin du Châtelard 53","1978","Lens"]
["207197","Shell Libellules","Av. De L'Ain 5","1219","Le Lignon"]
["207200","Restaurant Le Pâquis","Rue du Pâquis 8","1033","Cheseaux-Lausanne"]
["207201","Coco Giorgio","Route de Reculan 9","1024","Ecublens VD"]
["207203","CinEmotion-Rex Sàrl","Case postale 1399","1701","Fribourg"]
["207208","CinEmotion Bulle Sàrl","Case postale 1399","1701","Fribourg"]
["207214","CinEmotion Bulle Sàrl","Case postale 1399","1701","Fribourg"]
["207219","Chez Vegas","Avenue de la Gare 22","1700","Fribourg"]
["207221","Restaurant Manhattan","Rue de Genève 17","1003","Lausanne"]
["207223","Restaurant Acacia","Rue Caroline 17","1227","Carouge GE"]
["207226","Restaurant Le Leman","Rue Louis de Savoie 61","1110","Morges"]
["207229","Restaurant le Smash","Route des Grives 1","1763","Granges-Paccot"]
["207231","Novag SA","Case postale 6471","1211","Genève"]
["207236","Restaurant la Fromagerie Sarl","Rue du Village 4","1854","Leysin"]
["207238","Paradise Kebab","Rue du Père-Girard 10","1700","Fribourg"]
["207240","Migros partenaire","Chemin des Près Morés 2","1315","La Sarraz"]
["207242","Deliciel SA","Bruggerstrasse 48","5413","Birmenstorf AG"]
["207245","La nouvelle Charrue SA","Route d'Echallens 1","1032","Romanel-s-Lausanne"]
["207248","Marché Gruyère, Haji","Rue de Gruyères 51","1630","Bulle"]
["207250","Pizza GO","Rue des Colombes 3","1868","Collombey"]
["207253","Le Leman Sarl","Rue de Rive 28","1260","Nyon"]
["207256","Le Tie Break - CCVAL Sàrl","Chemin de l'impératrice 27","1292","Chambésy"]
["207258","TEMPESTINA SAGL","Les Corbes 2","1121","Bremblens"]
["207262","Hôpital Réseau Santé Balcon du Jura","Rue des Rosiers 29","1450","Ste-Croix"]
["207265","The Bowling Hôtel","Rue des Fléchères 1","1274","Signy-Avenex"]
["207267","Inglewood Grancy","Boulevard Grancy 32","1006","Lausanne"]
["207270","Tabac alimentation de Pérolles","Boulevard de Pérolles 83","1700","Fribourg"]
["207273","Kiosque Bayat","Place des eaux vives 2bis","1207","Genève"]
["207275","Restaurant-Pizzeria Le Rialto Sàrl","Avenue Mayor-Vautier 2","1815","Clarens"]
["207278","L'épi Doré Sàrl","Avenue Henri-Dunant 3","1205","Genève"]
["207281","L'épi Doré Sàrl","Avenue Henri-Dunant 3","1205","Genève"]
["207287","Tennis Club de Crans","Chemin des sports 3","1299","Crans-près-Céligny"]
["207289","L'Osteria Di Oreste","Avenue Louis-Casaï 82","1216","Cointrin"]
["207292","Resto de la piscine de Moudon Sàrl","Chemin du Bois Gentil 46","1510","Moudon"]
["207294","Caféteria BC Sàrl","Rue Daniel Colladon","1015","Lausanne"]
["207296","Alimentation des Cygnes","Rue des Cygnes 53","1400","Yverdon-les-Bains"]
["207298","The Cube Diffusion SA","Place de la Gare 1","1296","Coppet"]
["207301","Vimalan Alimentation","Avenue de la Confrérie 7","1008","Prilly"]
["207304","Restaurant du lac SA","Quai de Versoix 1","1290","Versoix"]
["207306","Burger King","Route de Riaz 100","1630","Bulle"]
["207308","Burger King","Place de la Gare 1","1700","Fribourg"]
["207310","Burger King","Place de l'Europe 11","1203","Genève"]
["207312","Burger King","Rue de la Mèbre 9","1020","Renens VD"]
["207314","Burger King","Place de la Gare 9","1260","Nyon"]
["207316","Burger King","Rue du Grand Pont 10","1003","Lausanne"]
["207318","Presse et Alimentation Djaafari","Boulevard Georges-Favon 1","1204","Genève"]
["207320","Alif Kiosque","Chemin de Montolivet 20","1006","Lausanne"]
["207322","Live Catering Sarl","Route de Vessy 31","1234","Vessy"]
["207327","Café Restaurant Hong Yan","Rue de la Pontaise 49","1018","Lausanne"]
["207330","Hôtel de Ville","Grand-Rue 13","1345","Le Lieu"]
["207332","Minimarket Monsoon","Rue de Genève 4","1225","Chêne-Bourg"]
["207335","Coopérative Sucré Salé TPF","Rue Victor-Tissot 24","1630","Bulle"]
["207340","Ali Baba Tabac Alimentation","Boulevard Saint-Georges 5","1205","Genève"]
["207343","Epicerie Domapa Sàrl","Chemin Antoine Verchere 6","1217","Meyrin"]
["207346","Housetrap Group SA","Rue de Vevey 218","1630","Bulle"]
["207349","TCS Training & loisirs SA","Chemin de la Bise","1222","Vésenaz"]
["207352","Hôtel de ville","Grand Rue 14","1462","Yvonand"]
["207355","Boulangerie Liotard","Rue Liotard 42","1203","Genève"]
["207358","La Tienda del Chavo Sàrl","Rue du Maupas 30","1004","Lausanne"]
["207360","Kioque du Moulin","Avenue de Marcelin 1","1110","Morges"]
["207363","Restaurant Set et Match - TCSI","Chemin de la Montagne 160","1225","Chêne-Bourg"]
["207366","Manor AG Ray.71","Rue Pichard 3","1003","Lausanne"]
["207371","Rest. le Jardin d'Asie","Avenue du théatre 7","1005","Lausanne"]
["207373","Chantier Naval de Vidy SA","Allée du Bornan 2","1007","Lausanne"]
["207376","Association Le Foyer","Route d'Oron 90","1010","Lausanne"]
["207378","Boulangerie Tea-room","Grand-Rue 40","1482","Cugy FR"]
["207380","Rest. Le Guang Jing","Rue des Guillermaux 27","1530","Payerne"]
["207384","Kiosque du Camping Forel","Ch. des Cases 2","1072","Forel (Lavaux)"]
["207388","M. Michel Chaulmontet","Cierne des Paccots 40","1619","Les Paccots"]
["207393","Kiosque Minigolf L'Ouchettaz","Place de l'Ouchettaz","1844","Villeneuve VD"]
["207399","Maison Sainte-Marthe","Rue de l'Eglise 38","1897","Bouveret"]
["207401","Restaurant Berra","Place de l'Ecole 1","1871","Choëx"]
["207406","Boucherie du Mouret","Ch. de la Croix Blanche 30","1724","Praroman-Le Mouret"]
["207408","Dominique & Tip Sàrl","Route de Romont 4","1699","Porsel"]
["207410","Rest. Rendez-vous des Amis","Rte de Chatel-St-Denis 93","1617","Tatroz"]
["207415","Auberge communale","Rte du Village 10","1184","Luins"]
["207418","Alimentation générale","Grand Rue 16","1095","Lutry"]
["207420","Manor AG Ray. 71","Grand-Rue 36-46","1110","Morges"]
["207423","Restaurant Le Popu Sàrl","Rte du Jorat 67","1000","Lausanne 26"]
["207425","Manor AG Ray. 71","Rue du Lac 40","1400","Yverdon-les-Bains"]
["207428","Restaurant du Jura","Route du Village 3","1545","Chevroux"]
["207430","Rest. de la Parqueterie","Chemin de la parqueterie 1","1684","Mézières FR"]
["207433","Demaurex & Cie S.A.","Rue Francois-Dussaud 15","1227","Geneve"]
["207435","Manor AG, Basel","Rue Cornavin 6","1201","Genève"]
["207438","Au Petit Magaz Sàrl","Grand-Rue 7","1083","Mézières VD"]
["207440","Ribulotta Edi-Franco","Ch. Jules-Ed-Gottret 5","1255","Veyrier"]
["207448","Café Fifty-Fifty","Rue Neuve du Molard 7","1204","Genève"]
["207453","M. Premjee Urvashi","Grand-Rue 71","1820","Montreux"]
["207456","Persechini Dominique","Ch. de la Longeraie 2","1312","Eclépens"]
["207458","M. Bouchekoua Lassad","Av. du Censuy 24","1020","Renens VD"]
["207463","Maison des Jeunes","Ch. d'Entre-Bois 1","1018","Lausanne"]
["207466","Station Agip","Av. Rhodanie 5","1007","Lausanne"]
["207471","ESPACE GOURMAND","Rte de l'Intyamon 118","1666","Villars-sous-Mont"]
["207473","Cyber-Mag","Av. de La Borde 25","1018","Lausanne"]
["207478","Migrol Service Cointrin","Av. Louis-Casai 74-76","1216","Cointrin"]
["207481","M. Guanzini Vincent","Rue du Lac 8","1400","Yverdon-les-Bains"]
["207483","Wong Man-Sum","Rte de Vallaire 3 Bis","1025","St-Sulpice VD"]
["207486","Manor AG","Avenue Général Guisan 1","1800","Vevey"]
["207489","Auberge Communale","Place du tilleul 1","1268","Burtigny"]
["207491","Station Shop BP","Rte de Genève 58","1028","Préverenges"]
["207494","Manor Grands Magasins Ray.71","Rue de Romont 30","1700","Fribourg"]
["207496","Boulangerie Alimentation","Route du Vully 2","1543","Grandcour"]
["207500","Rest. La Principessa","Rte d'Arnier 4-6","1092","Belmont-Lausanne"]
["207504","Résidence Carina","Ch. du Langollioux","1180","Rolle"]
["207506","Camyurdu Asker","Rue de Chantepoulet 17","1201","Genève"]
["207508","Rest. Al Castellino","Rte de St-Julien 278","1258","Perly"]
["207510","Jumbo Moncor SA,","Route des Loisirs 1","1762","Givisiez"]
["207512","Fondation Dr A. Combe","Ch.I.-de-Montolieu 94","1010","Lausanne"]
["207515","M. Melet Sébastien","En Chamard 16","1442","Montagny-Yverdon"]
["207518","Manor Grands Magasins Ray.71","Chemin industriel","1279","Chavannes-de-Bogis"]
["207520","F.C. Ecublens","Case postale 333","1024","Ecublens VD"]
["207526","Garden-Centre de Noville","Rte Grand-Canal","1845","Noville"]
["207529","La Rosière","Rte de la Gare 34","1470","Estavayer-le-Lac"]
["207534","Fondation Parc zoologique","Route du Bois-Laurent 1","1261","Le Vaud"]
["207536","M. Varricchione Rosario","Place Chauderon 8","1003","Lausanne"]
["207540","Touillet Didier","Route du Village 8","1875","Morgins"]
["207543","Edelweiss Manotel","Place de da Navigation 2","1201","Genève"]
["207545","Rest. Félicita","Chemin Victor-Duret 30","1213","Onex"]
["207548","IENA Gestion et Services Sàrl","","1580","Avenches"]
["207554","M. Mazza Salvatore","St-Louis 5","1110","Morges"]
["207559","Epicerie & Buvette","Rue de Lausanne 89","1202","Genève"]
["207561","Campelo Josépha","Av. Servan 21","1006","Lausanne"]
["207564","TC Epalinges","Bois-de-Ban 66","1066","Epalinges"]
["207567","Dumont & Dupraz SA","Av. St-Clotilde 13","1205","Genève"]
["207573","Crémerie Parc de la Grange","Rue William Favre 19","1207","Genève"]
["207576","Rafting-Loisirs Sàrl","Rte du Pas-de-l'Echelle 4","1255","Veyrier"]
["207579","Rest. de la Croix-Blanche","Rte de Lausanne 25","1422","Grandson"]
["207582","Ates Kebab","Place Claparède 2","1205","Genève"]
["207584","M. Blanc Michel","Route Cantonale","1898","St-Gingolph"]
["207586","Restoshop 7 Marché","","1644","Avry-devant-Pont"]
["207588","Le Cosy Sàrl","Signy Centre Commercial","1274","Signy"]
["207591","La Boulang'","Route d'Echallens 4","1037","Etagnières"]
["207593","Gerbex Olivia","Rte de Thierrens 4","1410","St-Cierges"]
["207596","Rest.Pizzeria Olympia","Rue de Vevey 30","1630","Bulle"]
["207599","Top-Marché Montelly","Chemin de Montelly 17","1007","Lausanne"]
["207602","Hôtel-Rest. Elite","Rte du Chemin-large 6","1658","Rossinière"]
["207607","Kiosque d'Entre-bois","Ch. d'Entre-bois 6","1018","Lausanne"]
["207611","Rest le Petit Boeuf","Av. 24 Janvier 4","1004","Lausanne"]
["207617","Abedi","Rue Hoffmann 3","1202","Genève"]
["207620","Camping du Bois Gentil SA","La Vy d'Aubonne 44","1144","Ballens"]
["207623","Cinémathèque suisse","Case postale 5556","1002","Lausanne"]
["207629","FT Distribution Sàrl","Route de Moncor 26","1752","Villars-sur-Glâne"]
["207634","DSD-Denner Satelite","Rue Montsalvens 39","1636","Broc"]
["207636","Hugonnet Stéphane","Route de Cossonay 26","1008","Prilly"]
["207639","Karting Indoor Attraction SA","Route de Berne 14","1530","Payerne"]
["207644","Mohmand Mohammad Nasser","Avenue des Charmilles 22","1203","Genève"]
["207646","Jumbo-Markt Ag, Dietlikon","Av. Reller 42","1800","Vevey"]
["207648","M.P. Giordano Sàrl","Ch. de la Gradelle 40 bis","1224","Chêne-Bougeries"]
["207650","Panacom SA","Rue du Valais 9","1202","Genève"]
["207652","Kiosque Lobso Sàrl","Avenue d'Ouchy 3","1006","Lausanne"]
["207655","Restoshop","Restoroute de Lully","1470","Lully FR"]
["207657","Restoshop SA","Restoroute de Bavois","1372","Bavois"]
["207659","M. Chapuis Rolf","Grande Place","1800","Vevey"]
["207661","M. Mostamandi Haroun","Rue des Eaux-Vives 47","1207","Genève"]
["207664","Kiosque Cleopatra","Rue Prévost-Martin 31","1205","Genève"]
["207666","BP Service Vernier","Rte de Vernier 137","1219","Le Lignon"]
["207669","Fond. Secteur Petite Enfance UNI","Rue De-Candolle 4","1211","Genève 4"]
["207675","A la Petite Auberge","Place du Village 9","1407","Bioley-Magnoux"]
["207677","Foyer Dents du Midi","Rte de Gryon 22","1880","Bex"]
["207680","Fort Pré-Giroud","Rue de l'Ancienne-Poste 24","1337","Vallorbe"]
["207686","BP Service Lully","Restoroute Rose Broye","1470","Lully FR"]
["207692","Dumont & Dupraz SA","Av. de Ste-Clotilde 13","1205","Genève"]
["207698","Les Trois Trèfles","Place du Centre 5","1661","Pâquier-Montbarry"]
["207701","Hôtel de Torgon","Rue de la Lanche 5","1899","Torgon"]
["207703","Troiano Pio","Rte de Coppet 5","1291","Commugny"]
["207706","FT Distribution Sàrl","Rte De Marly 19","1700","Fribourg"]
["207708","Famille Chesaux-Payot","Rest. du Raisin","1424","Champagne"]
["207713","FrunGest Sàrl","Avenue du Silo 7","1020","Renens VD"]
["207718","Restaurant du Château","Route de Rennex 1","1294","Genthod"]
["207721","Restaurant La Treille","Rue de la Rovra 6","1893","Muraz (Collombey)"]
["207726","Epicerie du Soleil","Avenue de l'Industrie 80","1870","Monthey"]
["207728","CAD (Hospice Général)","Rte de la Chapelle 22","1212","Grand-Lancy"]
["207730","Migrol Service Balexert","Avenue Louis-Casaï 27","1209","Genève"]
["207732","Station Shop","Rue de Livron 17","1217","Meyrin"]
["207734","Rest. Chez Kei","Rte Malagnou 6","1208","Genève"]
["207736","Centre de Vie Enfantine","Avenue des bergières 44","1004","Lausanne"]
["207738","Station Shell Montbenon","Ch. de Mornex 36","1003","Lausanne"]
["207740","Madame Corboz Mireille","Route de la Sarine 23","1666","Grandvillard"]
["207743","Restaurant La Croix Blanche","Route de Fribourg 1","1634","La Roche FR"]
["207746","JYBYKA Services Sàrl","Av. Collonge 18","1820","Territet-Veytaux"]
["207751","JUSEFI TABAC","Bd Carl-Vogt 75","1205","Genève"]
["207754","M. Ventura Antonio","Av. Louis-Weck-Reynold 42","1700","Fribourg"]
["207759","Naville Service","Grand Rue C 30","1083","Mézières VD"]
["207762","Cuisine RPA","Ch. de Rionzi 62","1052","Mont-sur-Lausanne"]
["207764","Mme d'Aléo Véra","Rue Dancet 8","1205","Genève"]
["207769","M. Celebi Celal","Rue Henri-Christinet 2","1205","Genève"]
["207772","M. Maillard Jean-Luc","Grand-Rue 19","1607","Palézieux-Village"]
["207775","Rest. Le Brûlot","Chemin du 900ème 2","1304","Cossonay-Ville"]
["207781","Bar de Verdel Sàrl","Route du Verdel 8","1630","Bulle"]
["207783","M. Mercier Jean-Claude","Rte de Jussy 312","1254","Jussy"]
["207785","Le Shop du Mont-d'Or","Route du Creux 20","1337","Vallorbe"]
["207787","Eldora SA","Chemin de Burdon A 10","1052","Mont-sur-Lausanne"]
["207789","Pause Café SA","Route de Matran 9","1754","Avry-sur-Matran"]
["207791","Pause Café SA","Rte d'Agy 1","1763","Granges-Paccot"]
["207793","Buffet de la Gare","Av. de la Gare 17","1882","Gryon"]
["207795","Amat Boul. Pâtisserie","Rue Jean Charles Amat 6","1202","Genève"]
["207797","Rest. Dun-Huang","Ch. Pierrefleur 40","1004","Lausanne"]
["207799","Hôtel Masson SA","Rue Bonivard 5","1820","Veytaux"]
["207801","BP-Service Crissier","Rte de Prilly 29","1023","Crissier"]
["207804","Genève Plage","Port Noir","1223","Cologny"]
["207807","M. Gzim Sadiku","Av. des Alpes 38","1820","Montreux"]
["207809","Restaurant Olympico","Rue Caroline 16","1227","Carouge GE"]
["207812","Jowa SA","Erlenwiesenstrasse 9","8604","Volketswil"]
["207818","Boulangerie Au Brignol","Rte de Tercier 19","1807","Blonay"]
["207820","Rest. Terminus","Les Crettets 19","1343","Les Charbonnières"]
["207825","Kiosque Kleinik Sàrl","Rue de la Pontaise 47","1018","Lausanne"]
["207827","Pause-Café SA","Chemin des Fossaux","1868","Collombey"]
["207833","Europlex Cinémas Sàrl","Av. de la Gare 4A","1880","Bex"]
["207838","Socar Bulle","Rue de Vuippens 49","1630","Bulle"]
["207841","Hôtel de Savoie","Rte de Savoie 7","1110","Morges"]
["207846","Café du Camp","Route du Camp 13","1145","Bière"]
["207849","Les Baumettes","Av. des Baumettes 120","1020","Renens VD"]
["207851","Fondation Mont-Calme","Rue du Bugnon 15","1005","Lausanne"]
["207853","Marché des Barmottes","Rte d'Aigle 3","1880","Bex"]
["207856","Ecole Française Valmont","Rte d'Oron 47","1010","Lausanne"]
["207859","Restaurant du Suchet","Praz Tecoz 2","1439","Rances"]
["207865","Restaurant Y-Parc","Rue Galilée 13","1400","Yverdon-les-Bains"]
["207867","Station Service","Rte de St-Julien 274","1258","Perly"]
["207870","Restaurant Thaï Orchidée","Rue du Port-Franc 16","1003","Lausanne"]
["207873","M. Jacinto Jésus José","Ch. de la Côte 14","1680","Romont FR"]
["207875","Tabacs Sympa","Rue St-Victor 18","1227","Carouge GE"]
["207880","Mme Steffen Nathalie","Promenade Grande Buttes 1","1180","Rolle"]
["207886","M. Arifi Sadat","Av. d'Aïre 93 A","1203","Genève"]
["207889","Restaurant du Co de la Glâne","Rte des Trois Sapins 13","1680","Romont FR"]
["207894","Hyalin Sàrl","Promenade des Bastions 1","1204","Genève"]
["207896","Pause-Café SA","Route de Daillettes 21","1700","Fribourg"]
["207901","Madame Vehapi","R. du Rhône 7","1860","Aigle"]
["207903","M. Gachet Raphaël","Rue du Centre 26","1637","Charmey (Gruyère)"]
["207906","Zahmatte SA","Rue de Carouge 21","1205","Genève"]
["207908","Pause Café SA","Rte de Belle Croix 18","1680","Romont FR"]
["207910","Tabacs, Journaux, Epicerie","Rue des Deux-Ponts 25","1205","Genève"]
["207912","Pause-Café SA","Av. GénéRal-Guisan 15","1800","Vevey"]
["207914","Laiterie-Fromagerie","Rue de l'Eglise 56","1611","Le Crêt-p-Semsales"]
["207916","M. Herrmann Roland","Avenue de la gare 15","1880","Bex"]
["207921","Mme Christinet Francoise","Rue du Nord 21","1188","Gimel"]
["207924","Mme et M. Zutter","Rue de la Bergerie 1","1376","Goumoens-la-Ville"]
["207931","Rest. Hôtel de Ville","Grand-Rue 39","1204","Genève"]
["207934","M. Djaafari Nesar","Av. Alfred Bertrand 8","1206","Genève"]
["207936","Migrol Services","Rte de la Vallée 11","1180","Rolle"]
["207938","Fondation Beau-Séjour","Rue des Communaux 2","1800","Vevey"]
["207941","M. Djaafari Nesar","Bvd. Georges Favon 1","1204","Genève"]
["207943","Rest. de l' Etoile","Rte de la Praz 8","1148","Moiry"]
["207946","M. Roesti Eric","Pré-Landry 30","2017","Boudry"]
["207951","Migrol Service","Impasse de la Colline 2","1762","Givisiez"]
["207954","M. Abdelkader Hadi-Kouider","Rue de Lausanne 73","1110","Morges"]
["207956","Garage de la Riviera","Rte de St-Maurice 233","1814","La Tour-de-Peilz"]
["207959","Société Inter Bowling","Rue des Finettes 52","1920","Martigny"]
["207966","Rest. Sawasdee","Rue de la Filature 20","1227","Carouge GE"]
["207969","Grottes de Vallorbe SA","Ch. de la Résurgence 1","1337","Vallorbe"]
["207974","Burki Christine","Merle d'Aubigné 10","1207","Genève"]
["207977","Commune de Montreux","Av. des Alpes 18","1820","Montreux"]
["207982","Foyer Notre-Dame Auxiliatrice","Route de l'Eglise 39","1681","Billens"]
["207987","Le Négoce","Case postale 104","1015","Lausanne"]
["207989","D.&G. Charlet-Ancçay & Fils SA","Place de Barboleuse 10","1882","Barboleusaz"]
["207992","CHAV SA","Route Belvédère 20","1854","Leysin"]
["207997","Rest. des Cheminots","Rue du Closillon 1","1870","Monthey"]
["208000","Foyer de Cour","Av. de Cour 16 B","1007","Lausanne"]
["208003","Fondation Mont-Calme","Place Croix-Blanche 11","1066","Epalinges"]
["208006","Pizzeria Rest. La Charrue","Rue Grand-Pont 7","1350","Orbe"]
["208008","Fromages Bovay SA","Rue du Collège 31","1325","Vaulion"]
["208011","Rest. le Tsalè","Ch. du Tsalè","1619","Les Paccots"]
["208016","Restaurant de Cour","Av. De Cour 38 A","1007","Lausanne"]
["208018","Rest. du Jet-d'eau","Rue des Eaux-Vives 90","1207","Genève"]
["208020","Auberge du Lion d'Or","Place du Marché 15","1170","Aubonne"]
["208025","Mifer Sàrl","Stade Olympique","1018","Lausanne"]
["208030","Pizzeria l'Armailli","Rue des Deux-Marches 26","1800","Vevey"]
["208032","Boul. M. Fayet Christian","Place du soleil 4","1183","Bursins"]
["208034","Restaurant La Treille","Route de Cossonay 26","1008","Prilly"]
["208037","Centrale Prodega Growa","Lochackerweg 5","3302","Moosseedorf"]
["208045","M. Python Laurent","Ch. Des Noisetiers 1","1666","Grandvillard"]
["208049","Garage de l'Etoile SA","Rue de Cossonay 101","1020","Renens VD"]
["208051","Rest. de la Poste","Grand-Rue 48","1095","Lutry"]
["208053","Institution de Béthanie","Avenue de la Vallombreuse 34","1004","Lausanne"]
["208055","Home Les Châteaux","Av. d'Orbe 4","1040","Echallens"]
["208057","EMS La Renaissance","Chemin de la côte malherbe","1188","St-George"]
["208060","Garage Auto-Rives SA","Rue de Lausanne 45","1110","Morges"]
["208063","Carrousel Burger","Quai Jean-Pascal Delamuraz 1","1006","Lausanne"]
["208065","Mipa Service SA","Route de Matran 9","1754","Avry-sur-Matran"]
["208067","M. Chappuis Christian","Route principal 201","1628","Vuadens"]
["208070","Richoz Anne-Lise","Appartement Av. Nestlé 11","1800","Vevey"]
["208076","La Lagune Cheyres Sàrl","Route Tivoli 74","1468","Cheyres"]
["208079","Plage du Reposoir","Rte de Lausanne 222","1292","Chambésy"]
["208081","Rest. la Gerbe d'Or","Case postale 207","1470","Estavayer-le-Lac"]
["208086","Société Inter Bowling SA","Rte de Chavannes 27 C-D","1007","Lausanne"]
["208088","Auto Bolle SA","Route de Genève 14","1131","Tolochenaz"]
["208091","La Pouponnière & l'Abri","Av. du Temple 10A","1012","Lausanne"]
["208096","Café de la Comete","Place des Brunes 11","1257","Bardonnex"]
["208098","Jumbo-Markt SA, Dietlikon","15, Chemin Des Dailles","1870","Monthey"]
["208101","Jumbo-Markt AG, Dietlikon","Rue des Entreprises 12","1217","Meyrin"]
["208103","Jumbo-Markt Ag, Dietlikon","En Charmard","1442","Montagny-Yverdon"]
["208105","Jumbo-Markt Ag, Dietlikon","Rue de l'Industrie 68","1030","Bussigny-Lausanne"]
["208107","Jumbo Moncor SA,","Rue du Château-d'En-Bas 6","1630","Bulle"]
["208111","Grandjean Frères","Rte de Belfaux 2","1762","Givisiez"]
["208114","Dubois Laurent","Route du Vallon 2","1854","Leysin"]
["208116","Overney Jean-Daniel","Rte d'Ursy 12","1678","Siviriez"]
["208118","Station BP    SUD","Route Blanche 9","1226","Thônex"]
["208121","PAM Partenaire","Chausse-Coq 4-6","1204","Genève"]
["208123","Merulla Luc","C.F.Ramuz 38","1009","Pully"]
["208125","White Horse Restauration Sàrl","Rue Couvaloup 17","1110","Morges"]
["208127","Mignot Christian","Grand'Rue 7","1188","St-George"]
["208130","Buvette des Bains Sàrl","Quai du Mont-Blanc 30","1201","Genève"]
["208132","Terrasse le Paradis","Ch. des Sapins 10","1216","Cointrin"]
["208137","Rest. La Rotonde","Rue des Paquis 15","1202","Genève"]
["208142","Rest. Lamartine","Avenue Soret 2","1203","Genève"]
["208146","Cave Valaisanne-Chalet Suisse","Boulevard Georges Favon 23","1204","Genève"]
["208149","Télé-Restaurant SA","Rue de la Rotisserie 2","1204","Genève"]
["208151","Rest. le Phénix","Rue des Vollandes 38","1207","Genève"]
["208160","M. Bidart Alain","Pl. du Marché","1227","Carouge GE"]
["208162","Restaurant les Semailles","Ch. des Semailles 34","1212","Grand-Lancy"]
["208164","Fondation Aigues-Vertes","Rte de Chèvre 29","1233","Bernex"]
["208166","Rest. Pizzeria Da Ettore","Champs Fréchets 13","1217","Meyrin"]
["208168","Café de Mategnin","Av. Auguste François Dubois 37","1217","Meyrin"]
["208170","Buffet de la Gare de Céligny","Boîte postale 12","1299","Crans-près-Céligny"]
["208174","Tabacs Journaux des Pontets","chemin des pontets 7","1212","Grand-Lancy"]
["208176","Rest. Chez Cartouche","Vieux Lully 20","1233","Lully GE"]
["208178","Antonio Deforte","Rte Saint Julien 286","1258","Perly"]
["208181","Buvette de la Plage","Route Suisse 58","1295","Mies-Tannay"]
["208183","Laterza SA","Rte de Genève 11","1291","Commugny"]
["208185","Rest. du Port","Rue du Port 9","1180","Rolle"]
["208187","Restaurant Tivoli","Route d'Arzier 1","1273","Le Muids"]
["208190","Auberge de Dully","Place du Village 9","1195","Dully"]
["208193","Camp de vacances de Plainpalais","Cité Vieusseux 7","1203","Genève"]
["208199","Reichenbach Erica & William","Ch. Du Signal 2","1323","Romainmôtier"]
["208204","Gamani Sàrl","Route de Sainte-Croix 14","1445","Vuiteboeuf"]
["208206","Le Château de Corcelles","Clos du Château 3","1426","Corcelles-Concise"]
["208208","Rest. La Gourmandine","Ch. Fontanettaz 11","1009","Pully"]
["208210","Marché Corsy","Le Landar 98","1093","La Conversion"]
["208212","Rest. Lord Sandwich","Avenue du Grand Saint Bernard 15","1920","Martigny"]
["208214","Pause-Café SA","Rue de la Poste","1920","Martigny"]
["208216","Brasserie du Bourg-de-Four","Pl. Bourg-de-Four 13","1204","Genève"]
["208219","AU FURET","Av. d'Aïre 44","1203","Genève"]
["208272","IKEA SA","Rte de Vernier 156","1214","Vernier"]
["208273","Destruction ***Interne***","En Reculan","1024","Ecublens VD"]
["208331","Manor Warenhaus Basel","Postfach","8902","Urdorf"]
["212911","SV Hotel AG","Postfach 440","8901","Urdorf"]
["213651","SV (Schweiz) AG","Postfach 440","8901","Urdorf"]
["220171","Mövenpick Hôtel-Lausanne","Av. de Rhodanie 4","1007","Lausanne"]
["220173","Aux Saveurs d'Italie","Av. Mon-Loisir 7","1006","Lausanne"]
["220176","Red-Ox Steak-House Sàrl","Bvd des Tranchées 8","1206","Genève"]
["220178","Novae Restaurant SA","Ch. de la Grangette 2","1052","Mont-sur-Lausanne"]
["220183","Jura Loisirs SA","Rue de la Bergère 8","1217","Meyrin"]
["220188","Café de la Tour","Rue du Château 2","1510","Moudon"]
["220191","Garderie de la Borde","Rue de la Borde 34","1018","Lausanne"]
["220193","Landi Cugy","Place de la Gare 7","1470","Estavayer-le-Lac"]
["220197","Landi Centre Broye","Place de la Gare 7","1470","Estavayer-le-Lac"]
["220200","Alternative Night Management SA","Route des Tuillères 1","1196","Gland"]
["220205","Restaurant","les Invuardes 66","1530","Payerne"]
["220209","Service Finances","Rte de Bellevue 53","1401","Yverdon-les-Bains"]
["220213","M. Thierry Agnelot","Route de Denges 22","1027","Lonay"]
["220216","Boulangerie Gobet Sàrl","Route de la Raveire 10","1728","Rossens FR"]
["220221","Pause Café SA","Avenue de la Gare 10","1700","Fribourg"]
["220223","Busset Station Sàrl","Route du Pillon 26","1864","Vers-l'Eglise"]
["220226","Renyle SA","Rue de la Madeleine 14","1204","Genève"]
["220233","Hôtel Royal Savoy","Av. d'Ouchy 40","1006","Lausanne"]
["220235","Hôtel Royal Savoy","Av. d'Ouchy 40","1006","Lausanne"]
["220237","L'Epis Taff Sàrl","Derrière le Château 19","1033","Cheseaux-Lausanne"]
["220241","Sri Shakaana Store","Rue du Grand Pont 9","1350","Orbe"]
["220243","Cooking For Ever","Rte du Moulin Martinet 1","1175","Lavigny"]
["220247","Fila Bar","Chaussée de Treycovagnes 13","1400","Yverdon-les-Bains"]
["220249","Toys'R'Us c/o Smyths Toys Gmbh","Chemin du Croset 7","1024","Ecublens VD"]
["220254","Concordance S.A","Avenue Jean-Jacques Rousseau 19","1815","Clarens"]
["220257","Restaurant Take a Break SNC","Rue de la Dîme 19","2000","Neuchâtel"]
["220260","Camping Clos de la Georges SA","Les Ecots 3","1853","Yvorne"]
["220262","TEMPESTINA SAGL","Les Corbes 2","1121","Bremblens"]
["220265","Brasserie Nouvelle","Rue de Lyon 96","1203","Genève"]
["220270","Café AL-AMIR","Rue de Berne 22","1201","Genève"]
["220272","Restaurant Chez Lily","Route de France 5","1348","Le Chenit"]
["220278","Café de Béthusy Thankavadivel","Avenue de Béthusy 27","1005","Lausanne"]
["220281","Restaurant Chez Gany","Grand Rue 20","1530","Payerne"]
["220286","Happy Kids Parc","Chemin des chaumets 29","1239","Collex"]
["220288","Home Vallée de la Jogne","Riau de la Maula 9","1637","Charmey (Gruyère)"]
["220291","La Gamme L Café","Rue du Village 10","1055","Froideville"]
["220293","Kiosque du Grand Pré","Rue du Grand-Pré 52","1202","Genève"]
["220295","Restaurant MGM Café","Rue du Lac 14","1007","Lausanne"]
["220297","Hôtel Rest. La Croix Verte","Grand'Rue 1","1267","Vich-Coinsins"]
["220301","Nomad Café","Route de Peney 2","1214","Vernier"]
["220304","Fromagerie de Marsens","Rte des Bugnons 2","1633","Marsens"]
["220306","Minigolf Montreux","Ch. du Moléson 2","1083","Mézières VD"]
["220311","Montreux Jazz International SA","Avenue Claude-Nobs 5","1820","Montreux"]
["220316","Jour GY Sàrl","Rte de Gy 115","1251","Gy"]
["220318","The Bowling Balexert","Av. du Pailly 21","1220","Les Avanchets"]
["220320","Kidelis SA","Z.A. La Pièce 2","1180","Rolle"]
["220324","Restaurant Lotus","Rue du Centre 4","1800","Vevey"]
["220326","M.Cemal Imeri","Route des Plaines-du-Loup 64","1018","Lausanne"]
["220330","Kiosque de Beaulieu","Avenue de Beaulieu 5","1004","Lausanne"]
["220333","Novae Restauration SA","Route de Vidy 11","1007","Lausanne"]
["220336","Frozen Family Sarl-Picard Suisse","Place de la Gare 4","1003","Lausanne"]
["220356","Tabac Epicerie Favre","Rue de Genève 3","1225","Chêne-Bourg"]
["220358","Les Délices du Talent Vallotton","Grand'Rue 3","1040","Echallens"]
["220360","Grand Chelem Event SA","Avenue de Longmalle 21A","1020","Renens VD"]
["220365","Brasserie de la Gare","Place de la Gare 6","1020","Renens VD"]
["220368","Brasserie de la Pontaise","Rue de la Pontaise 52","1018","Lausanne"]
["220371","Hôtel Président Wilson","Quai Wilson 47","1211","Genève"]
["220373","KINGBUZZ SA, HDINER GENEVE","Route des Jeunes 4","1227","Carouge GE"]
["220375","Le Kiosque des Bastions SA","Promenade des Bastions 1","1204","Genève"]
["220377","Sidra Kamalaldin Foad","Avenue des Alpes 5","1820","Montreux"]
["220379","Tabac du soleil","Chemin du domaine patry 8c","1224","Chêne-Bougeries"]
["220381","Naville Service","Grand-Rue 30C","1083","Mézières VD"]
["220383","Café Restaurant du Village","Avenue de Chailly 59","1012","Lausanne"]
["220386","Association Movie Bar","Rue Alloys-Mooser 3","1700","Fribourg"]
["220389","Movie Bar","Derrière les Remparts 14","1700","Fribourg"]
["220391","Café restaurant La Pinte","Route de Fribourg 6","1726","Farvagny-le-Grand"]
["220394","Restaurant du Jorat","Grand Rue 16","1083","Mézières VD"]
["220397","Délice D'Echallens","Route de Lausanne 33","1040","Echallens"]
["220398","Sakial Sàrl","Rte de Genève 7","1291","Commugny"]
["220401","Amercian Diner Sàrl","Chemin de la Douane 7","1278","La Rippe"]
["220407","Saveur Traiteur","Rue de la Gare 31","1690","Villaz-St-Pierre"]
["220410","Boulangerie-Pâtisserie Bessa Sàrl","Rue du marché 1","1522","Lucens"]
["220412","RIS Alimentation - Mini Shop Vinet","Avenue de Vinet 18","1004","Lausanne"]
["220414","Al Amir Menna Food","Rue de Berne 22","1201","Genève"]
["220416","Tabac Alimentation 88","Rue de Genève 88","1004","Lausanne"]
["220418","Kiosque AB Traders","Avenue de Morges 36","1004","Lausanne"]
["220420","Boucherie Epicerie Traiteur Ahmadi","Rue de Maupas 19","1004","Lausanne"]
["220423","Le Café","Route des Paccots 216","1619","Les Paccots"]
["220428","Les Saveurs du Monde","Rue de la Servette 32","1202","Genève"]
["220430","Tabac Bashir Sàrl","Boulevard Carl Vogt 9","1205","Genève"]
["220432","Asian Food & Spice","Rue de la Servette 32","1202","Genève"]
["220434","FLF,Vevey fête des Vignerons","Rue Phillippe Plantamour 37","1201","Genève"]
["220438","FLF, THF Montreux","Rue Philippe Plantamour 37","1201","Genève"]
["220443","Tabac Maisonneuve","Ch. de Maisoneuve 3","1219","Châtelaine"]
["220445","Boulangerie du Carrefour","Av des CommunesRéunies 2","1212","Grand-Lancy"]
["220448","Mobilitea","Plage de Mies","1295","Mies-Tannay"]
["220451","Safran Food-Giga Tacos","Rue de la Gare 13a","1110","Morges"]
["220454","Café Fédéral","Café Fédéral 1","1521","Curtilles"]
["220457","Boulangerie-Pâtisserie Bessa Sàrl","Chemin des Saules 2c","1260","Nyon"]
["220460","Alimentation de Paula","Avenue Haldimand 43","1400","Yverdon-les-Bains"]
["220464","T-Bar","Route de France 19","1875","Morgins"]
["220467","Giga Tacos Silo Sàrl","Avenue de silo 24","1020","Renens VD"]
["220469","Xpresse-Café","Avenue de la Gare 7","1680","Romont FR"]
["220472","Chalet Chanso","Chemin de Dozon Dessous 9","1872","Troistorrents"]
["220478","Uniqmarché","Route principales 60","1786","Sugiez"]
["220480","Stand 4 Ceps (D-3 24)","Rue Louis Meyer","1800","Vevey"]
["220483","Café Restaurant Le Pradel","Rpute des Acacias 70","1227","Carouge GE"]
["220485","Boucherie des Landes SA","Centre Commercial des Crêtes","1971","Grimisuat"]
["220488","Hôtel Bellevue Sàrl","Rue des Fontaines 20","1425","Onnens VD"]
["220490","World Market","Rue Caroline 49","1227","Carouge GE"]
["220493","Mimosa Alimentation Sàrl","Avenue de Chailly 50","1012","Lausanne"]
["220496","Le Point Bar Sàrl","Palud 7","1630","Bulle"]
["220498","Café-Bar l'Igloo","Route de Fruence 44","1618","Châtel-Saint-Denis"]
["220500","Emilie Walther Boulangerie","Chemin de Prédérés 1","1276","Gingins"]
["220502","Magic Pizza Azi Sàrl","Route de Chésalles 19","1723","Marly"]
["220506","Le Fermier Suisse","Ruelle de l'ancien port 7","1800","Vevey"]
["220509","Association Rolleevents","chemin des sources 10 D","1185","Mont-sur-Rolle"]
["220514","INDIA GROCERIE","Rue de Grand Pré 55","1202","Genève"]
["220516","Coin D'Alma Sàrl","Chemin Castelver 2","1255","Veyrier"]
["220518","TEA ROOM Marie Ciel Ademi","Avenue Wendt 7","1203","Genève"]
["223741","Stella Eschbach","Ch. du Saux 6b","1131","Tolochenaz"]
["223743","Jean-Claude Oeuvrard","Ch. des Acacias 3","1023","Crissier"]
["223758","Patricia Saied","Ch. Champ-Pamont 1A","1033","Cheseaux-sur-Lausanne"]
["223778","Luis Miguel Sardinha Souta","Avenue Praz-Rodet 6","1110","Morges"]
["223781","Abdellah Abidi","246, route de la Dranse","74500","Publier"]
["223788","Eric Gaudillere","Allée promenade des bords du lac","73100","Aix les Bains"]
["223797","Dominique Donzé","367, rue Fontaine","01220","Divonne-les-Bains"]
["223804","Chantal Monney","Rue du Simplon 19","1006","Lausanne"]
["223808","Edgar Bruno Marinho Pinto da Costa","Route du Petit-Eysins 13","1262","Petit-Eysins"]
["223825","Jérémie Thouret","60, rue des Artisans","74500","Larringes"]
["220521","Hôpital Intercantonal de la Broye","Site d'Estavayer-le-lac","1470","Estavayer-le-Lac"]
["220524","Auberge de l'ours-SARL OUCHKA","Route de vers l'Eglise 4","1864","Vers-l'Eglise"]
["220526","MAGASIN OFFICIEL","Rue du Petit Chene 12","1003","Lausanne"]
["220529","SHANASHOP","Rue de Fribourg 2","1201","Genève"]
["220532","P'tit Frais Direct Food SA","Rte de Neuchâtel 1","1400","Yverdon-les-Bains"]
["220534","Centre Italien da Carmine","Chemin de Bouleyres 93B","1630","Bulle"]
["220536","Zahmatte SA","Rue d'Italie 16","1204","Genève"]
["220538","Restaurant Officine","Rue des Côtes de Montbenon 12","1003","Lausanne"]
["220539","Dell SA","Route de l'Aéroport 29","1215","Genève"]
["220542","Foodissimo Sàrl","Chemin du Trabandan 28A","1006","Lausanne"]
["220548","Beaureg'arts SA","Chemin de Sauges 14","1405","Pomy"]
["220554","Kiosque Shop 1450","Rue Neuve 6","1450","Ste-Croix"]
["220556","Convivium Via34 Sàrl","Grand-Rue 34","1347","Le Sentier"]
["220558","Kiosque Alimentation Shaqiri","Rue du Tunnel 3","1005","Lausanne"]
["220561","GRAAP","Rue de la Borde 25","1018","Lausanne"]
["220567","La Belle Note","Chemin des Noyers 8E","1131","Tolochenaz"]
["220569","Hôtel de la Rose SA","Rue de Morat 1","1702","Fribourg"]
["220571","Restaurant Boa Brasa","Rue des Confessions 17","1203","Genève"]
["220573","Kioque Cocivera","Rue de la Pontaise 47","1018","Lausanne"]
["220578","Prison de Champ-Dollon","Ch. Champ-Dollon 22","1241","Puplinge"]
["220581","Kiosque Bel-Air Niang","Rue de Neuchâtel 2","1400","Yverdon-les-Bains"]
["220583","CS Romontois","Route des Petits Quartiers","1680","Romont FR"]
["220588","Home d'enfants la Bérallaz","Route de la Bérallaz 101","1053","Cugy VD"]
["220591","MD Kiosque","Chemin de Montelly","1007","Lausanne"]
["220597","Le 7ème Sàrl","Route de Lausanne 7","1033","Cheseaux-Lausanne"]
["220599","Restaurant de l'Etoile","Route de Genève 102","1004","Lausanne"]
["220601","Grimper.ch SA","Route Henri-Stephan 12","1762","Givisiez"]
["220605","Grimper.ch SA","Route Henri-Stephan 12","1762","Givisiez"]
["220610","Restaurant Pizzeria Castello","Rue Jean-Lecomte 6","1422","Grandson"]
["220612","Gashi International Food Sàrl","ZI La Coche 7","1852","Roche VD"]
["220615","Oncle Edouard Sàrl","Rue de Nant 8","1207","Genève"]
["220620","Restaurant Le Chalet des Bains","Route des Bains 42","1892","Lavey-Village"]
["220622","Café Restaurant Le Petit Prince","Rue du Rhône 28","1860","Aigle"]
["220625","Snack Up Sàrl","Terreaux 7","1890","St-Maurice"]
["220631","Mexiland Import Export Sàrl","Route du Bois-de-Bay 105","1242","Satigny"]
["220634","Epic Gruyère","Rue de Gruyére 51","1630","Bulle"]
["220636","Resto KA Sàrl","Av. Bel Air 16","1225","Chêne-Bourg"]
["220640","Pause-Café SA","Avenue Milavy","1580","Avenches"]
["223667","Bernadette Wiesmann","Impasse Mont Robert 1","1124","Gollion"]
["223718","Bruno Boccali","Rue du Melley 18B","1142","Pampigny"]
["223725","Nicole Manesse","Rte de Pampigny 10","1143","Apples"]
["223726","Joseph-Antoine Gerzner","Ch. du Château-Sec 37","1510","Moudon"]
["223740","Silvia Da Costa Goncalves Gaspar","Quartier Pré-Fontaine 31","1023","Crissier"]
["223842","Paulo Sérgio Anacleto Barreira","Rte du Marchairuz 1","1145","Bière"]
["223860","Jean Marc Constantin","Rte de la Croix d'Or 8","1084","Carrouge VD"]
["223863","Alexis Sagette","Route de Berne 111","1010","Lausanne"]
["223872","Anne-Lise Morisod","Rte de Moudon 28","1522","Lucens"]
["223952","Mohammed Essoufi","Rue de la Borde 36","1018","Lausanne"]
["223980","René Tinguely","Terrailles 3","1304","Cossonay-Ville"]
["224036","Mary-Christine Bachmann","Rue de la Gare 12","1305","Penthalaz"]
["224037","Patrick Camilotto","Impasse de la Vignette 1","1522","Lucens"]
["224038","Pascal Charrière","Av. de Lavaux 68","1009","Pully"]
["224039","Josiane Ruchet","Crêt-aux-Moines 17","1422","Grandson"]
["224040","Rocco Vincenti","Impasse des Plantys 17","1963","Vétroz"]
["224048","Pedro Sousa Gonçalves","Route de Mon Moulin 4A","1906","Charrat"]
["224050","Olivier Regamey","Impasse de Grangery 3","1673","Ecublens FR"]
["224051","Hatem Ziadia","Ch. de Rionza 19","1020","Renens VD"]
["224057","Antonio Alberto Nascimento Vicente","Ch. du Verger 18","1373","Chavornay"]
["224058","Sylvain Dumont","492 Rte de la Plaine","74800","Amancy"]
["224072","Nicolas Pous","Lieu dit Le Noiret","74540","Gruffy"]
["224073","Pascal Lebois","Haut de Scherwyl 16","1634","La Roche FR"]
["224094","Pascal Dépraz","Ch. du Chêne 15","1038","Bercher"]
["224179","Jean-Michel Bovet","Rue de St. Eloi 6","1350","Orbe"]
["224232","Mohamed Aïche","16, Rue des Prés","25400","Audincourt"]
["224240","Déborah Cuénat","Ch. de Bonmont 19","1260","Nyon"]
["224375","Marco Antonio Narea Sanchez","Chemin Alfred Betems 6","1218","Le Grand-Saconnex"]
["224380","Cuisine RPA","Quai de la Thièle 13","1400","Yverdon-les-Bains"]
["224386","Epicerie de la Cité","Avenue Louis Aubert 6","1206","Genève"]
["224388","La Farandole Micalizzi","Rue Louis Favez 31","1854","Leysin"]
["224402","Cuisine RPA","Place de la Fontaine 1","1167","Lussy-sur-Morges"]
["224404","Kiosque AOMC","Route Cantonale 27","1897","Bouveret"]
["224406","Ristorante Bellini","Rue de Venise 12","1870","Monthey"]
["224423","Audibert Catering Sàrl","Route de l'Etraz 10A","1267","Vich-Coinsins"]
["224431","Autogrill Schweiz AG","Postfach 235","6210","Sursee"]
["224433","Autogrill Schweiz AG","Postfach 235","6210","Sursee"]
["224436","Duyel Sàrl","Avenue des Oiseaux 15","1018","Lausanne"]
["224474","Autogrill Schweiz AG","Quai de la poste, Rte de l'aéroport","1215","Genève"]
["224476","Autogrill Schweiz AG","Quai de la poste, Rte de l'aéroport","1215","Genève"]
["224488","MAND SA","Route de l'industrie 36","1860","Aigle"]
["224489","Cuisine production des Cropettes","Rue Baulacre 8","1202","Genève"]
["224490","Restaurant La Grosse Pierre","Ch. de la Grosse Pierre 3","1110","Morges"]
["224496","Restaurant La Patte de l’Ours","Place de l'Ours 1","1005","Lausanne"]
["224542","Kiosque 14","Rue de la Paix 9","1820","Montreux"]
["224543","Restau de la piscine de Moudon Sàrl","Chemin de la Piscine 1","1510","Moudon"]
["224579","Restaurant de la Piscine","Chemin de la Piscine 5","1305","Penthalaz"]
["224587","Fondation Bellet","Chemin des Acacias 14","1006","Lausanne"]
["224589","Fondation Bellet","Rez de chaussée, Ch. des acacias 14","1006","Lausanne"]
["224591","Café des sports by le Toucan","Rue François Dussaud 12","1227","Les Acacias"]
["224595","Katia Allenspach","Chemin de la Motte 8","1018","Lausanne"]
["224599","Kushtrim Tusha","22 Avenue des Alpes","01210","Ferney Voltaire"]
["224617","M. Georges-Henri Perreaud","Route de Cheseaux 1","1400","Yverdon-sur-Bains"]
["319519","Le Quart d'Heure Vaudois SNC","Route du Trébuit 1, Bâtiment de la","1856","Corbeyrier"]
["319602","Hôtel Restaurant de Fully SA","Rue de l'Eglise 16","1926","Fully"]
["320035","RBC Alimentation","Rue des Pâquis 8","1201","Genève"]
["320236","Le Casque d'Or","En Crausaz 15","1124","Gollion"]
["320237","Auberge Communale d'Eclepens","Rue du Village 1","1312","Eclépens"]
["320238","Versoix Shop","3 Route de Suisse 23","1290","VERSOIX"]
["320386","Bernard Overney","Route Saint-Ignace 43","1633","Marsens"]
["320408","Nature Gourmande Sàrl","Chemin Rouge 1B","1305","Penthalaz"]
["321847","Fondation Claire Magnin","Case postale 142","1071","Chexbres"]
["322011","Fondation PROF-in","Route de Morat 12","1784","Courtepin"]
["322014","MP Ouchy Pilloud","Avenue de Rhodanie 2","1007","Lausanne"]
["322017","CMC Exploitation SA","Allée Ferdi Kübler 12","1860","Aigle"]
["322018","Kiosque Café-Bar de St-Loup","St-Loup 13","1318","Pompaples"]
["322084","Ashvi - Paramasamy","Rue Pictet Rochemont 5","1207","Genève"]
["322093","Epicerie des Fontaines","Avenue Vibert 10","1227","Carouge"]
["322146","Tanoli Market","Route d'Aire 154","1219","Aire"]
["322150","La Bottega Alimentation","Rue Basse 49","1422","Grandson"]
["322169","Boulangerie Alimentation","Rte du Port 10","1545","Chevroux"]
["322210","Super Market","Rue de la Borde 28 bis","1018","Lausanne"]
["322218","Il Sikulo Sàrl","Avenue Mayor Vautier 28","1815","Clarens"]
["322346","Total Alimentation Sàrl","Chemin Pré d'Emoz 31C","1860","Aigle"]
["322352","Eldora SA","Case Postale 2443","1211","Genève 2"]
["322363","Bistro Le Plateau Sàrl","Avenue de Bel-Air 16","1225","Chêne-Bourg"]
["322376","Réseau Santé Social de la Broye","","1776","Montagny-la-Ville"]
["322384","Suisse Tabacs","Rue de Berne 46","1201","Genève"]
["322387","Alimentation Fernandez","Boulevard de Cluse 67","1205","Geneve"]
["322389","Kiosque des Amis","Grand Rue 56","1180","Rolle"]
["322397","Jean-Pierre Ingold","Rue des Moulins 16","1562","Corcelles-près-Payerne"]
["322562","HAPPY DAYS","Rue Saint-Pierre 3","1003","LAUSANNE"]
["322645","Restaurant Chez Nous","Rue des Dents-du-Midi 34 C","1890","Rue des Dents-du-"]
["322688","Nyaree Foodstore Sàrl","Route du Nant-d'Avril  51","1214","Vernier"]
["322740","Le Cappuccino","Place du Marché 6B","1820","Montreux"]
["322762","Tabac Journaux Terrassiere","Route de la Terrassière 17","1227","Genève"]
["322767","ANKAVA Sàrl","Chemin du Risoux 11","1110","Morges"]
["322918","Domino's Pizza GmbH","Chemin de Palettes 25","1212","Lancy"]
["322962","SAMIM WALI SARL","Chemin de la Bride 2","1225","Genève"]
["322967","Boulangerie La Ferme","Rue de l'Eglise 1","1269","Bassins"]
["322970","Market Ora 1 Sàrl","Rue de Carouge 70","1205","Genève"]
["322981","Epicerie Chez Mimi","Route de Saint Cergues 29","1260","Nyon"]
["322994","Fondation Résidence du Léman","Route de Lavaux 12","1802","Corseaux"]
["323007","Start Kiosque","Avenue de la Gare 1","1020","Renens"]
["323009","Le Galion","Avenue Vibert 32","1227","Carouge"]
["323011","La Vaudaire Restaurant","Chemin du camping 7","1007","Lausanne"]
["323015","Tepp SA","Rue Côtes -de-Montbenon 20","1003","Lausanne"]
["323019","Marché du Centre","Route d'Hermance 150","1245","Collonge-Bellerive"]
["323020","Epicerie Centrale","Rue Centrale 3","1305","Penthalaz"]
["323110","BDMCC Sàrl","Sous le Château 19","1470","Estavayer-Le-Lac"]
["323124","Buvette du Tennis de Givisiez","Route de l'Epinay 5","1762","Givisiez"]
["323144","JB Kiosque Sàrl","Avenue Samson-Reymondin 3","1009","Pully"]
["323148","Aryan Tabac","Rue Lamartine 20","1203","Genève"]
["323160","Café du Château","Avenue Général Guiguer 3","1197","Prangins"]
["323174","Restaurant La Porte du Scex","Rue de La Praise 42","1896","Vouvry"]
["323192","Food SAS & NN S.A.","Rue du Pré-Jérôme 23","1205","Genève"]
["323195","Au Petit Mag"," Rue Passaplan 17","1651","Villarvollard"]
["323244","Epicerie du Grand Pont","Ruelle du Grand Pont 2 bis","1003","Lausanne"]
["323246","Kiosque des Noutes","Rue des Alpes 38","1023","Crissier"]
["323266","VD Distribution SARL","Avenue Mon-Repos 5","1005","Lausanne"]
["323268","Station Miniprix Etoy","Route de l'Industrie 10B","1163","Etoy"]
["323271","Station Miniprix Cointrin","Avenue Louis Casai 34","1216","Cointrin"]
["323272","Pane & Olio","Rue des Arpenteurs 12","1217","Meyrin"]
["323275","Chez Nunuss","Chemin du Centenaire 4","1008","Prilly"]
["323285","Boulangerie Tea-Room","Bour- Dernier 21","1896","Vouvry"]
["323308","Epicerie Debbi","Rue des Confessions 19","1203","Genève"]
["323313","Tabac Presse Shopping","Avenue Henri Dunant 5","1205","Geneve"]
["323315","Geneva Skateboard Museum","Avenue Henri Golay 20","1214","Vernier"]
["323317","Le Chamarel Wick MRJ","Rue du Port 40","1009","Pully"]
["323319","Restaurant du chemin de Fer","Route des Arsenaux 15","1700","Fribourg"]
["323355","Auberge de La Croix Blanche","Rue de la Dîme 2","1307","Lussery-Villars"]
["323371","Sandwicherie de Lyon","Rue de Lyon 33","1201","Genève"]
["323376","Groupe Events urbanisme","","1523","Granges-près-Marnand"]
["323386","Boulangerie-Pâtisserie Bessa Sàrl","R.Remparts 27","1400","Yverdon"]
["323392","Kiosque BENI","Chemin des Cèdres 2","1004","Lausanne"]
["323413","Restaurant L'Art-Doiz-Evrard","Rue de Grenus 5","1201","Genève"]
["323419","Association Groupement La Rose","Chemin Petit Flon 49","1018","Lausanne"]
["323420","Eco Market ölgün","Rue des Moulins 27","1400","Yverdon"]
["323424","Boulangerie Audergon","Route Principale 203","1628","Vuadens"]
["323448","Services 365 Sàrl","Place de La Sallaz 2","1010","Lausanne"]
["323453","Tabac Gradelle - CC Migros","Chemin du Domaine Patry 8C","1224","Chêne-Bougeries"]
["323457","Philippe Tettamanti","Chemin des Frênes 12","1470","Estavayer-le-Lac"]
["323517","Restaurant-Pizzeria des Fleurs","Route Cantonale 7","1077","Servion"]
["323518","Buvette du Mini Golf de Fribourg","Route de La Broye 1","1700","Fribourg"]
["323521","Boulangerie-Pâtisserie Bessa Sàrl","Rue centrale 2","1003","Lausanne"]
["323568","L'Artisan","Place du Tunnel 5","1005","Lausanne"]
["323570","Valdrin Hassanaj","Avenue Granges-Paccots 1","1700","Fribourg"]
["323601","Europa Club","Route du Pavement 3 bis","1018","Lausanne"]
["323603","Kiosque-Tabac Mont Goulin","Avenue de Mont-Goulin 23","1008","Prilly"]
["323614","Restaurant du Golf Villars Sàrl","Route du Golf 12","1884","Villars-Sur-Ollon"]
["323617","Boulangerie-Pâtisserie Bessa Sàrl","Route d'Arruffens 15","1680","Romont"]
["323661","C'Chocolat","Grand-Rue 64","1820","Montreux"]
["323714","I Like Bar","Rue Basse 40","1422","Grandson"]
["323720","La Barak à Léonce","Les Collondés 8","1344","L'Abbaye"]
["323738","Chupitos Bar","Rue de Genève 100","1004","Lausanne"]
["323784","Taberna Portuguesa","Quai de Nogent 5","1400","Yverdon"]
["323788","Restaurant de la Source","Rue de la Source 41","1337","Vallorbe"]
["323844","Epicerie World Food","Grand-Montfleury 54","1290","Versoix"]
["324163","Totem Escalade SA","Chemin de Verney 5A","1024","Ecublens"]
["324182","Kiosque AMK Lausanne","Rue de La Pontaise 47","1018","Lausanne"]
["324185","Imperial Meat & Fish Sàrl","Z.I. Bovery 26","1868","Collombey-Muraz"]
["324187","Armée Suisse","Route de Grandcour","1560","Payerne"]
["324193","Epicerie Antunes","Avenue Jean-Jacques Rousseau 20","1815","Clarens"]
["324197","Hoti Restaurant SA","Route de Grandfey 151","1763","Granges-Paccot"]
["324338","Armée Suisse","","1510","Moudon"]
["324339","La Vinotek Sàrl","Avenue de la gare 38","1618","Châtel-Saint-Denis"]
["324351","Supermarché de Chexbres Sàrl","Grand-Rue 2","1071","Chexbres"]
["324353","FC Atlantic","Route Industrielle 21","1806","St-Légier"]
["324356","Korhan 2020 Sàrl","Rue Louis-Meyer 3","1800","Vevey"]
["324357","Xtra-Food Sàrl","Boulevard Carl Vogt 5","1205","Genève"]
["324359","Le Bubble Beach","Quai de Cologny 51 bis","1223","Cologny"]
["324362","Take Eat Easy","Chemin du Vallon 1","1030","Bussigny"]
["324364","Compagnie Hôtelière","Rte du Bellvédère 20","1854","Leysin"]
["324366","Sharifullah Tabacs St-Jean","Rue Saint-Jean 50","1203","Genève"]
["324373","Le P'Tit Marché Sârl de Goumoëns","Rue Château-Dessus 1","1376","Gouemens-La-Ville"]
["324375","Epicerie Jayshara","Rue d'Italie 30","1800","Vevey"]
["324376","Alimentation Rouge et Blanc","Rue Jean-Charles Amat 15","1202","Genève"]
["324389","Restaurant Family","Rue de Lausanne 61","1020","Renens"]
["324391","Auberge du Chêne","Route de la Gare 87","1744","Chénens"]
["324433","Tabac 27","Rue de la Coulouvreniere 27","1204","Geneve"]
["324488","Boucherie Calvano Sàrl","Rue St-Roch 6","1400","Yverdon"]
["324590","Inle Sàrl","Rue des Bouchers 10","1700","Fribourg"]
["324642","H Food SA","Rue Ferrier 19","1202","Geneve"]
["324772","Super Market Vallonnette","Avenue de la Vallonnette 24","1012","Lausanne"]
["324774","Royal Concept Catering Private Even","Chemin Neuf 3","1246","Corsier GE"]
["329129","Marché Gryonnais","Rue du Village 8","1882","Gryon"]
["329139","Chez Fifi Sàrl","Route de Pomy 9","1400","Yverdon-Les-Bains"]
["329141","Fromagerie de démonstration","Place de La Gare 3","1663","Pringy"]
["329144","Fromagerie de La Grenette","Place des deux Marchés 27","1800","Vevey"]
["329162","Buvette du FC Saint-Maurice","Rue de Surfrête 10","1920","Martigny"]
["329668","HOME CCM SA","Avenue de Feuillasse 24","1217","Meyrin"]
["329671","Marché Gryonnais","Rue du Village 8","1882","Gryon"]
["329672","Atelier des Saveurs Sàrl","Chemin de La Buritaz 1","1070","Puidoux"]
["329678","Servin Sàrl","Rue Pré-du-Marché 3","1004","Lausanne"]
["329757","Piadina Azzura","Route des Accacias 34","1227","Carouge"]
["329828","VOI GLAND","Rue Des Borgeaud 10D","1196","Gland"]
["329830","Cuisine scolaire des Pâquis","Rue Royaume 14","1201","Genève"]
["329893","Inglewood Saint-Laurent","Case Postale 1584","1211","Genève 1"]
["329900","Inglewood Plainpalais","Case Postale 1584","1211","Genève 1"]
["329904","Inglewood Grancy","Case Postale 1584","1211","Genève 1"]
["329927","Urban Waffle Club","Chemin de Purian 4","1197","Prangins"]
["329929","Restaurant Exclusive","Route de Saint Julien 278","1258","Perly"]
["329995","Café Restaurant du Jura","Place du Village 1 ","1187","St-Oyens"]
["330375","STEF Suisse SA","Chemin de Mochettaz 18","1030","Bussigny"]
["330753","Al Quadrato","Rue de Berne 55","1201","Genève"]
["330845","Delisolution Sàrl","Halle de l'île, Place de l'île","1204","Genève"]
["331536","Doda Mario","Rue du Grand-Bay 9","1220","Les Avanchets"]
["331587","Interfood City SA","Chemin des Coudriers 50","1209","Genève"]
["331914","Asia Market Nyon","Rue de Rive 54","1260","Nyon"]
["331944","HUG La Conciergerie","Rue Gabrielle-Perret-Gentil 4","1211","Genève 14"]
["332028","Restaurant China Garden","Avenue de Budé 15","1202","Geneve"]
["332146","La Passerelle","Rue Emile Nicolet 15","1205","GENEVE"]
["332147","Foyer universitaire de Carouge","Rue Joseph Girard 12","1227","CAROUGE"]
["332422","B&A Run SNC","Rue de Carouge 63","1205","Genève"]
["332754","Le Petit Cache Colliers","Rue de la Dîme 13","1307","Lussery-Villars"]
["333073","The Factory","Rue de la Servette 57","1202","GENEVE"]
["333156","Au Petit Magaz Sàrl","Grand Rue 7","1083","Jorrat-Mézières VD"]
["333417","Eldora SA","Case Postale 2443","1211","Genève 2"]
["462539","Fondation Saphir","Route de Bellevue 53","1401","Yverdon-les-Bains"]
["462771","Kiosque de La Fontaine","Chemin de la fontaine 5","1094","Paudex"]
["462876","Tabac Epicerie Baltika","Rue Fort Barreau 23","1201","Geneve"]
["463165","Tasty to Go","Rue Henri Mussart 11","1208","Genève"]
["100000","Gilliand Marc","Av. de France 28","1004 ","Lausanne"]

{"sheet":"Paramètres","index":3,"n_rows":7,"n_cols":4,"rows_kept":7,"cut":false,"hidden":false,"merged":[]}
[null,"Type de pièces","Cond. Pmt","Relance"]
[null,"Facture",15,"Relance 1"]
[null,"Note de crédit",30,"Relance 2"]
[null,"Note de débit",45,"Relance 3"]
[null,"Slt client",60,"Attendre"]
[null,"Versement",75,"Poursuite"]
[null,"Intérêts et frais",90]